Workbook

Sheet Curtailment Record
A1: Maximum of 3000 Curtailment Entries | E1: Curtailment Records | K1: Warning: Cannot Undo a Clear
A2: 2015 Base with new conservation but no purchase ahead
A3: Event Hour Mapping | B3: Event | C3: Event Hour counter | D3: Event-Hour Counter mapping | E3: Sim | F3: Month | G3: Day | H3: Hour | I3: Curt | J3: Rviol | K3: Wat Yr | L3: Temp Yr | M3: Wind Yr | N3: Load | O3: Rreq | P3: Arsrv | Q3: Thr | R3: Purc | S3: Hydro | T3: Wind | U3: FO MW | V3: Per FO | W3: WCF | X3: Sliceacc
A4: =CONCATENATE(B4,"_",H4) -> 1_16 | B4: 1 | C4: 1 | D4: =CONCATENATE(B4,"_",C4) -> 1_1 | E4: 1 | F4: 10 | G4: 14 | H4: 16 | I4: 0.7 | J4: 0 | K4: 1929 | L4: 1929 | M4: 16 | N4: 26055 | O4: 1553 | P4: 0 | Q4: 11699 | R4: 0 | S4: 14689 | T4: 28 | U4: 1794 | V4: 0.1 | W4: 0.009
A5: =CONCATENATE(B5,"_",H5) -> 1_17 | B5: =IF(E5=E4, (IF(F5=F4, (IF(G5=G4, (IF(H5=H4+1,B4,B4+1)), (IF(AND(G5=G4+1,H5=1,H4=24),B4,B4+1)))), B4+1)), B4+1) -> 1 | C5: =IF(B5=B4,C4+1,1) -> 2 | D5: =CONCATENATE(B5,"_",C5) -> 1_2 | E5: 1 | F5: 10 | G5: 14 | H5: 17 | I5: 262.4 | J5: 0 | K5: 1929 | L5: 1929 | M5: 16 | N5: 26213 | O5: 1568 | P5: 0 | Q5: 11437 | R5: 0 | S5: 15344 | T5: 55 | U5: 2056 | V5: 0.114 | W5: 0.018
A6: 1_18 | B6: =IF(E6=E5, (IF(F6=F5, (IF(G6=G5, (IF(H6=H5+1,B5,B5+1)), (IF(AND(G6=G5+1,H6=1,H5=24),B5,B5+1)))), B5+1)), B5+1) -> 1 | C6: =IF(B6=B5,C5+1,1) -> 3 | D6: =CONCATENATE(B6,"_",C6) -> 1_3 | E6: 1 | F6: 10 | G6: 14 | H6: 18 | I6: 369.5 | J6: 0 | K6: 1929 | L6: 1929 | M6: 16 | N6: 26024 | O6: 1550 | P6: 0 | Q6: 11330 | R6: 0 | S6: 15148 | T6: 62 | U6: 2163 | V6: 0.12 | W6: 0.02
A7: 1_19 | B7: 1 | C7: 4 | D7: 1_4 | E7: 1 | F7: 10 | G7: 14 | H7: 19 | I7: 494.8 | J7: 0 | K7: 1929 | L7: 1929 | M7: 16 | N7: 25382 | O7: 1511 | P7: 0 | Q7: 11204 | R7: 0 | S7: 14528 | T7: 41 | U7: 2288 | V7: 0.127 | W7: 0.013
A8: 1_20 | B8: 1 | C8: 5 | D8: 1_5 | E8: 1 | F8: 10 | G8: 14 | H8: 20 | I8: 458.4 | J8: 0 | K8: 1929 | L8: 1929 | M8: 16 | N8: 24835 | O8: 1485 | P8: 0 | Q8: 11241 | R8: 0 | S8: 13957 | T8: 64 | U8: 2252 | V8: 0.125 | W8: 0.021
A9: 1_21 | B9: 1 | C9: 6 | D9: 1_6 | E9: 1 | F9: 10 | G9: 14 | H9: 21 | I9: 458.4 | J9: 0 | K9: 1929 | L9: 1929 | M9: 16 | N9: 24817 | O9: 1481 | P9: 0 | Q9: 11241 | R9: 0 | S9: 13887 | T9: 116 | U9: 2252 | V9: 0.125 | W9: 0.038
A10: 1_22 | B10: 1 | C10: 7 | D10: 1_7 | E10: 1 | F10: 10 | G10: 14 | H10: 22 | I10: 458.4 | J10: 0 | K10: 1929 | L10: 1929 | M10: 16 | N10: 24426 | O10: 1438 | P10: 0 | Q10: 11241 | R10: 0 | S10: 13019 | T10: 54 | U10: 2252 | V10: 0.125 | W10: 0.017
A11: 1_23 | B11: 1 | C11: 8 | D11: 1_8 | E11: 1 | F11: 10 | G11: 14 | H11: 23 | I11: 406.7 | J11: 0 | K11: 1929 | L11: 1929 | M11: 16 | N11: 22520 | O11: 1294 | P11: 0 | Q11: 11241 | R11: 0 | S11: 10140 | T11: 28 | U11: 2252 | V11: 0.125 | W11: 0.009
A12: 1_24 | B12: 1 | C12: 9 | D12: 1_9 | E12: 1 | F12: 10 | G12: 14 | H12: 24 | I12: 406.7 | J12: 0 | K12: 1929 | L12: 1929 | M12: 16 | N12: 20440 | O12: 1192 | P12: 0 | Q12: 11241 | R12: 0 | S12: 8096 | T12: -8 | U12: 2252 | V12: 0.125 | W12: -0.002
A13: 2_9 | B13: 2 | C13: 1 | D13: 2_1 | E13: 3 | F13: 11 | G13: 3 | H13: 9 | I13: 163.6 | J13: 0 | K13: 1931 | L13: 1931 | M13: 6 | N13: 23043 | O13: 1423 | P13: 0 | Q13: 11905 | R13: 0 | S13: 11796 | T13: 194 | U13: 1578 | V13: 0.088 | W13: 0.063
A14: 2_10 | B14: 2 | C14: 2 | D14: 2_2 | E14: 3 | F14: 11 | G14: 3 | H14: 10 | I14: 488 | J14: 0 | K14: 1931 | L14: 1931 | M14: 6 | N14: 24096 | O14: 1448 | P14: 0 | Q14: 11581 | R14: 0 | S14: 12745 | T14: 297 | U14: 1902 | V14: 0.106 | W14: 0.096
A15: 2_11 | B15: 2 | C15: 3 | D15: 2_3 | E15: 3 | F15: 11 | G15: 3 | H15: 11 | I15: 67.5 | J15: 0 | K15: 1931 | L15: 1931 | M15: 6 | N15: 24790 | O15: 1515 | P15: 0 | Q15: 12002 | R15: 0 | S15: 13502 | T15: 234 | U15: 1482 | V15: 0.082 | W15: 0.076
A16: 3_11 | B16: 3 | C16: 1 | D16: 3_1 | E16: 3 | F16: 11 | G16: 6 | H16: 11 | I16: 97.5 | J16: 0 | K16: 1931 | L16: 1931 | M16: 6 | N16: 25873 | O16: 1528 | P16: 0 | Q16: 11858 | R16: 0 | S16: 13950 | T16: 983 | U16: 1625 | V16: 0.09 | W16: 0.317
A17: 3_12 | B17: 3 | C17: 2 | D17: 3_2 | E17: 3 | F17: 11 | G17: 6 | H17: 12 | I17: 97.5 | J17: 0 | K17: 1931 | L17: 1931 | M17: 6 | N17: 26300 | O17: 1521 | P17: 0 | Q17: 11858 | R17: 0 | S17: 13826 | T17: 994 | U17: 1625 | V17: 0.09 | W17: 0.321
A18: 3_13 | B18: 3 | C18: 3 | D18: 3_3 | E18: 3 | F18: 11 | G18: 6 | H18: 13 | I18: 97.5 | J18: 0 | K18: 1931 | L18: 1931 | M18: 6 | N18: 26611 | O18: 1498 | P18: 0 | Q18: 11858 | R18: 0 | S18: 13363 | T18: 958 | U18: 1625 | V18: 0.09 | W18: 0.309
A19: 3_14 | B19: 3 | C19: 4 | D19: 3_4 | E19: 3 | F19: 11 | G19: 6 | H19: 14 | I19: 97.5 | J19: 0 | K19: 1931 | L19: 1931 | M19: 6 | N19: 26818 | O19: 1495 | P19: 0 | Q19: 11858 | R19: 0 | S19: 13304 | T19: 1223 | U19: 1625 | V19: 0.09 | W19: 0.395
A20: 3_15 | B20: 3 | C20: 5 | D20: 3_5 | E20: 3 | F20: 11 | G20: 6 | H20: 15 | I20: 97.5 | J20: 0 | K20: 1931 | L20: 1931 | M20: 6 | N20: 26951 | O20: 1504 | P20: 0 | Q20: 11858 | R20: 0 | S20: 13482 | T20: 1178 | U20: 1625 | V20: 0.09 | W20: 0.38
A21: 4_20 | B21: 4 | C21: 1 | D21: 4_1 | E21: 3 | F21: 11 | G21: 18 | H21: 20 | I21: 92.4 | J21: 0 | K21: 1931 | L21: 1931 | M21: 6 | N21: 25528 | O21: 1522 | P21: 0 | Q21: 12772 | R21: 0 | S21: 12564 | T21: 1115 | U21: 711 | V21: 0.04 | W21: 0.36
A22: 4_21 | B22: 4 | C22: 2 | D22: 4_2 | E22: 3 | F22: 11 | G22: 18 | H22: 21 | I22: 92.4 | J22: 0 | K22: 1931 | L22: 1931 | M22: 6 | N22: 25254 | O22: 1501 | P22: 0 | Q22: 12772 | R22: 0 | S22: 12138 | T22: 1267 | U22: 711 | V22: 0.04 | W22: 0.409
A23: 4_22 | B23: 4 | C23: 3 | D23: 4_3 | E23: 3 | F23: 11 | G23: 18 | H23: 22 | I23: 92.3 | J23: 0 | K23: 1931 | L23: 1931 | M23: 6 | N23: 24246 | O23: 1418 | P23: 0 | Q23: 12772 | R23: 0 | S23: 10474 | T23: 1384 | U23: 711 | V23: 0.04 | W23: 0.447
A24: 4_23 | B24: 4 | C24: 4 | D24: 4_4 | E24: 3 | F24: 11 | G24: 18 | H24: 23 | I24: 93.4 | J24: 0 | K24: 1931 | L24: 1931 | M24: 6 | N24: 22184 | O24: 1261 | P24: 0 | Q24: 12772 | R24: 0 | S24: 7341 | T24: 1399 | U24: 711 | V24: 0.04 | W24: 0.452
A25: 5_23 | B25: 5 | C25: 1 | D25: 5_1 | E25: 4 | F25: 3 | G25: 10 | H25: 23 | I25: 194.4 | J25: 0 | K25: 1932 | L25: 1932 | M25: 5 | N25: 31414 | O25: 2850 | P25: 0 | Q25: 13873 | R25: 3000 | S25: 12783 | T25: 738 | U25: 2136 | V25: 0.104 | W25: 0.238
A26: 6_10 | B26: 6 | C26: 1 | D26: 6_1 | E26: 6 | F26: 11 | G26: 10 | H26: 10 | I26: 309.8 | J26: 0 | K26: 1934 | L26: 1934 | M26: 38 | N26: 23061 | O26: 1412 | P26: 0 | Q26: 11586 | R26: 0 | S26: 12028 | T26: 153 | U26: 1897 | V26: 0.106 | W26: 0.049
A27: 6_11 | B27: 6 | C27: 2 | D27: 6_2 | E27: 6 | F27: 11 | G27: 10 | H27: 11 | I27: 381.6 | J27: 0 | K27: 1934 | L27: 1934 | M27: 38 | N27: 23679 | O27: 1438 | P27: 0 | Q27: 11514 | R27: 0 | S27: 12645 | T27: 154 | U27: 1969 | V27: 0.109 | W27: 0.05
A28: 6_12 | B28: 6 | C28: 3 | D28: 6_3 | E28: 6 | F28: 11 | G28: 10 | H28: 12 | I28: 381.6 | J28: 0 | K28: 1934 | L28: 1934 | M28: 38 | N28: 24041 | O28: 1432 | P28: 0 | Q28: 11514 | R28: 0 | S28: 12520 | T28: 101 | U28: 1969 | V28: 0.109 | W28: 0.033
A29: 6_13 | B29: 6 | C29: 4 | D29: 6_4 | E29: 6 | F29: 11 | G29: 10 | H29: 13 | I29: 381.6 | J29: 0 | K29: 1934 | L29: 1934 | M29: 38 | N29: 24298 | O29: 1408 | P29: 0 | Q29: 11514 | R29: 0 | S29: 12043 | T29: 24 | U29: 1969 | V29: 0.109 | W29: 0.008
A30: 6_14 | B30: 6 | C30: 5 | D30: 6_5 | E30: 6 | F30: 11 | G30: 10 | H30: 14 | I30: 342.6 | J30: 0 | K30: 1934 | L30: 1934 | M30: 38 | N30: 24468 | O30: 1421 | P30: 0 | Q30: 11553 | R30: 0 | S30: 12243 | T30: -6 | U30: 1930 | V30: 0.107 | W30: -0.002
A31: 6_15 | B31: 6 | C31: 6 | D31: 6_6 | E31: 6 | F31: 11 | G31: 10 | H31: 15 | I31: 55.8 | J31: 0 | K31: 1934 | L31: 1934 | M31: 38 | N31: 24572 | O31: 1446 | P31: 0 | Q31: 11840 | R31: 0 | S31: 12352 | T31: -10 | U31: 1643 | V31: 0.091 | W31: -0.003
A32: 7_7 | B32: 7 | C32: 1 | D32: 7_1 | E32: 6 | F32: 11 | G32: 12 | H32: 7 | I32: 765.8 | J32: 0 | K32: 1934 | L32: 1934 | M32: 38 | N32: 20703 | O32: 1260 | P32: 0 | Q32: 11454 | R32: 0 | S32: 9163 | T32: 336 | U32: 2030 | V32: 0.113 | W32: 0.108
A33: 7_8 | B33: 7 | C33: 2 | D33: 7_2 | E33: 6 | F33: 11 | G33: 12 | H33: 8 | I33: 758.1 | J33: 0 | K33: 1934 | L33: 1934 | M33: 38 | N33: 22280 | O33: 1344 | P33: 0 | Q33: 11461 | R33: 0 | S33: 10829 | T33: 248 | U33: 2022 | V33: 0.112 | W33: 0.08
A34: 7_9 | B34: 7 | C34: 3 | D34: 7_3 | E34: 6 | F34: 11 | G34: 12 | H34: 9 | I34: 758.1 | J34: 0 | K34: 1934 | L34: 1934 | M34: 38 | N34: 23620 | O34: 1390 | P34: 0 | Q34: 11461 | R34: 0 | S34: 11758 | T34: 658 | U34: 2022 | V34: 0.112 | W34: 0.213
A35: 7_10 | B35: 7 | C35: 4 | D35: 7_4 | E35: 6 | F35: 11 | G35: 12 | H35: 10 | I35: 758.1 | J35: 0 | K35: 1934 | L35: 1934 | M35: 38 | N35: 24601 | O35: 1443 | P35: 0 | Q35: 11461 | R35: 0 | S35: 12807 | T35: 590 | U35: 2022 | V35: 0.112 | W35: 0.19
A36: 7_11 | B36: 7 | C36: 5 | D36: 7_5 | E36: 6 | F36: 11 | G36: 12 | H36: 11 | I36: 758.1 | J36: 0 | K36: 1934 | L36: 1934 | M36: 38 | N36: 25242 | O36: 1493 | P36: 0 | Q36: 11461 | R36: 0 | S36: 13810 | T36: 228 | U36: 2022 | V36: 0.112 | W36: 0.074
A37: 7_12 | B37: 7 | C37: 6 | D37: 7_6 | E37: 6 | F37: 11 | G37: 12 | H37: 12 | I37: 758.1 | J37: 0 | K37: 1934 | L37: 1934 | M37: 38 | N37: 25616 | O37: 1496 | P37: 0 | Q37: 11461 | R37: 0 | S37: 13876 | T37: -3 | U37: 2022 | V37: 0.112 | W37: -0.001
A38: 7_13 | B38: 7 | C38: 7 | D38: 7_7 | E38: 6 | F38: 11 | G38: 12 | H38: 13 | I38: 758.1 | J38: 0 | K38: 1934 | L38: 1934 | M38: 38 | N38: 25879 | O38: 1469 | P38: 0 | Q38: 11461 | R38: 0 | S38: 13335 | T38: -10 | U38: 2022 | V38: 0.112 | W38: -0.003
A39: 7_14 | B39: 7 | C39: 8 | D39: 7_8 | E39: 6 | F39: 11 | G39: 12 | H39: 14 | I39: 758.1 | J39: 0 | K39: 1934 | L39: 1934 | M39: 38 | N39: 26054 | O39: 1478 | P39: 0 | Q39: 11461 | R39: 0 | S39: 13516 | T39: -16 | U39: 2022 | V39: 0.112 | W39: -0.005
A40: 7_15 | B40: 7 | C40: 9 | D40: 7_9 | E40: 6 | F40: 11 | G40: 12 | H40: 15 | I40: 758.1 | J40: 0 | K40: 1934 | L40: 1934 | M40: 38 | N40: 26162 | O40: 1483 | P40: 0 | Q40: 11461 | R40: 0 | S40: 13611 | T40: -3 | U40: 2022 | V40: 0.112 | W40: -0.001
A41: 7_16 | B41: 7 | C41: 10 | D41: 7_10 | E41: 6 | F41: 11 | G41: 12 | H41: 16 | I41: 758.1 | J41: 0 | K41: 1934 | L41: 1934 | M41: 38 | N41: 26238 | O41: 1525 | P41: 0 | Q41: 11461 | R41: 0 | S41: 14461 | T41: 49 | U41: 2022 | V41: 0.112 | W41: 0.016
A42: 7_17 | B42: 7 | C42: 11 | D42: 7_11 | E42: 6 | F42: 11 | G42: 12 | H42: 17 | I42: 758.1 | J42: 0 | K42: 1934 | L42: 1934 | M42: 38 | N42: 26309 | O42: 1546 | P42: 0 | Q42: 11461 | R42: 0 | S42: 14877 | T42: 228 | U42: 2022 | V42: 0.112 | W42: 0.074
A43: 7_18 | B43: 7 | C43: 12 | D43: 7_12 | E43: 6 | F43: 11 | G43: 12 | H43: 18 | I43: 758.1 | J43: 0 | K43: 1934 | L43: 1934 | M43: 38 | N43: 26185 | O43: 1527 | P43: 0 | Q43: 11461 | R43: 0 | S43: 14496 | T43: 485 | U43: 2022 | V43: 0.112 | W43: 0.157
A44: 7_19 | B44: 7 | C44: 13 | D44: 7_13 | E44: 6 | F44: 11 | G44: 12 | H44: 19 | I44: 744 | J44: 0 | K44: 1934 | L44: 1934 | M44: 38 | N44: 25939 | O44: 1504 | P44: 0 | Q44: 11475 | R44: 0 | S44: 14012 | T44: 723 | U44: 2008 | V44: 0.112 | W44: 0.234
A45: 7_20 | B45: 7 | C45: 14 | D45: 7_14 | E45: 6 | F45: 11 | G45: 12 | H45: 20 | I45: 726.8 | J45: 0 | K45: 1934 | L45: 1934 | M45: 38 | N45: 25659 | O45: 1491 | P45: 0 | Q45: 11493 | R45: 0 | S45: 13735 | T45: 720 | U45: 1991 | V45: 0.111 | W45: 0.233
A46: 7_21 | B46: 7 | C46: 15 | D46: 7_15 | E46: 6 | F46: 11 | G46: 12 | H46: 21 | I46: 726.8 | J46: 0 | K46: 1934 | L46: 1934 | M46: 38 | N46: 25429 | O46: 1482 | P46: 0 | Q46: 11493 | R46: 0 | S46: 13548 | T46: 678 | U46: 1991 | V46: 0.111 | W46: 0.219
A47: 7_22 | B47: 7 | C47: 16 | D47: 7_16 | E47: 6 | F47: 11 | G47: 12 | H47: 22 | I47: 726.8 | J47: 0 | K47: 1934 | L47: 1934 | M47: 38 | N47: 24526 | O47: 1409 | P47: 0 | Q47: 11493 | R47: 0 | S47: 12098 | T47: 684 | U47: 1991 | V47: 0.111 | W47: 0.221
A48: 7_23 | B48: 7 | C48: 17 | D48: 7_17 | E48: 6 | F48: 11 | G48: 12 | H48: 23 | I48: 727.8 | J48: 0 | K48: 1934 | L48: 1934 | M48: 38 | N48: 22462 | O48: 1252 | P48: 0 | Q48: 11493 | R48: 0 | S48: 8952 | T48: 710 | U48: 1991 | V48: 0.111 | W48: 0.229
A49: 7_24 | B49: 7 | C49: 18 | D49: 7_18 | E49: 6 | F49: 11 | G49: 12 | H49: 24 | I49: 727.9 | J49: 0 | K49: 1934 | L49: 1934 | M49: 38 | N49: 20470 | O49: 1152 | P49: 0 | Q49: 11493 | R49: 0 | S49: 6957 | T49: 714 | U49: 1991 | V49: 0.111 | W49: 0.23
A50: 8_9 | B50: 8 | C50: 1 | D50: 8_1 | E50: 6 | F50: 11 | G50: 29 | H50: 9 | I50: 12.9 | J50: 0 | K50: 1934 | L50: 1934 | M50: 38 | N50: 21634 | O50: 1300 | P50: 0 | Q50: 12642 | R50: 0 | S50: 8294 | T50: 350 | U50: 841 | V50: 0.047 | W50: 0.113
A51: 8_10 | B51: 8 | C51: 2 | D51: 8_2 | E51: 6 | F51: 11 | G51: 29 | H51: 10 | I51: 12.9 | J51: 0 | K51: 1934 | L51: 1934 | M51: 38 | N51: 22132 | O51: 1332 | P51: 0 | Q51: 12642 | R51: 0 | S51: 8936 | T51: 206 | U51: 841 | V51: 0.047 | W51: 0.067
A52: 8_11 | B52: 8 | C52: 3 | D52: 8_3 | E52: 6 | F52: 11 | G52: 29 | H52: 11 | I52: 12.9 | J52: 0 | K52: 1934 | L52: 1934 | M52: 38 | N52: 22464 | O52: 1352 | P52: 0 | Q52: 12642 | R52: 0 | S52: 9342 | T52: 132 | U52: 841 | V52: 0.047 | W52: 0.043
A53: 8_12 | B53: 8 | C53: 4 | D53: 8_4 | E53: 6 | F53: 11 | G53: 29 | H53: 12 | I53: 12.9 | J53: 0 | K53: 1934 | L53: 1934 | M53: 38 | N53: 22631 | O53: 1366 | P53: 0 | Q53: 12642 | R53: 0 | S53: 9623 | T53: 18 | U53: 841 | V53: 0.047 | W53: 0.006
A54: 8_13 | B54: =IF(E54=E53, (IF(F54=F53, (IF(G54=G53, (IF(H54=H53+1,B53,B53+1)), (IF(AND(G54=G53+1,H54=1,H53=24),B53,B53+1)))), B53+1)), B53+1) -> 8 | C54: 5 | D54: 8_5 | E54: 6 | F54: 11 | G54: 29 | H54: 13 | I54: 12.9 | J54: 0 | K54: 1934 | L54: 1934 | M54: 38 | N54: 22765 | O54: 1373 | P54: 0 | Q54: 12642 | R54: 0 | S54: 9755 | T54: 20 | U54: 841 | V54: 0.047 | W54: 0.006
A55: 8_14 | B55: =IF(E55=E54, (IF(F55=F54, (IF(G55=G54, (IF(H55=H54+1,B54,B54+1)), (IF(AND(G55=G54+1,H55=1,H54=24),B54,B54+1)))), B54+1)), B54+1) -> 8 | C55: 6 | D55: 8_6 | E55: 6 | F55: 11 | G55: 29 | H55: 14 | I55: 12.9 | J55: 0 | K55: 1934 | L55: 1934 | M55: 38 | N55: 22861 | O55: 1378 | P55: 0 | Q55: 12642 | R55: 0 | S55: 9851 | T55: 20 | U55: 841 | V55: 0.047 | W55: 0.006
A56: 8_15 | B56: 8 | C56: 7 | D56: 8_7 | E56: 6 | F56: 11 | G56: 29 | H56: 15 | I56: 12.9 | J56: 0 | K56: 1934 | L56: 1934 | M56: 38 | N56: 22890 | O56: 1378 | P56: 0 | Q56: 12642 | R56: 0 | S56: 9859 | T56: 41 | U56: 841 | V56: 0.047 | W56: 0.013
A57: 8_16 | B57: 8 | C57: 8 | D57: 8_8 | E57: 6 | F57: 11 | G57: 29 | H57: 16 | I57: 12.9 | J57: 0 | K57: 1934 | L57: 1934 | M57: 38 | N57: 22888 | O57: 1379 | P57: 0 | Q57: 12642 | R57: 0 | S57: 9883 | T57: 15 | U57: 841 | V57: 0.047 | W57: 0.005
A58: 9_2 | B58: 9 | C58: 1 | D58: 9_1 | E58: 8 | F58: 4 | G58: 8 | H58: 2 | I58: 79.4 | J58: 0 | K58: 1936 | L58: 1936 | M58: 20 | N58: 27241 | O58: 2850 | P58: 0 | Q58: 15197 | R58: 3000 | S58: 7755 | T58: 253 | U58: 822 | V58: 0.04 | W58: 0.082
A59: 9_3 | B59: 9 | C59: 2 | D59: 9_2 | E59: 8 | F59: 4 | G59: 8 | H59: 3 | I59: 79.4 | J59: 0 | K59: 1936 | L59: 1936 | M59: 20 | N59: 27088 | O59: 2850 | P59: 0 | Q59: 15197 | R59: 3000 | S59: 7652 | T59: 203 | U59: 822 | V59: 0.04 | W59: 0.065
A60: 9_4 | B60: 9 | C60: 3 | D60: 9_3 | E60: 8 | F60: 4 | G60: 8 | H60: 4 | I60: 79.4 | J60: 0 | K60: 1936 | L60: 1936 | M60: 20 | N60: 27379 | O60: 2850 | P60: 0 | Q60: 15197 | R60: 3000 | S60: 7608 | T60: 538 | U60: 822 | V60: 0.04 | W60: 0.174
A61: 9_5 | B61: 9 | C61: 4 | D61: 9_4 | E61: 8 | F61: 4 | G61: 8 | H61: 5 | I61: 79.4 | J61: 0 | K61: 1936 | L61: 1936 | M61: 20 | N61: 28402 | O61: 2850 | P61: 0 | Q61: 15197 | R61: 3000 | S61: 7740 | T61: 1429 | U61: 822 | V61: 0.04 | W61: 0.461
A62: 9_6 | B62: 9 | C62: 5 | D62: 9_5 | E62: 8 | F62: 4 | G62: 8 | H62: 6 | I62: 79.4 | J62: 0 | K62: 1936 | L62: 1936 | M62: 20 | N62: 30952 | O62: 2850 | P62: 0 | Q62: 15197 | R62: 3000 | S62: 10087 | T62: 1632 | U62: 822 | V62: 0.04 | W62: 0.527
A63: 9_7 | B63: 9 | C63: 6 | D63: 9_6 | E63: 8 | F63: 4 | G63: 8 | H63: 7 | I63: 146.4 | J63: 0 | K63: 1936 | L63: 1936 | M63: 20 | N63: 34847 | O63: 2850 | P63: 0 | Q63: 15197 | R63: 3000 | S63: 15066 | T63: 1465 | U63: 822 | V63: 0.04 | W63: 0.473
A64: 9_8 | B64: 9 | C64: 7 | D64: 9_7 | E64: 8 | F64: 4 | G64: 8 | H64: 8 | I64: 146.4 | J64: 0 | K64: 1936 | L64: 1936 | M64: 20 | N64: 37326 | O64: 2850 | P64: 0 | Q64: 15197 | R64: 3000 | S64: 17258 | T64: 1751 | U64: 822 | V64: 0.04 | W64: 0.565
A65: 9_9 | B65: 9 | C65: 8 | D65: 9_8 | E65: 8 | F65: 4 | G65: 8 | H65: 9 | I65: 146.4 | J65: 0 | K65: 1936 | L65: 1936 | M65: 20 | N65: 37696 | O65: 2850 | P65: 0 | Q65: 15197 | R65: 3000 | S65: 17507 | T65: 1872 | U65: 822 | V65: 0.04 | W65: 0.604
A66: 9_10 | B66: 9 | C66: 9 | D66: 9_9 | E66: 8 | F66: 4 | G66: 8 | H66: 10 | I66: 146.4 | J66: 0 | K66: 1936 | L66: 1936 | M66: 20 | N66: 37378 | O66: 2850 | P66: 0 | Q66: 15197 | R66: 3000 | S66: 17255 | T66: 1807 | U66: 822 | V66: 0.04 | W66: 0.583
A67: 9_11 | B67: 9 | C67: 10 | D67: 9_10 | E67: 8 | F67: 4 | G67: 8 | H67: 11 | I67: 146.4 | J67: 0 | K67: 1936 | L67: 1936 | M67: 20 | N67: 36749 | O67: 2850 | P67: 0 | Q67: 15197 | R67: 3000 | S67: 16460 | T67: 1973 | U67: 822 | V67: 0.04 | W67: 0.637
A68: 9_12 | B68: 9 | C68: 11 | D68: 9_11 | E68: 8 | F68: 4 | G68: 8 | H68: 12 | I68: 146.4 | J68: 0 | K68: 1936 | L68: 1936 | M68: 20 | N68: 35853 | O68: 2850 | P68: 0 | Q68: 15197 | R68: 3000 | S68: 15044 | T68: 1953 | U68: 822 | V68: 0.04 | W68: 0.63
A69: =CONCATENATE(B69,"_",H69) -> 9_13 | B69: 9 | C69: 12 | D69: 9_12 | E69: 8 | F69: 4 | G69: 8 | H69: 13 | I69: 146.4 | J69: 0 | K69: 1936 | L69: 1936 | M69: 20 | N69: 35051 | O69: 2850 | P69: 0 | Q69: 15197 | R69: 3000 | S69: 13422 | T69: 1963 | U69: 822 | V69: 0.04 | W69: 0.634
A70: 9_14 | B70: =IF(E70=E69, (IF(F70=F69, (IF(G70=G69, (IF(H70=H69+1,B69,B69+1)), (IF(AND(G70=G69+1,H70=1,H69=24),B69,B69+1)))), B69+1)), B69+1) -> 9 | C70: =IF(B70=B69,C69+1,1) -> 13 | D70: =CONCATENATE(B70,"_",C70) -> 9_13 | E70: 8 | F70: 4 | G70: 8 | H70: 14 | I70: 146.4 | J70: 0 | K70: 1936 | L70: 1936 | M70: 20 | N70: 34348 | O70: 2850 | P70: 0 | Q70: 15197 | R70: 3000 | S70: 12378 | T70: 2304 | U70: 822 | V70: 0.04 | W70: 0.744
A71: 9_15 | B71: 9 | C71: 14 | D71: 9_14 | E71: 8 | F71: 4 | G71: 8 | H71: 15 | I71: 146.4 | J71: 0 | K71: 1936 | L71: 1936 | M71: 20 | N71: 33907 | O71: 2850 | P71: 0 | Q71: 15197 | R71: 3000 | S71: 12073 | T71: 2168 | U71: 822 | V71: 0.04 | W71: 0.7
A72: 10_8 | B72: 10 | C72: 1 | D72: 10_1 | E72: 9 | F72: 10 | G72: 15 | H72: 8 | I72: 30.3 | J72: 0 | K72: 1937 | L72: 1937 | M72: 31 | N72: 22424 | O72: 1420 | P72: 0 | Q72: 12804 | R72: 0 | S72: 10476 | T72: -1 | U72: 688 | V72: 0.038 | W72: 0
A73: 10_9 | B73: 10 | C73: 2 | D73: 10_2 | E73: 9 | F73: 10 | G73: 15 | H73: 9 | I73: 30.3 | J73: 0 | K73: 1937 | L73: 1937 | M73: 31 | N73: 23928 | O73: 1493 | P73: 0 | Q73: 12804 | R73: 0 | S73: 11937 | T73: 42 | U73: 688 | V73: 0.038 | W73: 0.014
A74: 10_10 | B74: 10 | C74: 3 | D74: 10_3 | E74: 9 | F74: 10 | G74: 15 | H74: 10 | I74: 30.3 | J74: 0 | K74: 1937 | L74: 1937 | M74: 31 | N74: 25040 | O74: 1550 | P74: 0 | Q74: 12804 | R74: 0 | S74: 13067 | T74: 24 | U74: 688 | V74: 0.038 | W74: 0.008
A75: 10_11 | B75: 10 | C75: 4 | D75: 10_4 | E75: 9 | F75: 10 | G75: 15 | H75: 11 | I75: 30.3 | J75: 0 | K75: 1937 | L75: 1937 | M75: 31 | N75: 25770 | O75: 1587 | P75: 0 | Q75: 12804 | R75: 0 | S75: 13814 | T75: 7 | U75: 688 | V75: 0.038 | W75: 0.002
A76: 10_12 | B76: 10 | C76: 5 | D76: 10_5 | E76: 9 | F76: 10 | G76: 15 | H76: 12 | I76: 30.3 | J76: 0 | K76: 1937 | L76: 1937 | M76: 31 | N76: 26185 | O76: 1581 | P76: 0 | Q76: 12804 | R76: 0 | S76: 13684 | T76: 12 | U76: 688 | V76: 0.038 | W76: 0.004
A77: 10_13 | B77: 10 | C77: 6 | D77: 10_6 | E77: 9 | F77: 10 | G77: 15 | H77: 13 | I77: 30.3 | J77: 0 | K77: 1937 | L77: 1937 | M77: 31 | N77: 26455 | O77: 1553 | P77: 0 | Q77: 12804 | R77: 0 | S77: 13138 | T77: 17 | U77: 688 | V77: 0.038 | W77: 0.006
A78: 10_14 | B78: 10 | C78: 7 | D78: 10_7 | E78: 9 | F78: 10 | G78: 15 | H78: 14 | I78: 30.3 | J78: 0 | K78: 1937 | L78: 1937 | M78: 31 | N78: 26611 | O78: 1560 | P78: 0 | Q78: 12804 | R78: 0 | S78: 13267 | T78: 44 | U78: 688 | V78: 0.038 | W78: 0.015
A79: 10_15 | B79: 10 | C79: 8 | D79: 10_8 | E79: 9 | F79: 10 | G79: 15 | H79: 15 | I79: 30.3 | J79: 0 | K79: 1937 | L79: 1937 | M79: 31 | N79: 26707 | O79: 1565 | P79: 0 | Q79: 12804 | R79: 0 | S79: 13381 | T79: 26 | U79: 688 | V79: 0.038 | W79: 0.009
A80: 10_16 | B80: 10 | C80: 9 | D80: 10_9 | E80: 9 | F80: 10 | G80: 15 | H80: 16 | I80: 30.3 | J80: 0 | K80: 1937 | L80: 1937 | M80: 31 | N80: 26802 | O80: 1609 | P80: 0 | Q80: 12804 | R80: 0 | S80: 14246 | T80: 82 | U80: 688 | V80: 0.038 | W80: 0.027
A81: 10_17 | B81: 10 | C81: 10 | D81: 10_10 | E81: 9 | F81: 10 | G81: 15 | H81: 17 | I81: 30.3 | J81: 0 | K81: 1937 | L81: 1937 | M81: 31 | N81: 26976 | O81: 1639 | P81: 0 | Q81: 12804 | R81: 0 | S81: 14861 | T81: 166 | U81: 688 | V81: 0.038 | W81: 0.054
A82: 10_18 | B82: 10 | C82: 11 | D82: 10_11 | E82: 9 | F82: 10 | G82: 15 | H82: 18 | I82: 30.3 | J82: 0 | K82: 1937 | L82: 1937 | M82: 31 | N82: 26792 | O82: 1620 | P82: 0 | Q82: 12804 | R82: 0 | S82: 14480 | T82: 363 | U82: 688 | V82: 0.038 | W82: 0.117
A83: 10_19 | B83: 10 | C83: 12 | D83: 10_12 | E83: 9 | F83: 10 | G83: 15 | H83: 19 | I83: 30.3 | J83: 0 | K83: 1937 | L83: 1937 | M83: 31 | N83: 26145 | O83: 1570 | P83: 0 | Q83: 12804 | R83: 0 | S83: 13471 | T83: 725 | U83: 688 | V83: 0.038 | W83: 0.234
A84: 10_20 | B84: 10 | C84: 13 | D84: 10_13 | E84: 9 | F84: 10 | G84: 15 | H84: 20 | I84: 30.3 | J84: 0 | K84: 1937 | L84: 1937 | M84: 31 | N84: 25591 | O84: 1529 | P84: 0 | Q84: 12804 | R84: 0 | S84: 12660 | T84: 981 | U84: 688 | V84: 0.038 | W84: 0.317
A85: 10_21 | B85: 10 | C85: 14 | D85: 10_14 | E85: 9 | F85: 10 | G85: 15 | H85: 21 | I85: 30.3 | J85: 0 | K85: 1937 | L85: 1937 | M85: 31 | N85: 25564 | O85: 1522 | P85: 0 | Q85: 12804 | R85: 0 | S85: 12521 | T85: 1094 | U85: 688 | V85: 0.038 | W85: 0.353
A86: 10_22 | B86: 10 | C86: 15 | D86: 10_15 | E86: 9 | F86: 10 | G86: 15 | H86: 22 | I86: 30.3 | J86: 0 | K86: 1937 | L86: 1937 | M86: 31 | N86: 25137 | O86: 1464 | P86: 0 | Q86: 12804 | R86: 0 | S86: 11350 | T86: 1298 | U86: 688 | V86: 0.038 | W86: 0.419
A87: 11_13 | B87: 11 | C87: 1 | D87: 11_1 | E87: 9 | F87: 10 | G87: 23 | H87: 13 | I87: 16.2 | J87: 0 | K87: 1937 | L87: 1937 | M87: 31 | N87: 25351 | O87: 1483 | P87: 0 | Q87: 12351 | R87: 0 | S87: 12369 | T87: 150 | U87: 1141 | V87: 0.063 | W87: 0.049
A88: 11_14 | B88: 11 | C88: 2 | D88: 11_2 | E88: 9 | F88: 10 | G88: 23 | H88: 14 | I88: 16.2 | J88: 0 | K88: 1937 | L88: 1937 | M88: 31 | N88: 25540 | O88: 1499 | P88: 0 | Q88: 12351 | R88: 0 | S88: 12687 | T88: 21 | U88: 1141 | V88: 0.063 | W88: 0.007
A89: 11_15 | B89: 11 | C89: 3 | D89: 11_3 | E89: 9 | F89: 10 | G89: 23 | H89: 15 | I89: 16.2 | J89: 0 | K89: 1937 | L89: 1937 | M89: 31 | N89: 25663 | O89: 1507 | P89: 0 | Q89: 12351 | R89: 0 | S89: 12840 | T89: -9 | U89: 1141 | V89: 0.063 | W89: -0.003
A90: 11_16 | B90: 11 | C90: 4 | D90: 11_4 | E90: 9 | F90: 10 | G90: 23 | H90: 16 | I90: 16.2 | J90: 0 | K90: 1937 | L90: 1937 | M90: 31 | N90: 25770 | O90: 1553 | P90: 0 | Q90: 12351 | R90: 0 | S90: 13765 | T90: -1 | U90: 1141 | V90: 0.063 | W90: 0
A91: 11_17 | B91: 11 | C91: 5 | D91: 11_5 | E91: 9 | F91: 10 | G91: 23 | H91: 17 | I91: 16.2 | J91: 0 | K91: 1937 | L91: 1937 | M91: 31 | N91: 25941 | O91: 1588 | P91: 0 | Q91: 12351 | R91: 0 | S91: 14468 | T91: -9 | U91: 1141 | V91: 0.063 | W91: -0.003
A92: 11_18 | B92: 11 | C92: 6 | D92: 11_6 | E92: 9 | F92: 10 | G92: 23 | H92: 18 | I92: 16.2 | J92: 0 | K92: 1937 | L92: 1937 | M92: 31 | N92: 25774 | O92: 1580 | P92: 0 | Q92: 12351 | R92: 0 | S92: 14305 | T92: -12 | U92: 1141 | V92: 0.063 | W92: -0.004
A93: 11_19 | B93: 11 | C93: 7 | D93: 11_7 | E93: 9 | F93: 10 | G93: 23 | H93: 19 | I93: 16.2 | J93: 0 | K93: 1937 | L93: 1937 | M93: 31 | N93: 25231 | O93: 1553 | P93: 0 | Q93: 12351 | R93: 0 | S93: 13759 | T93: -10 | U93: 1141 | V93: 0.063 | W93: -0.003
A94: 11_20 | B94: 11 | C94: 8 | D94: 11_8 | E94: 9 | F94: 10 | G94: 23 | H94: 20 | I94: 16.2 | J94: 0 | K94: 1937 | L94: 1937 | M94: 31 | N94: 24750 | O94: 1529 | P94: 0 | Q94: 12351 | R94: 0 | S94: 13279 | T94: -11 | U94: 1141 | V94: 0.063 | W94: -0.003
A95: 11_21 | B95: 11 | C95: 9 | D95: 11_9 | E95: 9 | F95: 10 | G95: 23 | H95: 21 | I95: 16.2 | J95: 0 | K95: 1937 | L95: 1937 | M95: 31 | N95: 24670 | O95: 1525 | P95: 0 | Q95: 12351 | R95: 0 | S95: 13200 | T95: -11 | U95: 1141 | V95: 0.063 | W95: -0.003
A96: 11_22 | B96: 11 | C96: 10 | D96: 11_10 | E96: 9 | F96: 10 | G96: 23 | H96: 22 | I96: 16.2 | J96: 0 | K96: 1937 | L96: 1937 | M96: 31 | N96: 24122 | O96: 1470 | P96: 0 | Q96: 12351 | R96: 0 | S96: 12113 | T96: -12 | U96: 1141 | V96: 0.063 | W96: -0.004
A97: 12_11 | B97: 12 | C97: 1 | D97: 12_1 | E97: 9 | F97: 10 | G97: 28 | H97: 11 | I97: 35.9 | J97: 0 | K97: 1937 | L97: 1937 | M97: 31 | N97: 24919 | O97: 1545 | P97: 0 | Q97: 12803 | R97: 0 | S97: 12978 | T97: -11 | U97: 689 | V97: 0.038 | W97: -0.004
A98: 12_12 | B98: 12 | C98: 2 | D98: 12_2 | E98: 9 | F98: 10 | G98: 28 | H98: 12 | I98: 205.3 | J98: 0 | K98: 1937 | L98: 1937 | M98: 31 | N98: 25345 | O98: 1527 | P98: 0 | Q98: 12633 | R98: 0 | S98: 12853 | T98: -1 | U98: 859 | V98: 0.048 | W98: 0
A99: 12_13 | B99: 12 | C99: 3 | D99: 12_3 | E99: 9 | F99: 10 | G99: 28 | H99: 13 | I99: 205.2 | J99: 0 | K99: 1937 | L99: 1937 | M99: 31 | N99: 25638 | O99: 1498 | P99: 0 | Q99: 12633 | R99: 0 | S99: 12281 | T99: 53 | U99: 859 | V99: 0.048 | W99: 0.017
A100: 12_14 | B100: 12 | C100: 4 | D100: 12_4 | E100: 9 | F100: 10 | G100: 28 | H100: 14 | I100: 205.2 | J100: 0 | K100: 1937 | L100: 1937 | M100: 31 | N100: 25826 | O100: 1506 | P100: 0 | Q100: 12633 | R100: 0 | S100: 12438 | T100: 84 | U100: 859 | V100: 0.048 | W100: 0.027
A101: 12_15 | B101: 12 | C101: 5 | D101: 12_5 | E101: 9 | F101: 10 | G101: 28 | H101: 15 | I101: 205.2 | J101: 0 | K101: 1937 | L101: 1937 | M101: 31 | N101: 25946 | O101: 1509 | P101: 0 | Q101: 12633 | R101: 0 | S101: 12500 | T101: 143 | U101: 859 | V101: 0.048 | W101: 0.046
A102: 12_16 | B102: 12 | C102: 6 | D102: 12_6 | E102: 9 | F102: 10 | G102: 28 | H102: 16 | I102: 205.3 | J102: 0 | K102: 1937 | L102: 1937 | M102: 31 | N102: 26046 | O102: 1554 | P102: 0 | Q102: 12633 | R102: 0 | S102: 13385 | T102: 183 | U102: 859 | V102: 0.048 | W102: 0.059
A103: 12_17 | B103: 12 | C103: 7 | D103: 12_7 | E103: 9 | F103: 10 | G103: 28 | H103: 17 | I103: 205.3 | J103: 0 | K103: 1937 | L103: 1937 | M103: 31 | N103: 26188 | O103: 1582 | P103: 0 | Q103: 12633 | R103: 0 | S103: 13957 | T103: 278 | U103: 859 | V103: 0.048 | W103: 0.09
A104: 12_18 | B104: 12 | C104: 8 | D104: 12_8 | E104: 9 | F104: 10 | G104: 28 | H104: 18 | I104: 205.3 | J104: 0 | K104: 1937 | L104: 1937 | M104: 31 | N104: 25997 | O104: 1566 | P104: 0 | Q104: 12633 | R104: 0 | S104: 13634 | T104: 410 | U104: 859 | V104: 0.048 | W104: 0.132
A105: 12_19 | B105: 12 | C105: 9 | D105: 12_9 | E105: 9 | F105: 10 | G105: 28 | H105: 19 | I105: 205.3 | J105: 0 | K105: 1937 | L105: 1937 | M105: 31 | N105: 25483 | O105: 1534 | P105: 0 | Q105: 12633 | R105: 0 | S105: 12997 | T105: 533 | U105: 859 | V105: 0.048 | W105: 0.172
A106: 12_20 | B106: 12 | C106: 10 | D106: 12_10 | E106: 9 | F106: 10 | G106: 28 | H106: 20 | I106: 205.3 | J106: 0 | K106: 1937 | L106: 1937 | M106: 31 | N106: 25013 | O106: 1515 | P106: 0 | Q106: 12633 | R106: 0 | S106: 12605 | T106: 454 | U106: 859 | V106: 0.048 | W106: 0.147
A107: 12_21 | B107: 12 | C107: 11 | D107: 12_11 | E107: 9 | F107: 10 | G107: 28 | H107: 21 | I107: 205.3 | J107: 0 | K107: 1937 | L107: 1937 | M107: 31 | N107: 24897 | O107: 1513 | P107: 0 | Q107: 12633 | R107: 0 | S107: 12569 | T107: 375 | U107: 859 | V107: 0.048 | W107: 0.121
A108: 12_22 | B108: 12 | C108: 12 | D108: 12_12 | E108: 9 | F108: 10 | G108: 28 | H108: 22 | I108: 361 | J108: 0 | K108: 1937 | L108: 1937 | M108: 31 | N108: 24300 | O108: 1432 | P108: 0 | Q108: 12478 | R108: 0 | S108: 11166 | T108: 642 | U108: 1015 | V108: 0.056 | W108: 0.207
A109: 12_23 | B109: 12 | C109: 13 | D109: 12_13 | E109: 9 | F109: 10 | G109: 28 | H109: 23 | I109: 444.5 | J109: 0 | K109: 1937 | L109: 1937 | M109: 31 | N109: 22349 | O109: 1268 | P109: 0 | Q109: 12342 | R109: 0 | S109: 8077 | T109: 781 | U109: 1150 | V109: 0.064 | W109: 0.252
A110: 13_17 | B110: 13 | C110: 1 | D110: 13_1 | E110: 9 | F110: 11 | G110: 31 | H110: 17 | I110: 30.2 | J110: 0 | K110: 1937 | L110: 1937 | M110: 31 | N110: 23688 | O110: 1463 | P110: 0 | Q110: 11549 | R110: 0 | S110: 13100 | T110: 24 | U110: 1934 | V110: 0.108 | W110: 0.008
A111: 13_18 | B111: 13 | C111: 2 | D111: 13_2 | E111: 9 | F111: 11 | G111: 31 | H111: 18 | I111: 30.2 | J111: 0 | K111: 1937 | L111: 1937 | M111: 31 | N111: 23730 | O111: 1462 | P111: 0 | Q111: 11549 | R111: 0 | S111: 13075 | T111: 91 | U111: 1934 | V111: 0.108 | W111: 0.03
A112: 13_19 | B112: 13 | C112: 3 | D112: 13_3 | E112: 9 | F112: 11 | G112: 31 | H112: 19 | I112: 30.2 | J112: 0 | K112: 1937 | L112: 1937 | M112: 31 | N112: 23904 | O112: 1461 | P112: 0 | Q112: 11549 | R112: 0 | S112: 13052 | T112: 289 | U112: 1934 | V112: 0.108 | W112: 0.094
A113: 13_20 | B113: 13 | C113: 4 | D113: 13_4 | E113: 9 | F113: 11 | G113: 31 | H113: 20 | I113: 30.2 | J113: 0 | K113: 1937 | L113: 1937 | M113: 31 | N113: 23946 | O113: 1446 | P113: 0 | Q113: 11549 | R113: 0 | S113: 12753 | T113: 630 | U113: 1934 | V113: 0.108 | W113: 0.204
A114: 13_21 | B114: 13 | C114: 5 | D114: 13_5 | E114: 9 | F114: 11 | G114: 31 | H114: 21 | I114: 30.2 | J114: 0 | K114: 1937 | L114: 1937 | M114: 31 | N114: 23606 | O114: 1410 | P114: 0 | Q114: 11549 | R114: 0 | S114: 12028 | T114: 1014 | U114: 1934 | V114: 0.108 | W114: 0.328
A115: 13_22 | B115: 13 | C115: 6 | D115: 13_6 | E115: 9 | F115: 11 | G115: 31 | H115: 22 | I115: 30.2 | J115: 0 | K115: 1937 | L115: 1937 | M115: 31 | N115: 22426 | O115: 1325 | P115: 0 | Q115: 11549 | R115: 0 | S115: 10332 | T115: 991 | U115: 1934 | V115: 0.108 | W115: 0.32
A116: 13_23 | B116: 13 | C116: 7 | D116: 13_7 | E116: 9 | F116: 11 | G116: 31 | H116: 23 | I116: 31.3 | J116: 0 | K116: 1937 | L116: 1937 | M116: 31 | N116: 20439 | O116: 1164 | P116: 0 | Q116: 11549 | R116: 0 | S116: 7112 | T116: 1168 | U116: 1934 | V116: 0.108 | W116: 0.377
A117: 14_7 | B117: 14 | C117: 1 | D117: 14_1 | E117: 10 | F117: 11 | G117: 4 | H117: 7 | I117: 174.3 | J117: 0 | K117: 1938 | L117: 1938 | M117: 14 | N117: 21093 | O117: 1328 | P117: 0 | Q117: 12939 | R117: 0 | S117: 8442 | T117: 553 | U117: 544 | V117: 0.03 | W117: 0.179
A118: 14_8 | B118: 14 | C118: 2 | D118: 14_2 | E118: 10 | F118: 11 | G118: 4 | H118: 8 | I118: 174.3 | J118: 0 | K118: 1938 | L118: 1938 | M118: 14 | N118: 22761 | O118: 1427 | P118: 0 | Q118: 12939 | R118: 0 | S118: 10416 | T118: 247 | U118: 544 | V118: 0.03 | W118: 0.08
A119: 14_9 | B119: 14 | C119: 3 | D119: 14_3 | E119: 10 | F119: 11 | G119: 4 | H119: 9 | I119: 174.3 | J119: 0 | K119: 1938 | L119: 1938 | M119: 14 | N119: 24226 | O119: 1503 | P119: 0 | Q119: 12939 | R119: 0 | S119: 11952 | T119: 176 | U119: 544 | V119: 0.03 | W119: 0.057
A120: 14_10 | B120: 14 | C120: 4 | D120: 14_4 | E120: 10 | F120: 11 | G120: 4 | H120: 10 | I120: 174.3 | J120: 0 | K120: 1938 | L120: 1938 | M120: 14 | N120: 25314 | O120: 1557 | P120: 0 | Q120: 12939 | R120: 0 | S120: 13030 | T120: 186 | U120: 544 | V120: 0.03 | W120: 0.06
A121: 14_11 | B121: 14 | C121: 5 | D121: 14_5 | E121: 10 | F121: 11 | G121: 4 | H121: 11 | I121: 174.3 | J121: 0 | K121: 1938 | L121: 1938 | M121: 14 | N121: 26035 | O121: 1599 | P121: 0 | Q121: 12939 | R121: 0 | S121: 13873 | T121: 64 | U121: 544 | V121: 0.03 | W121: 0.021
A122: 14_12 | B122: 14 | C122: 6 | D122: 14_6 | E122: 10 | F122: 11 | G122: 4 | H122: 12 | I122: 174.3 | J122: 0 | K122: 1938 | L122: 1938 | M122: 14 | N122: 26464 | O122: 1597 | P122: 0 | Q122: 12939 | R122: 0 | S122: 13822 | T122: 5 | U122: 544 | V122: 0.03 | W122: 0.002
A123: 14_13 | B123: 14 | C123: 7 | D123: 14_7 | E123: 10 | F123: 11 | G123: 4 | H123: 13 | I123: 174.3 | J123: 0 | K123: 1938 | L123: 1938 | M123: 14 | N123: 26763 | O123: 1571 | P123: 0 | Q123: 12939 | R123: 0 | S123: 13299 | T123: 15 | U123: 544 | V123: 0.03 | W123: 0.005
A124: 14_14 | B124: 14 | C124: 8 | D124: 14_8 | E124: 10 | F124: 11 | G124: 4 | H124: 14 | I124: 174.3 | J124: 0 | K124: 1938 | L124: 1938 | M124: 14 | N124: 26960 | O124: 1579 | P124: 0 | Q124: 12939 | R124: 0 | S124: 13463 | T124: 48 | U124: 544 | V124: 0.03 | W124: 0.016
A125: 14_15 | B125: 14 | C125: 9 | D125: 14_9 | E125: 10 | F125: 11 | G125: 4 | H125: 15 | I125: 174.3 | J125: 0 | K125: 1938 | L125: 1938 | M125: 14 | N125: 27085 | O125: 1586 | P125: 0 | Q125: 12939 | R125: 0 | S125: 13605 | T125: 31 | U125: 544 | V125: 0.03 | W125: 0.01
A126: 14_16 | B126: 14 | C126: 10 | D126: 14_10 | E126: 10 | F126: 11 | G126: 4 | H126: 16 | I126: 174.3 | J126: 0 | K126: 1938 | L126: 1938 | M126: 14 | N126: 27181 | O126: 1634 | P126: 0 | Q126: 12939 | R126: 0 | S126: 14560 | T126: -2 | U126: 544 | V126: 0.03 | W126: 0
A127: 14_17 | B127: 14 | C127: 11 | D127: 14_11 | E127: 10 | F127: 11 | G127: 4 | H127: 17 | I127: 174.3 | J127: 0 | K127: 1938 | L127: 1938 | M127: 14 | N127: 27297 | O127: 1665 | P127: 0 | Q127: 12939 | R127: 0 | S127: 15192 | T127: 7 | U127: 544 | V127: 0.03 | W127: 0.003
A128: 14_18 | B128: 14 | C128: 12 | D128: 14_12 | E128: 10 | F128: 11 | G128: 4 | H128: 18 | I128: 174.3 | J128: 0 | K128: 1938 | L128: 1938 | M128: 14 | N128: 27116 | O128: 1655 | P128: 0 | Q128: 12939 | R128: 0 | S128: 14989 | T128: 29 | U128: 544 | V128: 0.03 | W128: 0.01
A129: 14_19 | B129: 14 | C129: 13 | D129: 14_13 | E129: 10 | F129: 11 | G129: 4 | H129: 19 | I129: 174.3 | J129: 0 | K129: 1938 | L129: 1938 | M129: 14 | N129: 26693 | O129: 1633 | P129: 0 | Q129: 12939 | R129: 0 | S129: 14545 | T129: 50 | U129: 544 | V129: 0.03 | W129: 0.016
A130: 14_20 | B130: 14 | C130: 14 | D130: 14_14 | E130: 10 | F130: 11 | G130: 4 | H130: 20 | I130: 174.3 | J130: 0 | K130: 1938 | L130: 1938 | M130: 14 | N130: 26281 | O130: 1611 | P130: 0 | Q130: 12939 | R130: 0 | S130: 14097 | T130: 86 | U130: 544 | V130: 0.03 | W130: 0.028
A131: 14_21 | B131: 14 | C131: 15 | D131: 14_15 | E131: 10 | F131: 11 | G131: 4 | H131: 21 | I131: 174.3 | J131: 0 | K131: 1938 | L131: 1938 | M131: 14 | N131: 26106 | O131: 1597 | P131: 0 | Q131: 12939 | R131: 0 | S131: 13820 | T131: 188 | U131: 544 | V131: 0.03 | W131: 0.061
A132: 14_22 | B132: 14 | C132: 16 | D132: 14_16 | E132: 10 | F132: 11 | G132: 4 | H132: 22 | I132: 484.4 | J132: 0 | K132: 1938 | L132: 1938 | M132: 14 | N132: 25350 | O132: 1515 | P132: 0 | Q132: 12629 | R132: 0 | S132: 12625 | T132: 87 | U132: 854 | V132: 0.047 | W132: 0.028
A133: =CONCATENATE(B133,"_",H133) -> 14_23 | B133: 14 | C133: 17 | D133: 14_17 | E133: 10 | F133: 11 | G133: 4 | H133: 23 | I133: 1442.3 | J133: 0 | K133: 1938 | L133: 1938 | M133: 14 | N133: 23282 | O133: 1294 | P133: 0 | Q133: 11672 | R133: 0 | S133: 9541 | T133: 47 | U133: 1811 | V133: 0.101 | W133: 0.015
A134: 14_24 | B134: =IF(E134=E133, (IF(F134=F133, (IF(G134=G133, (IF(H134=H133+1,B133,B133+1)), (IF(AND(G134=G133+1,H134=1,H133=24),B133,B133+1)))), B133+1)), B133+1) -> 14 | C134: =IF(B134=B133,C133+1,1) -> 18 | D134: =CONCATENATE(B134,"_",C134) -> 14_18 | E134: 10 | F134: 11 | G134: 4 | H134: 24 | I134: 1561.4 | J134: 0 | K134: 1938 | L134: 1938 | M134: 14 | N134: 21193 | O134: 1184 | P134: 0 | Q134: 11553 | R134: 0 | S134: 7512 | T134: -13 | U134: 1930 | V134: 0.107 | W134: -0.004
A135: 15_9 | B135: 15 | C135: 1 | D135: 15_1 | E135: 10 | F135: 11 | G135: 10 | H135: 9 | I135: 135.8 | J135: 0 | K135: 1938 | L135: 1938 | M135: 14 | N135: 23247 | O135: 1418 | P135: 0 | Q135: 11224 | R135: 0 | S135: 12653 | T135: 250 | U135: 2260 | V135: 0.126 | W135: 0.081
A136: 15_10 | B136: 15 | C136: 2 | D136: 15_2 | E136: 10 | F136: 11 | G136: 10 | H136: 10 | I136: 518.7 | J136: 0 | K136: 1938 | L136: 1938 | M136: 14 | N136: 24240 | O136: 1448 | P136: 0 | Q136: 10841 | R136: 0 | S136: 13774 | T136: 122 | U136: 2642 | V136: 0.147 | W136: 0.039
A137: 15_11 | B137: 15 | C137: 3 | D137: 15_3 | E137: 10 | F137: 11 | G137: 10 | H137: 11 | I137: 518.7 | J137: 0 | K137: 1938 | L137: 1938 | M137: 14 | N137: 24888 | O137: 1483 | P137: 0 | Q137: 10841 | R137: 0 | S137: 14480 | T137: 65 | U137: 2642 | V137: 0.147 | W137: 0.021
A138: 15_12 | B138: 15 | C138: 4 | D138: 15_4 | E138: 10 | F138: 11 | G138: 10 | H138: 12 | I138: 608.7 | J138: 0 | K138: 1938 | L138: 1938 | M138: 14 | N138: 25269 | O138: 1471 | P138: 0 | Q138: 10751 | R138: 0 | S138: 14368 | T138: 17 | U138: 2732 | V138: 0.152 | W138: 0.006
A139: 15_13 | B139: 15 | C139: 5 | D139: 15_5 | E139: 10 | F139: 11 | G139: 10 | H139: 13 | I139: 572.4 | J139: 0 | K139: 1938 | L139: 1938 | M139: 14 | N139: 25538 | O139: 1447 | P139: 0 | Q139: 10787 | R139: 0 | S139: 13847 | T139: -3 | U139: 2696 | V139: 0.15 | W139: -0.001
A140: 15_14 | B140: 15 | C140: 6 | D140: 15_6 | E140: 10 | F140: 11 | G140: 10 | H140: 14 | I140: 518.7 | J140: 0 | K140: 1938 | L140: 1938 | M140: 14 | N140: 25718 | O140: 1460 | P140: 0 | Q140: 10841 | R140: 0 | S140: 14023 | T140: 1 | U140: 2642 | V140: 0.147 | W140: 0
A141: 15_15 | B141: 15 | C141: 7 | D141: 15_7 | E141: 10 | F141: 11 | G141: 10 | H141: 15 | I141: 518.7 | J141: 0 | K141: 1938 | L141: 1938 | M141: 14 | N141: 25827 | O141: 1465 | P141: 0 | Q141: 10841 | R141: 0 | S141: 14125 | T141: 7 | U141: 2642 | V141: 0.147 | W141: 0.002
A142: 15_16 | B142: 15 | C142: 8 | D142: 15_8 | E142: 10 | F142: 11 | G142: 10 | H142: 16 | I142: 518.7 | J142: 0 | K142: 1938 | L142: 1938 | M142: 14 | N142: 25906 | O142: 1509 | P142: 0 | Q142: 10841 | R142: 0 | S142: 15008 | T142: 29 | U142: 2642 | V142: 0.147 | W142: 0.01
A143: 15_17 | B143: 15 | C143: 9 | D143: 15_9 | E143: 10 | F143: 11 | G143: 10 | H143: 17 | I143: 756.7 | J143: 0 | K143: 1938 | L143: 1938 | M143: 14 | N143: 25984 | O143: 1517 | P143: 0 | Q143: 10603 | R143: 0 | S143: 15487 | T143: 154 | U143: 2880 | V143: 0.16 | W143: 0.05
A144: 15_18 | B144: 15 | C144: 10 | D144: 15_10 | E144: 10 | F144: 11 | G144: 10 | H144: 18 | I144: 763.7 | J144: 0 | K144: 1938 | L144: 1938 | M144: 14 | N144: 25839 | O144: 1502 | P144: 0 | Q144: 10596 | R144: 0 | S144: 15199 | T144: 296 | U144: 2887 | V144: 0.161 | W144: 0.096
A145: 15_19 | B145: 15 | C145: 11 | D145: 15_11 | E145: 10 | F145: 11 | G145: 10 | H145: 19 | I145: 702.2 | J145: 0 | K145: 1938 | L145: 1938 | M145: 14 | N145: 25551 | O145: 1485 | P145: 0 | Q145: 10657 | R145: 0 | S145: 14773 | T145: 434 | U145: 2826 | V145: 0.157 | W145: 0.14
A146: 16_23 | B146: 16 | C146: 1 | D146: 16_1 | E146: 10 | F146: 11 | G146: 12 | H146: 23 | I146: 274.3 | J146: 0 | K146: 1938 | L146: 1938 | M146: 14 | N146: 21873 | O146: 1191 | P146: 0 | Q146: 11421 | R146: 0 | S146: 7824 | T146: 1774 | U146: 2062 | V146: 0.115 | W146: 0.573
A147: 17_14 | B147: 17 | C147: 1 | D147: 17_1 | E147: 10 | F147: 11 | G147: 24 | H147: 14 | I147: 55.7 | J147: 0 | K147: 1938 | L147: 1938 | M147: 14 | N147: 24511 | O147: 1386 | P147: 0 | Q147: 11124 | R147: 0 | S147: 12148 | T147: 848 | U147: 2359 | V147: 0.131 | W147: 0.274
A148: 17_15 | B148: 17 | C148: 2 | D148: 17_2 | E148: 10 | F148: 11 | G148: 24 | H148: 15 | I148: 59.1 | J148: 0 | K148: 1938 | L148: 1938 | M148: 14 | N148: 24561 | O148: 1394 | P148: 0 | Q148: 11121 | R148: 0 | S148: 12305 | T148: 741 | U148: 2362 | V148: 0.131 | W148: 0.239
A149: 17_16 | B149: 17 | C149: 3 | D149: 17_3 | E149: 10 | F149: 11 | G149: 24 | H149: 16 | I149: 65.5 | J149: 0 | K149: 1938 | L149: 1938 | M149: 14 | N149: 24583 | O149: 1443 | P149: 0 | Q149: 11114 | R149: 0 | S149: 13303 | T149: 591 | U149: 2369 | V149: 0.132 | W149: 0.191
A150: 18_8 | B150: 18 | C150: 1 | D150: 18_1 | E150: 10 | F150: 11 | G150: 27 | H150: 8 | I150: 335.7 | J150: 0 | K150: 1938 | L150: 1938 | M150: 14 | N150: 22285 | O150: 1367 | P150: 0 | Q150: 11222 | R150: 0 | S150: 11620 | T150: 123 | U150: 2261 | V150: 0.126 | W150: 0.04
A151: 18_9 | B151: 18 | C151: 2 | D151: 18_2 | E151: 10 | F151: 11 | G151: 27 | H151: 9 | I151: 364.3 | J151: 0 | K151: 1938 | L151: 1938 | M151: 14 | N151: 23263 | O151: 1412 | P151: 0 | Q151: 11193 | R151: 0 | S151: 12577 | T151: 144 | U151: 2290 | V151: 0.127 | W151: 0.047
A152: 18_10 | B152: 18 | C152: 3 | D152: 18_3 | E152: 10 | F152: 11 | G152: 27 | H152: 10 | I152: 364.3 | J152: 0 | K152: 1938 | L152: 1938 | M152: 14 | N152: 23939 | O152: 1445 | P152: 0 | Q152: 11193 | R152: 0 | S152: 13221 | T152: 175 | U152: 2290 | V152: 0.127 | W152: 0.057
A153: 18_11 | B153: 18 | C153: 4 | D153: 18_4 | E153: 10 | F153: 11 | G153: 27 | H153: 11 | I153: 305.1 | J153: 0 | K153: 1938 | L153: 1938 | M153: 14 | N153: 24365 | O153: 1475 | P153: 0 | Q153: 11253 | R153: 0 | S153: 13756 | T153: 67 | U153: 2231 | V153: 0.124 | W153: 0.022
A154: 18_12 | B154: 18 | C154: 5 | D154: 18_5 | E154: 10 | F154: 11 | G154: 27 | H154: 12 | I154: 49.6 | J154: 0 | K154: 1938 | L154: 1938 | M154: 14 | N154: 24586 | O154: 1476 | P154: 0 | Q154: 11508 | R154: 0 | S154: 13406 | T154: 98 | U154: 1975 | V154: 0.11 | W154: 0.032
A155: 19_7 | B155: 19 | C155: 1 | D155: 19_1 | E155: 11 | F155: 11 | G155: 6 | H155: 7 | I155: 68.1 | J155: 0 | K155: 1939 | L155: 1939 | M155: 14 | N155: 20947 | O155: 1241 | P155: 0 | Q155: 11256 | R155: 0 | S155: 9062 | T155: 1576 | U155: 2227 | V155: 0.124 | W155: 0.509
A156: 19_8 | B156: 19 | C156: 2 | D156: 19_2 | E156: 11 | F156: 11 | G156: 6 | H156: 8 | I156: 68.1 | J156: 0 | K156: 1939 | L156: 1939 | M156: 14 | N156: 22568 | O156: 1327 | P156: 0 | Q156: 11256 | R156: 0 | S156: 10785 | T156: 1474 | U156: 2227 | V156: 0.124 | W156: 0.476
A157: 20_14 | B157: 20 | C157: 1 | D157: 20_1 | E157: 11 | F157: 11 | G157: 6 | H157: 14 | I157: 0.5 | J157: 0 | K157: 1939 | L157: 1939 | M157: 14 | N157: 26625 | O157: 1458 | P157: 0 | Q157: 11324 | R157: 0 | S157: 13313 | T157: 1653 | U157: 2159 | V157: 0.12 | W157: 0.534
A158: 20_15 | B158: 20 | C158: 2 | D158: 20_2 | E158: 11 | F158: 11 | G158: 6 | H158: 15 | I158: 471.1 | J158: 0 | K158: 1939 | L158: 1939 | M158: 14 | N158: 26756 | O158: 1436 | P158: 0 | Q158: 10853 | R158: 0 | S158: 13520 | T158: 1577 | U158: 2630 | V158: 0.146 | W158: 0.509
A159: 20_16 | B159: 20 | C159: 3 | D159: 20_3 | E159: 11 | F159: 11 | G159: 6 | H159: 16 | I159: 471.1 | J159: 0 | K159: 1939 | L159: 1939 | M159: 14 | N159: 26857 | O159: 1487 | P159: 0 | Q159: 10853 | R159: 0 | S159: 14550 | T159: 1473 | U159: 2630 | V159: 0.146 | W159: 0.476
A160: 20_17 | B160: 20 | C160: 4 | D160: 20_4 | E160: 11 | F160: 11 | G160: 6 | H160: 17 | I160: 584.9 | J160: 0 | K160: 1939 | L160: 1939 | M160: 14 | N160: 26978 | O160: 1521 | P160: 0 | Q160: 10740 | R160: 0 | S160: 15377 | T160: 1292 | U160: 2744 | V160: 0.153 | W160: 0.417
A161: 20_18 | B161: 20 | C161: 5 | D161: 20_5 | E161: 11 | F161: 11 | G161: 6 | H161: 18 | I161: 477 | J161: 0 | K161: 1939 | L161: 1939 | M161: 14 | N161: 26836 | O161: 1518 | P161: 0 | Q161: 10847 | R161: 0 | S161: 15168 | T161: 1359 | U161: 2636 | V161: 0.147 | W161: 0.439
A162: 20_19 | B162: 20 | C162: 6 | D162: 20_6 | E162: 11 | F162: 11 | G162: 6 | H162: 19 | I162: 389.1 | J162: 0 | K162: 1939 | L162: 1939 | M162: 14 | N162: 26480 | O162: 1506 | P162: 0 | Q162: 10935 | R162: 0 | S162: 14801 | T162: 1370 | U162: 2548 | V162: 0.142 | W162: 0.442
A163: 20_20 | B163: 20 | C163: 7 | D163: 20_7 | E163: 11 | F163: 11 | G163: 6 | H163: 20 | I163: 389.1 | J163: 0 | K163: 1939 | L163: 1939 | M163: 14 | N163: 26122 | O163: 1496 | P163: 0 | Q163: 10935 | R163: 0 | S163: 14618 | T163: 1196 | U163: 2548 | V163: 0.142 | W163: 0.386
A164: 20_21 | B164: 20 | C164: 8 | D164: 20_8 | E164: 11 | F164: 11 | G164: 6 | H164: 21 | I164: 389.1 | J164: 0 | K164: 1939 | L164: 1939 | M164: 14 | N164: 25934 | O164: 1491 | P164: 0 | Q164: 10935 | R164: 0 | S164: 14518 | T164: 1107 | U164: 2548 | V164: 0.142 | W164: 0.357
A165: 20_22 | B165: 20 | C165: 9 | D165: 20_9 | E165: 11 | F165: 11 | G165: 6 | H165: 22 | I165: 389.1 | J165: 0 | K165: 1939 | L165: 1939 | M165: 14 | N165: 25107 | O165: 1436 | P165: 0 | Q165: 10935 | R165: 0 | S165: 13406 | T165: 853 | U165: 2548 | V165: 0.142 | W165: 0.275
A166: 20_23 | B166: 20 | C166: 10 | D166: 20_10 | E166: 11 | F166: 11 | G166: 6 | H166: 23 | I166: 390.2 | J166: 0 | K166: 1939 | L166: 1939 | M166: 14 | N166: 22989 | O166: 1271 | P166: 0 | Q166: 10935 | R166: 0 | S166: 10116 | T166: 969 | U166: 2548 | V166: 0.142 | W166: 0.313
A167: 20_24 | B167: 20 | C167: 11 | D167: 20_11 | E167: 11 | F167: 11 | G167: 6 | H167: 24 | I167: 390.2 | J167: 0 | K167: 1939 | L167: 1939 | M167: 14 | N167: 20902 | O167: 1189 | P167: 0 | Q167: 10935 | R167: 0 | S167: 8467 | T167: 531 | U167: 2548 | V167: 0.142 | W167: 0.171
A168: 21_9 | B168: 21 | C168: 1 | D168: 21_1 | E168: 11 | F168: 11 | G168: 10 | H168: 9 | I168: 82.1 | J168: 0 | K168: 1939 | L168: 1939 | M168: 14 | N168: 22641 | O168: 1396 | P168: 0 | Q168: 11498 | R168: 0 | S168: 11827 | T168: 250 | U168: 1985 | V168: 0.11 | W168: 0.081
A169: 21_10 | B169: 21 | C169: 2 | D169: 21_2 | E169: 11 | F169: 11 | G169: 10 | H169: 10 | I169: 266.8 | J169: 0 | K169: 1939 | L169: 1939 | M169: 14 | N169: 23607 | O169: 1438 | P169: 0 | Q169: 11313 | R169: 0 | S169: 12921 | T169: 122 | U169: 2170 | V169: 0.121 | W169: 0.039
A170: 21_11 | B170: 21 | C170: 3 | D170: 21_3 | E170: 11 | F170: 11 | G170: 10 | H170: 11 | I170: 266.8 | J170: 0 | K170: 1939 | L170: 1939 | M170: 14 | N170: 24239 | O170: 1472 | P170: 0 | Q170: 11313 | R170: 0 | S170: 13610 | T170: 65 | U170: 2170 | V170: 0.121 | W170: 0.021
A171: 21_12 | B171: 21 | C171: 4 | D171: 21_4 | E171: 11 | F171: 11 | G171: 10 | H171: 12 | I171: 356.9 | J171: 0 | K171: 1939 | L171: 1939 | M171: 14 | N171: 24610 | O171: 1460 | P171: 0 | Q171: 11223 | R171: 0 | S171: 13488 | T171: 17 | U171: 2260 | V171: 0.126 | W171: 0.006
A172: 21_13 | B172: 21 | C172: 5 | D172: 21_5 | E172: 11 | F172: 11 | G172: 10 | H172: 13 | I172: 320.6 | J172: 0 | K172: 1939 | L172: 1939 | M172: 14 | N172: 24872 | O172: 1436 | P172: 0 | Q172: 11260 | R172: 0 | S172: 12960 | T172: -3 | U172: 2224 | V172: 0.124 | W172: -0.001
A173: 21_14 | B173: 21 | C173: 6 | D173: 21_6 | E173: 11 | F173: 11 | G173: 10 | H173: 14 | I173: 266.8 | J173: 0 | K173: 1939 | L173: 1939 | M173: 14 | N173: 25047 | O173: 1448 | P173: 0 | Q173: 11313 | R173: 0 | S173: 13131 | T173: 1 | U173: 2170 | V173: 0.121 | W173: 0
A174: 21_15 | B174: 21 | C174: 7 | D174: 21_7 | E174: 11 | F174: 11 | G174: 10 | H174: 15 | I174: 266.8 | J174: 0 | K174: 1939 | L174: 1939 | M174: 14 | N174: 25154 | O174: 1454 | P174: 0 | Q174: 11313 | R174: 0 | S174: 13232 | T174: 7 | U174: 2170 | V174: 0.121 | W174: 0.002
A175: 21_16 | B175: 21 | C175: 8 | D175: 21_8 | E175: 11 | F175: 11 | G175: 10 | H175: 16 | I175: 266.8 | J175: 0 | K175: 1939 | L175: 1939 | M175: 14 | N175: 25230 | O175: 1498 | P175: 0 | Q175: 11313 | R175: 0 | S175: 14112 | T175: 29 | U175: 2170 | V175: 0.121 | W175: 0.009
A176: 21_17 | B176: 21 | C176: 9 | D176: 21_9 | E176: 11 | F176: 11 | G176: 10 | H176: 17 | I176: 266.8 | J176: 0 | K176: 1939 | L176: 1939 | M176: 14 | N176: 25305 | O176: 1521 | P176: 0 | Q176: 11313 | R176: 0 | S176: 14587 | T176: 154 | U176: 2170 | V176: 0.121 | W176: 0.05
A177: 21_18 | B177: 21 | C177: 10 | D177: 21_10 | E177: 11 | F177: 11 | G177: 10 | H177: 18 | I177: 266.8 | J177: 0 | K177: 1939 | L177: 1939 | M177: 14 | N177: 25164 | O177: 1507 | P177: 0 | Q177: 11313 | R177: 0 | S177: 14303 | T177: 296 | U177: 2170 | V177: 0.121 | W177: 0.096
A178: 21_19 | B178: 21 | C178: 11 | D178: 21_11 | E178: 11 | F178: 11 | G178: 10 | H178: 19 | I178: 266.8 | J178: 0 | K178: 1939 | L178: 1939 | M178: 14 | N178: 24884 | O178: 1486 | P178: 0 | Q178: 11313 | R178: 0 | S178: 13885 | T178: 434 | U178: 2170 | V178: 0.121 | W178: 0.14
A179: 21_20 | B179: 21 | C179: 12 | D179: 21_12 | E179: 11 | F179: 11 | G179: 10 | H179: 20 | I179: 162.2 | J179: 0 | K179: 1939 | L179: 1939 | M179: 14 | N179: 24587 | O179: 1460 | P179: 0 | Q179: 11418 | R179: 0 | S179: 13211 | T179: 812 | U179: 2065 | V179: 0.115 | W179: 0.262
A180: 21_21 | B180: 21 | C180: 13 | D180: 21_13 | E180: 11 | F180: 11 | G180: 10 | H180: 21 | I180: 27.6 | J180: 0 | K180: 1939 | L180: 1939 | M180: 14 | N180: 24390 | O180: 1442 | P180: 0 | Q180: 11553 | R180: 0 | S180: 12662 | T180: 1164 | U180: 1931 | V180: 0.107 | W180: 0.376
A181: 21_22 | B181: 21 | C181: 14 | D181: 21_14 | E181: 11 | F181: 11 | G181: 10 | H181: 22 | I181: 24.8 | J181: 0 | K181: 1939 | L181: 1939 | M181: 14 | N181: 23580 | O181: 1368 | P181: 0 | Q181: 11555 | R181: 0 | S181: 11179 | T181: 1297 | U181: 1928 | V181: 0.107 | W181: 0.419
A182: 21_23 | B182: 21 | C182: 15 | D182: 21_15 | E182: 11 | F182: 11 | G182: 10 | H182: 23 | I182: 25.9 | J182: 0 | K182: 1939 | L182: 1939 | M182: 14 | N182: 21617 | O182: 1224 | P182: 0 | Q182: 11555 | R182: 0 | S182: 8307 | T182: 1150 | U182: 1928 | V182: 0.107 | W182: 0.371
A183: 22_13 | B183: 22 | C183: 1 | D183: 22_1 | E183: 11 | F183: 11 | G183: 17 | H183: 13 | I183: 36.6 | J183: 0 | K183: 1939 | L183: 1939 | M183: 14 | N183: 25021 | O183: 1470 | P183: 0 | Q183: 11921 | R183: 0 | S183: 12708 | T183: 20 | U183: 1562 | V183: 0.087 | W183: 0.006
A184: 22_14 | B184: 22 | C184: 2 | D184: 22_2 | E184: 11 | F184: 11 | G184: 17 | H184: 14 | I184: 36.6 | J184: 0 | K184: 1939 | L184: 1939 | M184: 14 | N184: 25173 | O184: 1478 | P184: 0 | Q184: 11921 | R184: 0 | S184: 12860 | T184: 20 | U184: 1562 | V184: 0.087 | W184: 0.006
A185: 22_15 | B185: 22 | C185: 3 | D185: 22_3 | E185: 11 | F185: 11 | G185: 17 | H185: 15 | I185: 36.6 | J185: 0 | K185: 1939 | L185: 1939 | M185: 14 | N185: 25257 | O185: 1481 | P185: 0 | Q185: 11921 | R185: 0 | S185: 12922 | T185: 42 | U185: 1562 | V185: 0.087 | W185: 0.013
A186: 22_16 | B186: 22 | C186: 4 | D186: 22_4 | E186: 11 | F186: 11 | G186: 17 | H186: 16 | I186: 36.6 | J186: 0 | K186: 1939 | L186: 1939 | M186: 14 | N186: 25310 | O186: 1526 | P186: 0 | Q186: 11921 | R186: 0 | S186: 13828 | T186: 15 | U186: 1562 | V186: 0.087 | W186: 0.005
A187: 22_17 | B187: 22 | C187: 5 | D187: 22_5 | E187: 11 | F187: 11 | G187: 17 | H187: 17 | I187: 36.6 | J187: 0 | K187: 1939 | L187: 1939 | M187: 14 | N187: 25339 | O187: 1552 | P187: 0 | Q187: 11921 | R187: 0 | S187: 14352 | T187: 45 | U187: 1562 | V187: 0.087 | W187: 0.014
A188: 22_18 | B188: 22 | C188: 6 | D188: 22_6 | E188: 11 | F188: 11 | G188: 17 | H188: 18 | I188: 36.6 | J188: 0 | K188: 1939 | L188: 1939 | M188: 14 | N188: 25242 | O188: 1544 | P188: 0 | Q188: 11921 | R188: 0 | S188: 14181 | T188: 119 | U188: 1562 | V188: 0.087 | W188: 0.038
A189: 22_19 | B189: 22 | C189: 7 | D189: 22_7 | E189: 11 | F189: 11 | G189: 17 | H189: 19 | I189: 36.6 | J189: 0 | K189: 1939 | L189: 1939 | M189: 14 | N189: 25107 | O189: 1535 | P189: 0 | Q189: 11921 | R189: 0 | S189: 14007 | T189: 158 | U189: 1562 | V189: 0.087 | W189: 0.051
A190: 22_20 | B190: 22 | C190: 8 | D190: 22_8 | E190: 11 | F190: 11 | G190: 17 | H190: 20 | I190: 36.6 | J190: 0 | K190: 1939 | L190: 1939 | M190: 14 | N190: 24916 | O190: 1524 | P190: 0 | Q190: 11921 | R190: 0 | S190: 13790 | T190: 183 | U190: 1562 | V190: 0.087 | W190: 0.059
A191: 22_21 | B191: 22 | C191: 9 | D191: 22_9 | E191: 11 | F191: 11 | G191: 17 | H191: 21 | I191: 36.6 | J191: 0 | K191: 1939 | L191: 1939 | M191: 14 | N191: 24665 | O191: 1504 | P191: 0 | Q191: 11921 | R191: 0 | S191: 13383 | T191: 340 | U191: 1562 | V191: 0.087 | W191: 0.11
A192: 22_22 | B192: 22 | C192: 10 | D192: 22_10 | E192: 11 | F192: 11 | G192: 17 | H192: 22 | I192: 36.6 | J192: 0 | K192: 1939 | L192: 1939 | M192: 14 | N192: 23707 | O192: 1431 | P192: 0 | Q192: 11921 | R192: 0 | S192: 11927 | T192: 297 | U192: 1562 | V192: 0.087 | W192: 0.096
A193: 22_23 | B193: 22 | C193: 11 | D193: 22_11 | E193: 11 | F193: 11 | G193: 17 | H193: 23 | I193: 37.7 | J193: 0 | K193: 1939 | L193: 1939 | M193: 14 | N193: 21693 | O193: 1285 | P193: 0 | Q193: 11921 | R193: 0 | S193: 9018 | T193: 137 | U193: 1562 | V193: 0.087 | W193: 0.044
A194: 22_24 | B194: 22 | C194: 12 | D194: 22_12 | E194: 11 | F194: 11 | G194: 17 | H194: 24 | I194: 37.7 | J194: 0 | K194: 1939 | L194: 1939 | M194: 14 | N194: 19797 | O194: 1189 | P194: 0 | Q194: 11921 | R194: 0 | S194: 7099 | T194: 160 | U194: 1562 | V194: 0.087 | W194: 0.052
A195: 23_17 | B195: 23 | C195: 1 | D195: 23_1 | E195: 11 | F195: 11 | G195: 18 | H195: 17 | I195: 180.2 | J195: 0 | K195: 1939 | L195: 1939 | M195: 14 | N195: 26551 | O195: 1600 | P195: 0 | Q195: 11475 | R195: 0 | S195: 15926 | T195: -14 | U195: 2008 | V195: 0.112 | W195: -0.005
A196: 23_18 | B196: 23 | C196: 2 | D196: 23_2 | E196: 11 | F196: 11 | G196: 18 | H196: 18 | I196: 559.5 | J196: 0 | K196: 1939 | L196: 1939 | M196: 14 | N196: 26457 | O196: 1550 | P196: 0 | Q196: 11096 | R196: 0 | S196: 15468 | T196: 349 | U196: 2388 | V196: 0.133 | W196: 0.113
A197: =CONCATENATE(B197,"_",H197) -> 23_19 | B197: 23 | C197: 3 | D197: 23_3 | E197: 11 | F197: 11 | G197: 18 | H197: 19 | I197: 559.5 | J197: 0 | K197: 1939 | L197: 1939 | M197: 14 | N197: 26334 | O197: 1521 | P197: 0 | Q197: 11096 | R197: 0 | S197: 14886 | T197: 808 | U197: 2388 | V197: 0.133 | W197: 0.261
A198: 23_20 | B198: =IF(E198=E197, (IF(F198=F197, (IF(G198=G197, (IF(H198=H197+1,B197,B197+1)), (IF(AND(G198=G197+1,H198=1,H197=24),B197,B197+1)))), B197+1)), B197+1) -> 23 | C198: =IF(B198=B197,C197+1,1) -> 4 | D198: =CONCATENATE(B198,"_",C198) -> 23_4 | E198: 11 | F198: 11 | G198: 18 | H198: 20 | I198: 559.5 | J198: 0 | K198: 1939 | L198: 1939 | M198: 14 | N198: 26142 | O198: 1506 | P198: 0 | Q198: 11096 | R198: 0 | S198: 14596 | T198: 906 | U198: 2388 | V198: 0.133 | W198: 0.293
A199: 23_21 | B199: 23 | C199: 5 | D199: 23_5 | E199: 11 | F199: 11 | G199: 18 | H199: 21 | I199: 559.5 | J199: 0 | K199: 1939 | L199: 1939 | M199: 14 | N199: 25862 | O199: 1491 | P199: 0 | Q199: 11096 | R199: 0 | S199: 14286 | T199: 937 | U199: 2388 | V199: 0.133 | W199: 0.302
A200: 23_22 | B200: 23 | C200: 6 | D200: 23_6 | E200: 11 | F200: 11 | G200: 18 | H200: 22 | I200: 415.1 | J200: 0 | K200: 1939 | L200: 1939 | M200: 14 | N200: 24829 | O200: 1416 | P200: 0 | Q200: 11240 | R200: 0 | S200: 12584 | T200: 1066 | U200: 2243 | V200: 0.125 | W200: 0.344
... 2803 more rows

Sheet Event Summary
A1: Curtailment Event Summary | P1: =A2 -> 2015 Base with new conservation but no purchase ahead | Z1: Wind Capacity | AB1: 3098 | AC1: << Input
A2: ='Curtailment Record'!A2 -> 2015 Base with new conservation but no purchase ahead | U2: Percent of Range
P3: Event | Q3: Dur | R3: Mag | S3: Avg Mag | T3: Peak | U3: Hyd | V3: Temp | W3: Thr | X3: Wind | Y3: Load | Z3: Hydro | AA3: Therm | AB3: Month | AC3: Game
D4: Dur | E4: Mag | F4: Peak | G4: ROff | H4: Hyd | I4: Event | J4: Temp | K4: FOut | L4: Dem | M4: Hydro | N4: Therm | O4: Wind | P4: 1 | Q4: =LOOKUP(P4,A6:A400,D6:D400) -> 9 | R4: =LOOKUP(P4,A6:A400,E6:E400) -> 3316 | S4: =R4/Q4 -> 368.4444444 | T4: =LOOKUP(P4,A6:A400,F6:F400) -> 495 | U4: =100-LOOKUP(P4,A6:A400,H6:H400) -> 17 | V4: =LOOKUP(P4,A6:A400,J6:J400) -> 51 | W4: =100-LOOKUP(P4,A6:A400,K6:K400)*100 -> 88 | X4: =LOOKUP(P4,A6:A400,O6:O400)*100/$AB$1 -> 1.581665591 | Y4: =LOOKUP(P4,A6:A400,L6:L400) -> 24524 | Z4: =LOOKUP(P4,A6:A400,M6:M400) -> 13201 | AA4: =LOOKUP(P4,A6:A400,N6:N400) -> 11319 | AB4: =LOOKUP(P4,A6:A400,C6:C400) -> Jul | AC4: =LOOKUP(P4,A6:A400,B6:B400) -> 1
A5: No | B5: Game | C5: Mon | D5: hours | E5: mw-hrs | F5: mw-hrs | G5: maf | H5: (%) | I5: Temp | J5: (%) | K5: (%) | L5: (averaged over the event)
A6: 1 | B6: 1 | C6: Jul | D6: 9 | E6: 3316 | F6: 495 | G6: 10.5 | H6: 83 | I6: 69 | J6: 51 | K6: 0.12 | L6: 24524 | M6: 13201 | N6: 11319 | O6: 49
A7: 2 | B7: 3 | C7: Aug | D7: 3 | E7: 719 | F7: 488 | G7: 6.1 | H7: 94 | I7: 69 | J7: 59 | K7: 0.09 | L7: 23976 | M7: 12681 | N7: 11829 | O7: 242 | AC7: Cycle
A8: 3 | B8: 3 | C8: Aug | D8: 5 | E8: 488 | F8: 98 | G8: 6.1 | H8: 94 | I8: 63.3 | J8: 14 | K8: 0.09 | L8: 26511 | M8: 13585 | N8: 11858 | O8: 1067 | AC8: Thru
A9: 4 | B9: 3 | C9: Aug | D9: 4 | E9: 370 | F9: 93 | G9: 6.1 | H9: 94 | I9: 69.1 | J9: 64 | K9: 0.04 | L9: 24303 | M9: 10629 | N9: 12772 | O9: 1291 | AC9: Events
A10: 5 | B10: 4 | C10: Dec | D10: 1 | E10: 194 | F10: 194 | G10: 3.4 | H10: 97 | I10: 16.4 | J10: 3 | K10: 0.1 | L10: 31414 | M10: 12783 | N10: 13873 | O10: 738
A11: 6 | B11: 6 | C11: Aug | D11: 6 | E11: 1853 | F11: 382 | G11: 7.3 | H11: 80 | I11: 66.2 | J11: 29 | K11: 0.11 | L11: 24020 | M11: 12305 | N11: 11587 | O11: 69
A12: 7 | B12: 6 | C12: Aug | D12: 18 | E12: 13485 | F12: 766 | G12: 7.3 | H12: 80 | I12: 66.1 | J12: 29 | K12: 0.11 | L12: 24632 | M12: 12547 | N12: 11470 | O12: 390
A13: 8 | B13: 6 | C13: Aug | D13: 8 | E13: 103 | F13: 13 | G13: 7.3 | H13: 80 | I13: 67.9 | J13: 72 | K13: 0.05 | L13: 22533 | M13: 9443 | N13: 12642 | O13: 100
A14: 9 | B14: 8 | C14: Jan | D14: 14 | E14: 1715 | F14: 146 | G14: 3.8 | H14: 87 | I14: 41.6 | J14: 79 | K14: 0.04 | L14: 33158 | M14: 12665 | N14: 15197 | O14: 1522
A15: 10 | B15: 9 | C15: Jul | D15: 15 | E15: 454 | F15: 30 | G15: 12.1 | H15: 75 | I15: 66.3 | J15: 47 | K15: 0.04 | L15: 25742 | M15: 13090 | N15: 12804 | O15: 325
A16: 11 | B16: 9 | C16: Jul | D16: 10 | E16: 162 | F16: 16 | G16: 12.1 | H16: 75 | I16: 70.4 | J16: 50 | K16: 0.06 | L16: 25281 | M16: 13278 | N16: 12351 | O16: 10
A17: 12 | B17: 9 | C17: Jul | D17: 13 | E17: 2894 | F17: 444 | G17: 12.1 | H17: 75 | I17: 64.9 | J17: 28 | K17: 0.05 | L17: 25227 | M17: 12418 | N17: 12612 | O17: 302
A18: 13 | B18: 9 | C18: Aug | D18: 7 | E18: 212 | F18: 31 | G18: 6.8 | H18: 87 | I18: 62.2 | J18: 36 | K18: 0.11 | L18: 23106 | M18: 11636 | N18: 11549 | O18: 601
A19: 14 | B19: 10 | C19: Aug | D19: 18 | E19: 6103 | F19: 1561 | G19: 6.7 | H19: 87 | I19: 67.1 | J19: 43 | K19: 0.04 | L19: 25400 | M19: 12710 | N19: 12774 | O19: 100
A20: 15 | B20: 10 | C20: Aug | D20: 11 | E20: 6133 | F20: 764 | G20: 6.7 | H20: 87 | I20: 64.6 | J20: 22 | K20: 0.15 | L20: 25273 | M20: 14340 | N20: 10802 | O20: 125
A21: 16 | B21: 10 | C21: Aug | D21: 1 | E21: 274 | F21: 274 | G21: 6.7 | H21: 87 | I21: 62.6 | J21: 13 | K21: 0.12 | L21: 21873 | M21: 7824 | N21: 11421 | O21: 1774
A22: 17 | B22: 10 | C22: Aug | D22: 3 | E22: 180 | F22: 66 | G22: 6.7 | H22: 87 | I22: 65.5 | J22: 47 | K22: 0.13 | L22: 24552 | M22: 12585 | N22: 11120 | O22: 727
A23: 18 | B23: 10 | C23: Aug | D23: 5 | E23: 1419 | F23: 364 | G23: 6.7 | H23: 87 | I23: 65.6 | J23: 47 | K23: 0.12 | L23: 23688 | M23: 12916 | N23: 11274 | O23: 121
A24: 19 | B24: 11 | C24: Aug | D24: 2 | E24: 136 | F24: 68 | G24: 7.4 | H24: 80 | I24: 63.9 | J24: 17 | K24: 0.12 | L24: 21758 | M24: 9924 | N24: 11256 | O24: 1525
A25: 20 | B25: 11 | C25: Aug | D25: 11 | E25: 4341 | F25: 585 | G25: 7.4 | H25: 80 | I25: 63.9 | J25: 17 | K25: 0.14 | L25: 25599 | M25: 13441 | N25: 10930 | O25: 1216
A26: 21 | B26: 11 | C26: Aug | D26: 15 | E26: 3135 | F26: 357 | G26: 7.4 | H26: 80 | I26: 71.7 | J26: 54 | K26: 0.12 | L26: 24328 | M26: 12894 | N26: 11371 | O26: 386
A27: 22 | B27: 11 | C27: Aug | D27: 12 | E27: 441 | F27: 38 | G27: 7.4 | H27: 80 | I27: 66.6 | J27: 45 | K27: 0.09 | L27: 24269 | M27: 12506 | N27: 11921 | O27: 128
A28: 23 | B28: 11 | C28: Aug | D28: 6 | E28: 2833 | F28: 560 | G28: 7.4 | H28: 80 | I28: 66.2 | J28: 48 | K28: 0.13 | L28: 26029 | M28: 14624 | N28: 11183 | O28: 675
A29: 24 | B29: 11 | C29: Aug | D29: 5 | E29: 2286 | F29: 491 | G29: 7.4 | H29: 80 | I29: 68.1 | J29: 60 | K29: 0.14 | L29: 24386 | M29: 12241 | N29: 11046 | O29: 742
A30: 25 | B30: 11 | C30: Aug | D30: 2 | E30: 228 | F30: 136 | G30: 7.4 | H30: 80 | I30: 68.1 | J30: 60 | K30: 0.12 | L30: 24196 | M30: 12504 | N30: 11389 | O30: 1205
A31: 26 | B31: 11 | C31: Aug | D31: 17 | E31: 9826 | F31: 738 | G31: 7.4 | H31: 80 | I31: 68.4 | J31: 60 | K31: 0.1 | L31: 23580 | M31: 11391 | N31: 11742 | O31: 458
A32: 27 | B32: 12 | C32: Aug | D32: 10 | E32: 1644 | F32: 164 | G32: 6.6 | H32: 88 | I32: 71.5 | J32: 74 | K32: 0.11 | L32: 23712 | M32: 12332 | N32: 11597 | O32: 124
A33: 28 | B33: 12 | C33: Aug | D33: 19 | E33: 17587 | F33: 1370 | G33: 6.6 | H33: 88 | I33: 72.3 | J33: 65 | K33: 0.15 | L33: 24157 | M33: 12389 | N33: 10737 | O33: 572
A34: 29 | B34: 12 | C34: Aug | D34: 19 | E34: 8478 | F34: 736 | G34: 6.6 | H34: 88 | I34: 71.8 | J34: 57 | K34: 0.18 | L34: 24207 | M34: 13777 | N34: 10333 | O34: 117
A35: 30 | B35: 12 | C35: Aug | D35: 5 | E35: 623 | F35: 127 | G35: 6.6 | H35: 88 | I35: 73.3 | J35: 63 | K35: 0.2 | L35: 20710 | M35: 10249 | N35: 9886 | O35: 67
A36: 31 | B36: 12 | C36: Aug | D36: 5 | E36: 136 | F36: 27 | G36: 6.6 | H36: 88 | I36: 68.5 | J36: 46 | K36: 0.12 | L36: 23809 | M36: 13173 | N36: 11391 | O36: 125
A37: 32 | B37: 12 | C37: Aug | D37: 3 | E37: 661 | F37: 327 | G37: 6.6 | H37: 88 | I37: 68.5 | J37: 46 | K37: 0.13 | L37: 22055 | M37: 8920 | N37: 11090 | O37: 1598
A38: 33 | B38: 12 | C38: Aug | D38: 6 | E38: 2815 | F38: 509 | G38: 6.6 | H38: 88 | I38: 64.1 | J38: 29 | K38: 0.06 | L38: 24656 | M38: 11724 | N38: 12415 | O38: 707 | Q38: =A2 -> 2015 Base with new conservation but no purchase ahead
A39: 34 | B39: 12 | C39: Aug | D39: 6 | E39: 653 | F39: 110 | G39: 6.6 | H39: 88 | I39: 62.5 | J39: 25 | K39: 0.1 | L39: 25312 | M39: 14060 | N39: 11718 | O39: 128
A40: 35 | B40: 12 | C40: Aug | D40: 3 | E40: 1011 | F40: 454 | G40: 6.6 | H40: 88 | I40: 62.5 | J40: 25 | K40: 0.11 | L40: 21743 | M40: 9595 | N40: 11491 | O40: 93
A41: 36 | B41: 12 | C41: Aug | D41: 6 | E41: 1409 | F41: 236 | G41: 6.6 | H41: 88 | I41: 73.5 | J41: 88 | K41: 0.04 | L41: 24902 | M41: 12175 | N41: 12856 | O41: 296
A42: 37 | B42: 12 | C42: Aug | D42: 7 | E42: 1635 | F42: 234 | G42: 6.6 | H42: 88 | I42: 66.8 | J42: 53 | K42: 0.06 | L42: 24729 | M42: 12443 | N42: 12335 | O42: 269
A43: 38 | B43: 13 | C43: Aug | D43: 5 | E43: 638 | F43: 252 | G43: 6.8 | H43: 86 | I43: 71.3 | J43: 54 | K43: 0.06 | L43: 23789 | M43: 11462 | N43: 12392 | O43: 78
A44: 39 | B44: 13 | C44: Aug | D44: 14 | E44: 16865 | F44: 1693 | G44: 6.8 | H44: 86 | I44: 68.5 | J44: 48 | K44: 0.17 | L44: 24234 | M44: 12640 | N44: 10339 | O44: 434
A45: 40 | B45: 13 | C45: Aug | D45: 13 | E45: 4236 | F45: 405 | G45: 6.8 | H45: 86 | I45: 74.9 | J45: 93 | K45: 0.09 | L45: 25068 | M45: 13125 | N45: 11918 | O45: 35
A46: 41 | B46: 16 | C46: Jul | D46: 14 | E46: 7870 | F46: 1605 | G46: 8.9 | H46: 91 | I46: 66.6 | J46: 56 | K46: 0.12 | L46: 25164 | M46: 12921 | N46: 11244 | O46: 691
A47: 42 | B47: 16 | C47: Jul | D47: 2 | E47: 86 | F47: 51 | G47: 8.9 | H47: 91 | I47: 63.2 | J47: 19 | K47: 0.06 | L47: 23284 | M47: 11554 | N47: 12377 | O47: 196
A48: 43 | B48: 16 | C48: Aug | D48: 14 | E48: 1563 | F48: 113 | G48: 6.5 | H48: 89 | I48: 61.8 | J48: 5 | K48: 0.09 | L48: 25732 | M48: 13886 | N48: 11882 | O48: 236
A49: 44 | B49: 17 | C49: Jul | D49: 5 | E49: 1044 | F49: 209 | G49: 12.6 | H49: 72 | I49: 69.6 | J49: 51 | K49: 0.09 | L49: 23096 | M49: 11332 | N49: 11789 | O49: 652
A50: 45 | B50: 21 | C50: Aug | D50: 13 | E50: 1921 | F50: 149 | G50: 7 | H50: 84 | I50: 60.5 | J50: 3 | K50: 0.09 | L50: 24666 | M50: 12596 | N50: 11849 | O50: 531
A51: 46 | B51: 21 | C51: Aug | D51: 2 | E51: 605 | F51: 312 | G51: 7 | H51: 84 | I51: 68.5 | J51: 61 | K51: 0.05 | L51: 24020 | M51: 11418 | N51: 12612 | O51: 434
A52: 47 | B52: 21 | C52: Aug | D52: 5 | E52: 400 | F52: 100 | G52: 7 | H52: 84 | I52: 68.9 | J52: 63 | K52: 0.05 | L52: 23728 | M52: 11529 | N52: 12642 | O52: 385
A53: 48 | B53: 29 | C53: Aug | D53: 18 | E53: 22799 | F53: 1416 | G53: 6.7 | H53: 87 | I53: 62.7 | J53: 10 | K53: 0.16 | L53: 24929 | M53: 13280 | N53: 10690 | O53: 216
A54: 49 | B54: 29 | C54: Aug | D54: 9 | E54: 1578 | F54: 176 | G54: 6.7 | H54: 87 | I54: 62.9 | J54: 14 | K54: 0.15 | L54: 24751 | M54: 13161 | N54: 10709 | O54: 1248
A55: 50 | B55: 29 | C55: Aug | D55: 3 | E55: 1427 | F55: 518 | G55: 6.7 | H55: 87 | I55: 63.2 | J55: 25 | K55: 0.12 | L55: 22178 | M55: 11092 | N55: 11321 | O55: 305 | R55: Event
A56: 51 | B56: 29 | C56: Aug | D56: 4 | E56: 189 | F56: 52 | G56: 6.7 | H56: 87 | I56: 63.2 | J56: 25 | K56: 0.1 | L56: 26103 | M56: 14825 | N56: 11749 | O56: 28 | R56: ='Event Summary'!P4 -> 1
A57: 52 | B57: 29 | C57: Aug | D57: 5 | E57: 362 | F57: 73 | G57: 6.7 | H57: 87 | I57: 65 | J57: 38 | K57: 0.06 | L57: 24834 | M57: 12485 | N57: 12454 | O57: 411 | T57: Event | U57: Curt
A58: 53 | B58: 42 | C58: Aug | D58: 10 | E58: 3704 | F58: 524 | G58: 7 | H58: 84 | I58: 70.9 | J58: 57 | K58: 0.08 | L58: 25651 | M58: 13572 | N58: 12027 | O58: 137 | R58: Mapping | S58: Index | T58: Hour | U58: Mag
A59: 54 | B59: 45 | C59: Aug | D59: 1 | E59: 26 | F59: 26 | G59: 6.4 | H59: 91 | I59: 66.2 | J59: 39 | K59: 0.07 | L59: 25299 | M59: 12946 | N59: 12241 | O59: 562 | R59: =CONCATENATE($R$56,"_",S59) -> 1_1 | S59: 1 | T59: =IF(ISERROR(VLOOKUP($R59,'Curtailment Record'!$D$4:$I$3003,5,FALSE)),"",VLOOKUP($R59,'Curtailment Record'!$D$4:$I$3003,5,FALSE)) -> 16 | U59: =IF(ISERROR(VLOOKUP($R59,'Curtailment Record'!$D$4:$I$3003,6,FALSE)),"",VLOOKUP($R59,'Curtailment Record'!$D$4:$I$3003,6,FALSE)) -> 0.7
A60: 55 | B60: 45 | C60: Aug | D60: 7 | E60: 404 | F60: 64 | G60: 6.4 | H60: 91 | I60: 61.4 | J60: 28 | K60: 0.05 | L60: 24704 | M60: 11763 | N60: 12640 | O60: 954 | R60: =CONCATENATE($R$56,"_",S60) -> 1_2 | S60: 2 | T60: =IF(ISERROR(VLOOKUP($R60,'Curtailment Record'!$D$4:$I$3003,5,FALSE)),"",VLOOKUP($R60,'Curtailment Record'!$D$4:$I$3003,5,FALSE)) -> 17 | U60: =IF(ISERROR(VLOOKUP($R60,'Curtailment Record'!$D$4:$I$3003,6,FALSE)),"",VLOOKUP($R60,'Curtailment Record'!$D$4:$I$3003,6,FALSE)) -> 262.4
A61: 56 | B61: 45 | C61: Aug | D61: 2 | E61: 139 | F61: 69 | G61: 6.4 | H61: 91 | I61: 62.9 | J61: 39 | K61: 0.07 | L61: 24522 | M61: 12520 | N61: 12291 | O61: 388 | R61: 1_3 | S61: 3 | T61: =IF(ISERROR(VLOOKUP($R61,'Curtailment Record'!$D$4:$I$3003,5,FALSE)),"",VLOOKUP($R61,'Curtailment Record'!$D$4:$I$3003,5,FALSE)) -> 18 | U61: =IF(ISERROR(VLOOKUP($R61,'Curtailment Record'!$D$4:$I$3003,6,FALSE)),"",VLOOKUP($R61,'Curtailment Record'!$D$4:$I$3003,6,FALSE)) -> 369.5
A62: 57 | B62: 45 | C62: Aug | D62: 1 | E62: 7 | F62: 7 | G62: 6.4 | H62: 91 | I62: 56.1 | J62: 12 | K62: 0.08 | L62: 22503 | M62: 11470 | N62: 12055 | O62: -13 | R62: 1_4 | S62: 4 | T62: =IF(ISERROR(VLOOKUP($R62,'Curtailment Record'!$D$4:$I$3003,5,FALSE)),"",VLOOKUP($R62,'Curtailment Record'!$D$4:$I$3003,5,FALSE)) -> 19 | U62: =IF(ISERROR(VLOOKUP($R62,'Curtailment Record'!$D$4:$I$3003,6,FALSE)),"",VLOOKUP($R62,'Curtailment Record'!$D$4:$I$3003,6,FALSE)) -> 494.8
A63: 58 | B63: 45 | C63: Aug | D63: 1 | E63: 4 | F63: 4 | G63: 6.4 | H63: 91 | I63: 56.1 | J63: 12 | K63: 0.08 | L63: 23718 | M63: 10830 | N63: 12058 | O63: 491 | R63: 1_5 | S63: 5 | T63: =IF(ISERROR(VLOOKUP($R63,'Curtailment Record'!$D$4:$I$3003,5,FALSE)),"",VLOOKUP($R63,'Curtailment Record'!$D$4:$I$3003,5,FALSE)) -> 20 | U63: =IF(ISERROR(VLOOKUP($R63,'Curtailment Record'!$D$4:$I$3003,6,FALSE)),"",VLOOKUP($R63,'Curtailment Record'!$D$4:$I$3003,6,FALSE)) -> 458.4
A64: 59 | B64: 49 | C64: Jul | D64: 18 | E64: 4780 | F64: 468 | G64: 7.3 | H64: 100 | I64: 66.5 | J64: 41 | K64: 0.1 | L64: 24944 | M64: 12334 | N64: 11701 | O64: 1039 | R64: 1_6 | S64: 6 | T64: =IF(ISERROR(VLOOKUP($R64,'Curtailment Record'!$D$4:$I$3003,5,FALSE)),"",VLOOKUP($R64,'Curtailment Record'!$D$4:$I$3003,5,FALSE)) -> 21 | U64: =IF(ISERROR(VLOOKUP($R64,'Curtailment Record'!$D$4:$I$3003,6,FALSE)),"",VLOOKUP($R64,'Curtailment Record'!$D$4:$I$3003,6,FALSE)) -> 458.4
A65: 60 | B65: 49 | C65: Jul | D65: 4 | E65: 189 | F65: 47 | G65: 7.3 | H65: 100 | I65: 71.1 | J65: 56 | K65: 0.06 | L65: 27010 | M65: 14662 | N65: 12380 | O65: 1 | R65: 1_7 | S65: 7 | T65: =IF(ISERROR(VLOOKUP($R65,'Curtailment Record'!$D$4:$I$3003,5,FALSE)),"",VLOOKUP($R65,'Curtailment Record'!$D$4:$I$3003,5,FALSE)) -> 22 | U65: =IF(ISERROR(VLOOKUP($R65,'Curtailment Record'!$D$4:$I$3003,6,FALSE)),"",VLOOKUP($R65,'Curtailment Record'!$D$4:$I$3003,6,FALSE)) -> 458.4
A66: 61 | B66: 49 | C66: Aug | D66: 18 | E66: 8342 | F66: 476 | G66: 6.5 | H66: 89 | I66: 72.7 | J66: 68 | K66: 0.05 | L66: 25446 | M66: 12588 | N66: 12617 | O66: 301 | R66: 1_8 | S66: 8 | T66: =IF(ISERROR(VLOOKUP($R66,'Curtailment Record'!$D$4:$I$3003,5,FALSE)),"",VLOOKUP($R66,'Curtailment Record'!$D$4:$I$3003,5,FALSE)) -> 23 | U66: =IF(ISERROR(VLOOKUP($R66,'Curtailment Record'!$D$4:$I$3003,6,FALSE)),"",VLOOKUP($R66,'Curtailment Record'!$D$4:$I$3003,6,FALSE)) -> 406.7
A67: 62 | B67: 49 | C67: Aug | D67: 5 | E67: 1188 | F67: 248 | G67: 6.5 | H67: 89 | I67: 71.9 | J67: 57 | K67: 0.08 | L67: 24391 | M67: 12249 | N67: 12097 | O67: 77 | R67: 1_9 | S67: 9 | T67: =IF(ISERROR(VLOOKUP($R67,'Curtailment Record'!$D$4:$I$3003,5,FALSE)),"",VLOOKUP($R67,'Curtailment Record'!$D$4:$I$3003,5,FALSE)) -> 24 | U67: =IF(ISERROR(VLOOKUP($R67,'Curtailment Record'!$D$4:$I$3003,6,FALSE)),"",VLOOKUP($R67,'Curtailment Record'!$D$4:$I$3003,6,FALSE)) -> 406.7
A68: 63 | B68: 50 | C68: Aug | D68: 17 | E68: 3416 | F68: 321 | G68: 8.2 | H68: 71 | I68: 61.7 | J68: 31 | K68: 0.16 | L68: 24112 | M68: 13567 | N68: 10627 | O68: 306 | R68: 1_10 | S68: 10 | T68: =IF(ISERROR(VLOOKUP($R68,'Curtailment Record'!$D$4:$I$3003,5,FALSE)),"",VLOOKUP($R68,'Curtailment Record'!$D$4:$I$3003,5,FALSE)) ->  | U68: =IF(ISERROR(VLOOKUP($R68,'Curtailment Record'!$D$4:$I$3003,6,FALSE)),"",VLOOKUP($R68,'Curtailment Record'!$D$4:$I$3003,6,FALSE)) -> 
A69: 64 | B69: 52 | C69: Aug | D69: 8 | E69: 3170 | F69: 890 | G69: 6.3 | H69: 92 | I69: 63.5 | J69: 30 | K69: 0.17 | L69: 22689 | M69: 12324 | N69: 10483 | O69: 96 | R69: 1_11 | S69: 11 | T69: =IF(ISERROR(VLOOKUP($R69,'Curtailment Record'!$D$4:$I$3003,5,FALSE)),"",VLOOKUP($R69,'Curtailment Record'!$D$4:$I$3003,5,FALSE)) ->  | U69: =IF(ISERROR(VLOOKUP($R69,'Curtailment Record'!$D$4:$I$3003,6,FALSE)),"",VLOOKUP($R69,'Curtailment Record'!$D$4:$I$3003,6,FALSE)) -> 
A70: 65 | B70: 52 | C70: Aug | D70: 18 | E70: 8432 | F70: 599 | G70: 6.3 | H70: 92 | I70: 63.1 | J70: 25 | K70: 0.16 | L70: 24117 | M70: 13108 | N70: 10531 | O70: 535 | R70: 1_12 | S70: 12 | T70: =IF(ISERROR(VLOOKUP($R70,'Curtailment Record'!$D$4:$I$3003,5,FALSE)),"",VLOOKUP($R70,'Curtailment Record'!$D$4:$I$3003,5,FALSE)) ->  | U70: =IF(ISERROR(VLOOKUP($R70,'Curtailment Record'!$D$4:$I$3003,6,FALSE)),"",VLOOKUP($R70,'Curtailment Record'!$D$4:$I$3003,6,FALSE)) -> 
A71: 66 | B71: 52 | C71: Aug | D71: 1 | E71: 189 | F71: 189 | G71: 6.3 | H71: 92 | I71: 62.5 | J71: 9 | K71: 0.16 | L71: 19688 | M71: 6959 | N71: 10569 | O71: 1393 | R71: 1_13 | S71: 13 | T71: =IF(ISERROR(VLOOKUP($R71,'Curtailment Record'!$D$4:$I$3003,5,FALSE)),"",VLOOKUP($R71,'Curtailment Record'!$D$4:$I$3003,5,FALSE)) ->  | U71: =IF(ISERROR(VLOOKUP($R71,'Curtailment Record'!$D$4:$I$3003,6,FALSE)),"",VLOOKUP($R71,'Curtailment Record'!$D$4:$I$3003,6,FALSE)) -> 
A72: 67 | B72: 52 | C72: Aug | D72: 6 | E72: 2143 | F72: 830 | G72: 6.3 | H72: 92 | I72: 62.5 | J72: 9 | K72: 0.16 | L72: 21945 | M72: 11170 | N72: 10572 | O72: 330 | R72: 1_14 | S72: 14 | T72: =IF(ISERROR(VLOOKUP($R72,'Curtailment Record'!$D$4:$I$3003,5,FALSE)),"",VLOOKUP($R72,'Curtailment Record'!$D$4:$I$3003,5,FALSE)) ->  | U72: =IF(ISERROR(VLOOKUP($R72,'Curtailment Record'!$D$4:$I$3003,6,FALSE)),"",VLOOKUP($R72,'Curtailment Record'!$D$4:$I$3003,6,FALSE)) -> 
A73: 68 | B73: 52 | C73: Aug | D73: 18 | E73: 7872 | F73: 785 | G73: 6.3 | H73: 92 | I73: 66.7 | J73: 33 | K73: 0.13 | L73: 25146 | M73: 13788 | N73: 11204 | O73: 64 | R73: 1_15 | S73: 15 | T73: =IF(ISERROR(VLOOKUP($R73,'Curtailment Record'!$D$4:$I$3003,5,FALSE)),"",VLOOKUP($R73,'Curtailment Record'!$D$4:$I$3003,5,FALSE)) ->  | U73: =IF(ISERROR(VLOOKUP($R73,'Curtailment Record'!$D$4:$I$3003,6,FALSE)),"",VLOOKUP($R73,'Curtailment Record'!$D$4:$I$3003,6,FALSE)) -> 
A74: 69 | B74: 52 | C74: Aug | D74: 16 | E74: 7200 | F74: 541 | G74: 6.3 | H74: 92 | I74: 68.4 | J74: 38 | K74: 0.16 | L74: 23934 | M74: 11463 | N74: 10659 | O74: 1012 | R74: 1_16 | S74: 16 | T74: =IF(ISERROR(VLOOKUP($R74,'Curtailment Record'!$D$4:$I$3003,5,FALSE)),"",VLOOKUP($R74,'Curtailment Record'!$D$4:$I$3003,5,FALSE)) ->  | U74: =IF(ISERROR(VLOOKUP($R74,'Curtailment Record'!$D$4:$I$3003,6,FALSE)),"",VLOOKUP($R74,'Curtailment Record'!$D$4:$I$3003,6,FALSE)) -> 
A75: 70 | B75: 52 | C75: Aug | D75: 1 | E75: 337 | F75: 337 | G75: 6.3 | H75: 92 | I75: 73.2 | J75: 61 | K75: 0.17 | L75: 19992 | M75: 6819 | N75: 10334 | O75: 1923 | R75: 1_17 | S75: 17 | T75: =IF(ISERROR(VLOOKUP($R75,'Curtailment Record'!$D$4:$I$3003,5,FALSE)),"",VLOOKUP($R75,'Curtailment Record'!$D$4:$I$3003,5,FALSE)) ->  | U75: =IF(ISERROR(VLOOKUP($R75,'Curtailment Record'!$D$4:$I$3003,6,FALSE)),"",VLOOKUP($R75,'Curtailment Record'!$D$4:$I$3003,6,FALSE)) -> 
A76: 71 | B76: 52 | C76: Aug | D76: 44 | E76: 36930 | F76: 2181 | G76: 6.3 | H76: 92 | I76: 70.9 | J76: 54 | K76: 0.16 | L76: 24806 | M76: 12998 | N76: 10601 | O76: 692 | R76: 1_18 | S76: 18 | T76: =IF(ISERROR(VLOOKUP($R76,'Curtailment Record'!$D$4:$I$3003,5,FALSE)),"",VLOOKUP($R76,'Curtailment Record'!$D$4:$I$3003,5,FALSE)) ->  | U76: =IF(ISERROR(VLOOKUP($R76,'Curtailment Record'!$D$4:$I$3003,6,FALSE)),"",VLOOKUP($R76,'Curtailment Record'!$D$4:$I$3003,6,FALSE)) -> 
A77: 72 | B77: 52 | C77: Aug | D77: 10 | E77: 1780 | F77: 200 | G77: 6.3 | H77: 92 | I77: 65.5 | J77: 26 | K77: 0.13 | L77: 26338 | M77: 15510 | N77: 11071 | O77: 84 | R77: 1_19 | S77: 19 | T77: =IF(ISERROR(VLOOKUP($R77,'Curtailment Record'!$D$4:$I$3003,5,FALSE)),"",VLOOKUP($R77,'Curtailment Record'!$D$4:$I$3003,5,FALSE)) ->  | U77: =IF(ISERROR(VLOOKUP($R77,'Curtailment Record'!$D$4:$I$3003,6,FALSE)),"",VLOOKUP($R77,'Curtailment Record'!$D$4:$I$3003,6,FALSE)) -> 
A78: 73 | B78: 52 | C78: Aug | D78: 19 | E78: 1843 | F78: 389 | G78: 6.3 | H78: 92 | I78: 64.3 | J78: 34 | K78: 0.14 | L78: 24473 | M78: 13602 | N78: 11029 | O78: 210 | R78: 1_20 | S78: 20 | T78: =IF(ISERROR(VLOOKUP($R78,'Curtailment Record'!$D$4:$I$3003,5,FALSE)),"",VLOOKUP($R78,'Curtailment Record'!$D$4:$I$3003,5,FALSE)) ->  | U78: =IF(ISERROR(VLOOKUP($R78,'Curtailment Record'!$D$4:$I$3003,6,FALSE)),"",VLOOKUP($R78,'Curtailment Record'!$D$4:$I$3003,6,FALSE)) -> 
A79: 74 | B79: 52 | C79: Aug | D79: 3 | E79: 402 | F79: 218 | G79: 6.3 | H79: 92 | I79: 61.9 | J79: 30 | K79: 0.04 | L79: 23660 | M79: 10957 | N79: 12751 | O79: 653 | R79: 1_21 | S79: 21 | T79: =IF(ISERROR(VLOOKUP($R79,'Curtailment Record'!$D$4:$I$3003,5,FALSE)),"",VLOOKUP($R79,'Curtailment Record'!$D$4:$I$3003,5,FALSE)) ->  | U79: =IF(ISERROR(VLOOKUP($R79,'Curtailment Record'!$D$4:$I$3003,6,FALSE)),"",VLOOKUP($R79,'Curtailment Record'!$D$4:$I$3003,6,FALSE)) -> 
A80: 75 | B80: 52 | C80: Aug | D80: 11 | E80: 814 | F80: 102 | G80: 6.3 | H80: 92 | I80: 56.6 | J80: 12 | K80: 0.07 | L80: 23579 | M80: 11028 | N80: 12308 | O80: 575 | R80: 1_22 | S80: 22 | T80: =IF(ISERROR(VLOOKUP($R80,'Curtailment Record'!$D$4:$I$3003,5,FALSE)),"",VLOOKUP($R80,'Curtailment Record'!$D$4:$I$3003,5,FALSE)) ->  | U80: =IF(ISERROR(VLOOKUP($R80,'Curtailment Record'!$D$4:$I$3003,6,FALSE)),"",VLOOKUP($R80,'Curtailment Record'!$D$4:$I$3003,6,FALSE)) -> 
A81: 76 | B81: 57 | C81: Jul | D81: 1 | E81: 38 | F81: 38 | G81: 10.1 | H81: 85 | I81: 76.7 | J81: 82 | K81: 0.09 | L81: 23645 | M81: 11363 | N81: 11834 | O81: 755 | R81: 1_23 | S81: 23 | T81: =IF(ISERROR(VLOOKUP($R81,'Curtailment Record'!$D$4:$I$3003,5,FALSE)),"",VLOOKUP($R81,'Curtailment Record'!$D$4:$I$3003,5,FALSE)) ->  | U81: =IF(ISERROR(VLOOKUP($R81,'Curtailment Record'!$D$4:$I$3003,6,FALSE)),"",VLOOKUP($R81,'Curtailment Record'!$D$4:$I$3003,6,FALSE)) -> 
A82: 77 | B82: 57 | C82: Jul | D82: 15 | E82: 12079 | F82: 850 | G82: 10.1 | H82: 85 | I82: 72.8 | J82: 62 | K82: 0.11 | L82: 22580 | M82: 10616 | N82: 11497 | O82: 64 | R82: 1_24 | S82: 24 | T82: =IF(ISERROR(VLOOKUP($R82,'Curtailment Record'!$D$4:$I$3003,5,FALSE)),"",VLOOKUP($R82,'Curtailment Record'!$D$4:$I$3003,5,FALSE)) ->  | U82: =IF(ISERROR(VLOOKUP($R82,'Curtailment Record'!$D$4:$I$3003,6,FALSE)),"",VLOOKUP($R82,'Curtailment Record'!$D$4:$I$3003,6,FALSE)) -> 
A83: 78 | B83: 57 | C83: Jul | D83: 4 | E83: 210 | F83: 52 | G83: 10.1 | H83: 85 | I83: 64.6 | J83: 29 | K83: 0.06 | L83: 23875 | M83: 11303 | N83: 12334 | O83: 261 | R83: 1_25 | S83: 25 | T83: =IF(ISERROR(VLOOKUP($R83,'Curtailment Record'!$D$4:$I$3003,5,FALSE)),"",VLOOKUP($R83,'Curtailment Record'!$D$4:$I$3003,5,FALSE)) ->  | U83: =IF(ISERROR(VLOOKUP($R83,'Curtailment Record'!$D$4:$I$3003,6,FALSE)),"",VLOOKUP($R83,'Curtailment Record'!$D$4:$I$3003,6,FALSE)) -> 
A84: 79 | B84: 57 | C84: Aug | D84: 10 | E84: 228 | F84: 24 | G84: 6 | H84: 96 | I84: 68.3 | J84: 55 | K84: 0.02 | L84: 24960 | M84: 12251 | N84: 13091 | O84: 50 | R84: 1_26 | S84: 26 | T84: =IF(ISERROR(VLOOKUP($R84,'Curtailment Record'!$D$4:$I$3003,5,FALSE)),"",VLOOKUP($R84,'Curtailment Record'!$D$4:$I$3003,5,FALSE)) ->  | U84: =IF(ISERROR(VLOOKUP($R84,'Curtailment Record'!$D$4:$I$3003,6,FALSE)),"",VLOOKUP($R84,'Curtailment Record'!$D$4:$I$3003,6,FALSE)) -> 
A85: 80 | B85: 57 | C85: Aug | D85: 2 | E85: 101 | F85: 50 | G85: 6 | H85: 96 | I85: 67 | J85: 42 | K85: 0.04 | L85: 21662 | M85: 8100 | N85: 12781 | O85: 152 | R85: 1_27 | S85: 27 | T85: =IF(ISERROR(VLOOKUP($R85,'Curtailment Record'!$D$4:$I$3003,5,FALSE)),"",VLOOKUP($R85,'Curtailment Record'!$D$4:$I$3003,5,FALSE)) ->  | U85: =IF(ISERROR(VLOOKUP($R85,'Curtailment Record'!$D$4:$I$3003,6,FALSE)),"",VLOOKUP($R85,'Curtailment Record'!$D$4:$I$3003,6,FALSE)) -> 
A86: 81 | B86: 57 | C86: Aug | D86: 6 | E86: 260 | F86: 51 | G86: 6 | H86: 96 | I86: 60.9 | J86: 5 | K86: 0.06 | L86: 23174 | M86: 10763 | N86: 12420 | O86: 874 | R86: 1_28 | S86: 28 | T86: =IF(ISERROR(VLOOKUP($R86,'Curtailment Record'!$D$4:$I$3003,5,FALSE)),"",VLOOKUP($R86,'Curtailment Record'!$D$4:$I$3003,5,FALSE)) ->  | U86: =IF(ISERROR(VLOOKUP($R86,'Curtailment Record'!$D$4:$I$3003,6,FALSE)),"",VLOOKUP($R86,'Curtailment Record'!$D$4:$I$3003,6,FALSE)) -> 
A87: 82 | B87: 57 | C87: Aug | D87: 7 | E87: 1645 | F87: 328 | G87: 6 | H87: 96 | I87: 60.9 | J87: 5 | K87: 0.07 | L87: 24719 | M87: 11680 | N87: 12228 | O87: 1287 | R87: 1_29 | S87: 29 | T87: =IF(ISERROR(VLOOKUP($R87,'Curtailment Record'!$D$4:$I$3003,5,FALSE)),"",VLOOKUP($R87,'Curtailment Record'!$D$4:$I$3003,5,FALSE)) ->  | U87: =IF(ISERROR(VLOOKUP($R87,'Curtailment Record'!$D$4:$I$3003,6,FALSE)),"",VLOOKUP($R87,'Curtailment Record'!$D$4:$I$3003,6,FALSE)) -> 
A88: 83 | B88: 57 | C88: Aug | D88: 10 | E88: 1147 | F88: 116 | G88: 6 | H88: 96 | I88: 69.3 | J88: 51 | K88: 0.03 | L88: 25283 | M88: 12762 | N88: 12868 | O88: 17 | R88: 1_30 | S88: 30 | T88: =IF(ISERROR(VLOOKUP($R88,'Curtailment Record'!$D$4:$I$3003,5,FALSE)),"",VLOOKUP($R88,'Curtailment Record'!$D$4:$I$3003,5,FALSE)) ->  | U88: =IF(ISERROR(VLOOKUP($R88,'Curtailment Record'!$D$4:$I$3003,6,FALSE)),"",VLOOKUP($R88,'Curtailment Record'!$D$4:$I$3003,6,FALSE)) -> 
A89: 84 | B89: 57 | C89: Aug | D89: 3 | E89: 13 | F89: 4 | G89: 6 | H89: 96 | I89: 72.4 | J89: 71 | K89: 0.1 | L89: 25098 | M89: 12457 | N89: 11688 | O89: 889 | R89: 1_31 | S89: 31 | T89: =IF(ISERROR(VLOOKUP($R89,'Curtailment Record'!$D$4:$I$3003,5,FALSE)),"",VLOOKUP($R89,'Curtailment Record'!$D$4:$I$3003,5,FALSE)) ->  | U89: =IF(ISERROR(VLOOKUP($R89,'Curtailment Record'!$D$4:$I$3003,6,FALSE)),"",VLOOKUP($R89,'Curtailment Record'!$D$4:$I$3003,6,FALSE)) -> 
A90: 85 | B90: 57 | C90: Aug | D90: 6 | E90: 3219 | F90: 633 | G90: 6 | H90: 96 | I90: 72.4 | J90: 71 | K90: 0.13 | L90: 24079 | M90: 11497 | N90: 11156 | O90: 1548 | R90: 1_32 | S90: 32 | T90: =IF(ISERROR(VLOOKUP($R90,'Curtailment Record'!$D$4:$I$3003,5,FALSE)),"",VLOOKUP($R90,'Curtailment Record'!$D$4:$I$3003,5,FALSE)) ->  | U90: =IF(ISERROR(VLOOKUP($R90,'Curtailment Record'!$D$4:$I$3003,6,FALSE)),"",VLOOKUP($R90,'Curtailment Record'!$D$4:$I$3003,6,FALSE)) -> 
A91: 86 | B91: 57 | C91: Aug | D91: 19 | E91: 3064 | F91: 340 | G91: 6 | H91: 96 | I91: 65 | J91: 41 | K91: 0.15 | L91: 24113 | M91: 13253 | N91: 10817 | O91: 348 | R91: =CONCATENATE($R$56,"_",S91) -> 1_33 | S91: 33 | T91: =IF(ISERROR(VLOOKUP($R91,'Curtailment Record'!$D$4:$I$3003,5,FALSE)),"",VLOOKUP($R91,'Curtailment Record'!$D$4:$I$3003,5,FALSE)) ->  | U91: =IF(ISERROR(VLOOKUP($R91,'Curtailment Record'!$D$4:$I$3003,6,FALSE)),"",VLOOKUP($R91,'Curtailment Record'!$D$4:$I$3003,6,FALSE)) -> 
A92: 87 | B92: 57 | C92: Aug | D92: 3 | E92: 206 | F92: 142 | G92: 6 | H92: 96 | I92: 60 | J92: 11 | K92: 0.06 | L92: 25817 | M92: 14071 | N92: 12493 | O92: 25 | R92: 1_34 | S92: 34 | T92: =IF(ISERROR(VLOOKUP($R92,'Curtailment Record'!$D$4:$I$3003,5,FALSE)),"",VLOOKUP($R92,'Curtailment Record'!$D$4:$I$3003,5,FALSE)) ->  | U92: =IF(ISERROR(VLOOKUP($R92,'Curtailment Record'!$D$4:$I$3003,6,FALSE)),"",VLOOKUP($R92,'Curtailment Record'!$D$4:$I$3003,6,FALSE)) -> 
A93: 88 | B93: 57 | C93: Aug | D93: 1 | E93: 183 | F93: 183 | G93: 6 | H93: 96 | I93: 64.4 | J93: 45 | K93: 0.12 | L93: 23341 | M93: 11503 | N93: 11330 | O93: -10 | R93: 1_35 | S93: 35 | T93: =IF(ISERROR(VLOOKUP($R93,'Curtailment Record'!$D$4:$I$3003,5,FALSE)),"",VLOOKUP($R93,'Curtailment Record'!$D$4:$I$3003,5,FALSE)) ->  | U93: =IF(ISERROR(VLOOKUP($R93,'Curtailment Record'!$D$4:$I$3003,6,FALSE)),"",VLOOKUP($R93,'Curtailment Record'!$D$4:$I$3003,6,FALSE)) -> 
A94: 89 | B94: 59 | C94: Aug | D94: 14 | E94: 1699 | F94: 161 | G94: 5.9 | H94: 96 | I94: 63.4 | J94: 28 | K94: 0.04 | L94: 25001 | M94: 12286 | N94: 12699 | O94: 393 | R94: 1_36 | S94: 36 | T94: =IF(ISERROR(VLOOKUP($R94,'Curtailment Record'!$D$4:$I$3003,5,FALSE)),"",VLOOKUP($R94,'Curtailment Record'!$D$4:$I$3003,5,FALSE)) ->  | U94: =IF(ISERROR(VLOOKUP($R94,'Curtailment Record'!$D$4:$I$3003,6,FALSE)),"",VLOOKUP($R94,'Curtailment Record'!$D$4:$I$3003,6,FALSE)) -> 
A95: 90 | B95: 59 | C95: Aug | D95: 12 | E95: 2854 | F95: 702 | G95: 5.9 | H95: 96 | I95: 64.7 | J95: 22 | K95: 0.06 | L95: 24743 | M95: 12053 | N95: 12417 | O95: 446 | R95: 1_37 | S95: 37 | T95: =IF(ISERROR(VLOOKUP($R95,'Curtailment Record'!$D$4:$I$3003,5,FALSE)),"",VLOOKUP($R95,'Curtailment Record'!$D$4:$I$3003,5,FALSE)) ->  | U95: =IF(ISERROR(VLOOKUP($R95,'Curtailment Record'!$D$4:$I$3003,6,FALSE)),"",VLOOKUP($R95,'Curtailment Record'!$D$4:$I$3003,6,FALSE)) -> 
A96: 91 | B96: 59 | C96: Aug | D96: 4 | E96: 2107 | F96: 674 | G96: 5.9 | H96: 96 | I96: 60.5 | J96: 3 | K96: 0.11 | L96: 23681 | M96: 10586 | N96: 11492 | O96: 1558 | R96: 1_38 | S96: 38 | T96: =IF(ISERROR(VLOOKUP($R96,'Curtailment Record'!$D$4:$I$3003,5,FALSE)),"",VLOOKUP($R96,'Curtailment Record'!$D$4:$I$3003,5,FALSE)) ->  | U96: =IF(ISERROR(VLOOKUP($R96,'Curtailment Record'!$D$4:$I$3003,6,FALSE)),"",VLOOKUP($R96,'Curtailment Record'!$D$4:$I$3003,6,FALSE)) -> 
A97: 92 | B97: 59 | C97: Aug | D97: 2 | E97: 165 | F97: 145 | G97: 5.9 | H97: 96 | I97: 60.9 | J97: 21 | K97: 0.12 | L97: 23949 | M97: 12614 | N97: 11304 | O97: 20 | R97: 1_39 | S97: 39 | T97: =IF(ISERROR(VLOOKUP($R97,'Curtailment Record'!$D$4:$I$3003,5,FALSE)),"",VLOOKUP($R97,'Curtailment Record'!$D$4:$I$3003,5,FALSE)) ->  | U97: =IF(ISERROR(VLOOKUP($R97,'Curtailment Record'!$D$4:$I$3003,6,FALSE)),"",VLOOKUP($R97,'Curtailment Record'!$D$4:$I$3003,6,FALSE)) -> 
A98: 93 | B98: 59 | C98: Aug | D98: 5 | E98: 1049 | F98: 245 | G98: 5.9 | H98: 96 | I98: 65.9 | J98: 46 | K98: 0.12 | L98: 23623 | M98: 11704 | N98: 11287 | O98: 1011 | R98: 1_40 | S98: 40 | T98: =IF(ISERROR(VLOOKUP($R98,'Curtailment Record'!$D$4:$I$3003,5,FALSE)),"",VLOOKUP($R98,'Curtailment Record'!$D$4:$I$3003,5,FALSE)) ->  | U98: =IF(ISERROR(VLOOKUP($R98,'Curtailment Record'!$D$4:$I$3003,6,FALSE)),"",VLOOKUP($R98,'Curtailment Record'!$D$4:$I$3003,6,FALSE)) -> 
A99: 94 | B99: 59 | C99: Aug | D99: 4 | E99: 1057 | F99: 346 | G99: 5.9 | H99: 96 | I99: 63.1 | J99: 27 | K99: 0.1 | L99: 21435 | M99: 10324 | N99: 11602 | O99: 261 | R99: 1_41 | S99: 41 | T99: =IF(ISERROR(VLOOKUP($R99,'Curtailment Record'!$D$4:$I$3003,5,FALSE)),"",VLOOKUP($R99,'Curtailment Record'!$D$4:$I$3003,5,FALSE)) ->  | U99: =IF(ISERROR(VLOOKUP($R99,'Curtailment Record'!$D$4:$I$3003,6,FALSE)),"",VLOOKUP($R99,'Curtailment Record'!$D$4:$I$3003,6,FALSE)) -> 
A100: 95 | B100: 59 | C100: Aug | D100: 6 | E100: 2321 | F100: 432 | G100: 5.9 | H100: 96 | I100: 63.1 | J100: 27 | K100: 0.11 | L100: 23225 | M100: 11527 | N100: 11479 | O100: 491 | R100: 1_42 | S100: 42 | T100: =IF(ISERROR(VLOOKUP($R100,'Curtailment Record'!$D$4:$I$3003,5,FALSE)),"",VLOOKUP($R100,'Curtailment Record'!$D$4:$I$3003,5,FALSE)) ->  | U100: =IF(ISERROR(VLOOKUP($R100,'Curtailment Record'!$D$4:$I$3003,6,FALSE)),"",VLOOKUP($R100,'Curtailment Record'!$D$4:$I$3003,6,FALSE)) -> 
A101: 96 | B101: 59 | C101: Aug | D101: 8 | E101: 1848 | F101: 246 | G101: 5.9 | H101: 96 | I101: 68.6 | J101: 63 | K101: 0.06 | L101: 24251 | M101: 11282 | N101: 12324 | O101: 1096 | R101: 1_43 | S101: 43 | T101: =IF(ISERROR(VLOOKUP($R101,'Curtailment Record'!$D$4:$I$3003,5,FALSE)),"",VLOOKUP($R101,'Curtailment Record'!$D$4:$I$3003,5,FALSE)) ->  | U101: =IF(ISERROR(VLOOKUP($R101,'Curtailment Record'!$D$4:$I$3003,6,FALSE)),"",VLOOKUP($R101,'Curtailment Record'!$D$4:$I$3003,6,FALSE)) -> 
A102: 97 | B102: 59 | C102: Aug | D102: 17 | E102: 1556 | F102: 288 | G102: 5.9 | H102: 96 | I102: 70.2 | J102: 68 | K102: 0.05 | L102: 24178 | M102: 11558 | N102: 12659 | O102: 458 | R102: 1_44 | S102: 44 | T102: =IF(ISERROR(VLOOKUP($R102,'Curtailment Record'!$D$4:$I$3003,5,FALSE)),"",VLOOKUP($R102,'Curtailment Record'!$D$4:$I$3003,5,FALSE)) ->  | U102: =IF(ISERROR(VLOOKUP($R102,'Curtailment Record'!$D$4:$I$3003,6,FALSE)),"",VLOOKUP($R102,'Curtailment Record'!$D$4:$I$3003,6,FALSE)) -> 
A103: 98 | B103: 60 | C103: Aug | D103: 19 | E103: 24083 | F103: 1595 | G103: 5.9 | H103: 96 | I103: 63.5 | J103: 19 | K103: 0.15 | L103: 24743 | M103: 12625 | N103: 10804 | O103: 512 | R103: 1_45 | S103: 45 | T103: =IF(ISERROR(VLOOKUP($R103,'Curtailment Record'!$D$4:$I$3003,5,FALSE)),"",VLOOKUP($R103,'Curtailment Record'!$D$4:$I$3003,5,FALSE)) ->  | U103: =IF(ISERROR(VLOOKUP($R103,'Curtailment Record'!$D$4:$I$3003,6,FALSE)),"",VLOOKUP($R103,'Curtailment Record'!$D$4:$I$3003,6,FALSE)) -> 
A104: 99 | B104: 60 | C104: Aug | D104: 3 | E104: 849 | F104: 285 | G104: 5.9 | H104: 96 | I104: 63.9 | J104: 25 | K104: 0.14 | L104: 23584 | M104: 11485 | N104: 11026 | O104: 1093 | R104: 1_46 | S104: 46 | T104: =IF(ISERROR(VLOOKUP($R104,'Curtailment Record'!$D$4:$I$3003,5,FALSE)),"",VLOOKUP($R104,'Curtailment Record'!$D$4:$I$3003,5,FALSE)) ->  | U104: =IF(ISERROR(VLOOKUP($R104,'Curtailment Record'!$D$4:$I$3003,6,FALSE)),"",VLOOKUP($R104,'Curtailment Record'!$D$4:$I$3003,6,FALSE)) -> 
A105: 100 | B105: 61 | C105: Jul | D105: 6 | E105: 1006 | F105: 168 | G105: 11.1 | H105: 80 | I105: 60.4 | J105: 21 | K105: 0.06 | L105: 25295 | M105: 13444 | N105: 12348 | O105: 131 | R105: 1_47 | S105: 47 | T105: =IF(ISERROR(VLOOKUP($R105,'Curtailment Record'!$D$4:$I$3003,5,FALSE)),"",VLOOKUP($R105,'Curtailment Record'!$D$4:$I$3003,5,FALSE)) ->  | U105: =IF(ISERROR(VLOOKUP($R105,'Curtailment Record'!$D$4:$I$3003,6,FALSE)),"",VLOOKUP($R105,'Curtailment Record'!$D$4:$I$3003,6,FALSE)) -> 
A106: 101 | B106: 61 | C106: Jul | D106: 18 | E106: 17078 | F106: 1094 | G106: 11.1 | H106: 80 | I106: 64.5 | J106: 27 | K106: 0.12 | L106: 25626 | M106: 12643 | N106: 11422 | O106: 1008 | R106: 1_48 | S106: 48 | T106: =IF(ISERROR(VLOOKUP($R106,'Curtailment Record'!$D$4:$I$3003,5,FALSE)),"",VLOOKUP($R106,'Curtailment Record'!$D$4:$I$3003,5,FALSE)) ->  | U106: =IF(ISERROR(VLOOKUP($R106,'Curtailment Record'!$D$4:$I$3003,6,FALSE)),"",VLOOKUP($R106,'Curtailment Record'!$D$4:$I$3003,6,FALSE)) -> 
A107: 102 | B107: 61 | C107: Jul | D107: 5 | E107: 700 | F107: 147 | G107: 11.1 | H107: 80 | I107: 67.3 | J107: 39 | K107: 0.14 | L107: 26081 | M107: 15915 | N107: 10923 | O107: -11 | R107: 1_49 | S107: 49 | T107: =IF(ISERROR(VLOOKUP($R107,'Curtailment Record'!$D$4:$I$3003,5,FALSE)),"",VLOOKUP($R107,'Curtailment Record'!$D$4:$I$3003,5,FALSE)) ->  | U107: =IF(ISERROR(VLOOKUP($R107,'Curtailment Record'!$D$4:$I$3003,6,FALSE)),"",VLOOKUP($R107,'Curtailment Record'!$D$4:$I$3003,6,FALSE)) -> 
A108: 103 | B108: 61 | C108: Jul | D108: 2 | E108: 458 | F108: 238 | G108: 11.1 | H108: 80 | I108: 67.3 | J108: 39 | K108: 0.15 | L108: 21872 | M108: 10168 | N108: 10782 | O108: -12 | R108: 1_50 | S108: 50 | T108: =IF(ISERROR(VLOOKUP($R108,'Curtailment Record'!$D$4:$I$3003,5,FALSE)),"",VLOOKUP($R108,'Curtailment Record'!$D$4:$I$3003,5,FALSE)) ->  | U108: =IF(ISERROR(VLOOKUP($R108,'Curtailment Record'!$D$4:$I$3003,6,FALSE)),"",VLOOKUP($R108,'Curtailment Record'!$D$4:$I$3003,6,FALSE)) -> 
A109: 104 | B109: 61 | C109: Jul | D109: 16 | E109: 5109 | F109: 787 | G109: 11.1 | H109: 80 | I109: 66.6 | J109: 36 | K109: 0.05 | L109: 24696 | M109: 11929 | N109: 12635 | O109: 245 | R109: 1_51 | S109: 51 | T109: =IF(ISERROR(VLOOKUP($R109,'Curtailment Record'!$D$4:$I$3003,5,FALSE)),"",VLOOKUP($R109,'Curtailment Record'!$D$4:$I$3003,5,FALSE)) ->  | U109: =IF(ISERROR(VLOOKUP($R109,'Curtailment Record'!$D$4:$I$3003,6,FALSE)),"",VLOOKUP($R109,'Curtailment Record'!$D$4:$I$3003,6,FALSE)) -> 
A110: 105 | B110: 61 | C110: Aug | D110: 18 | E110: 14253 | F110: 920 | G110: 7.7 | H110: 76 | I110: 74.3 | J110: 68 | K110: 0.09 | L110: 24860 | M110: 12704 | N110: 11852 | O110: 36 | R110: 1_52 | S110: 52 | T110: =IF(ISERROR(VLOOKUP($R110,'Curtailment Record'!$D$4:$I$3003,5,FALSE)),"",VLOOKUP($R110,'Curtailment Record'!$D$4:$I$3003,5,FALSE)) ->  | U110: =IF(ISERROR(VLOOKUP($R110,'Curtailment Record'!$D$4:$I$3003,6,FALSE)),"",VLOOKUP($R110,'Curtailment Record'!$D$4:$I$3003,6,FALSE)) -> 
A111: 106 | B111: 61 | C111: Aug | D111: 3 | E111: 182 | F111: 61 | G111: 7.7 | H111: 76 | I111: 61.5 | J111: 34 | K111: 0.04 | L111: 23103 | M111: 10165 | N111: 12834 | O111: 878 | R111: 1_53 | S111: 53 | T111: =IF(ISERROR(VLOOKUP($R111,'Curtailment Record'!$D$4:$I$3003,5,FALSE)),"",VLOOKUP($R111,'Curtailment Record'!$D$4:$I$3003,5,FALSE)) ->  | U111: =IF(ISERROR(VLOOKUP($R111,'Curtailment Record'!$D$4:$I$3003,6,FALSE)),"",VLOOKUP($R111,'Curtailment Record'!$D$4:$I$3003,6,FALSE)) -> 
A112: 107 | B112: 64 | C112: Aug | D112: 12 | E112: 794 | F112: 191 | G112: 5.6 | H112: 100 | I112: 69.9 | J112: 63 | K112: 0.11 | L112: 25426 | M112: 14256 | N112: 11520 | O112: 173 | R112: 1_54 | S112: 54 | T112: =IF(ISERROR(VLOOKUP($R112,'Curtailment Record'!$D$4:$I$3003,5,FALSE)),"",VLOOKUP($R112,'Curtailment Record'!$D$4:$I$3003,5,FALSE)) ->  | U112: =IF(ISERROR(VLOOKUP($R112,'Curtailment Record'!$D$4:$I$3003,6,FALSE)),"",VLOOKUP($R112,'Curtailment Record'!$D$4:$I$3003,6,FALSE)) -> 
A113: 108 | B113: 64 | C113: Aug | D113: 7 | E113: 217 | F113: 31 | G113: 5.6 | H113: 100 | I113: 67.7 | J113: 53 | K113: 0.09 | L113: 26364 | M113: 14489 | N113: 11911 | O113: 797 | R113: 1_55 | S113: 55 | T113: =IF(ISERROR(VLOOKUP($R113,'Curtailment Record'!$D$4:$I$3003,5,FALSE)),"",VLOOKUP($R113,'Curtailment Record'!$D$4:$I$3003,5,FALSE)) ->  | U113: =IF(ISERROR(VLOOKUP($R113,'Curtailment Record'!$D$4:$I$3003,6,FALSE)),"",VLOOKUP($R113,'Curtailment Record'!$D$4:$I$3003,6,FALSE)) -> 
A114: 109 | B114: 64 | C114: Aug | D114: 7 | E114: 1693 | F114: 251 | G114: 5.6 | H114: 100 | I114: 65.1 | J114: 26 | K114: 0.1 | L114: 23328 | M114: 11860 | N114: 11643 | O114: 65 | R114: 1_56 | S114: 56 | T114: =IF(ISERROR(VLOOKUP($R114,'Curtailment Record'!$D$4:$I$3003,5,FALSE)),"",VLOOKUP($R114,'Curtailment Record'!$D$4:$I$3003,5,FALSE)) ->  | U114: =IF(ISERROR(VLOOKUP($R114,'Curtailment Record'!$D$4:$I$3003,6,FALSE)),"",VLOOKUP($R114,'Curtailment Record'!$D$4:$I$3003,6,FALSE)) -> 
A115: 110 | B115: 64 | C115: Aug | D115: 2 | E115: 48 | F115: 45 | G115: 5.6 | H115: 100 | I115: 78.3 | J115: 91 | K115: 0.05 | L115: 25530 | M115: 12501 | N115: 12611 | O115: 1147 | R115: 1_57 | S115: 57 | T115: =IF(ISERROR(VLOOKUP($R115,'Curtailment Record'!$D$4:$I$3003,5,FALSE)),"",VLOOKUP($R115,'Curtailment Record'!$D$4:$I$3003,5,FALSE)) ->  | U115: =IF(ISERROR(VLOOKUP($R115,'Curtailment Record'!$D$4:$I$3003,6,FALSE)),"",VLOOKUP($R115,'Curtailment Record'!$D$4:$I$3003,6,FALSE)) -> 
A116: 111 | B116: 64 | C116: Aug | D116: 2 | E116: 499 | F116: 250 | G116: 5.6 | H116: 100 | I116: 72.4 | J116: 82 | K116: 0.06 | L116: 24253 | M116: 9550 | N116: 12381 | O116: 2818 | R116: 1_58 | S116: 58 | T116: =IF(ISERROR(VLOOKUP($R116,'Curtailment Record'!$D$4:$I$3003,5,FALSE)),"",VLOOKUP($R116,'Curtailment Record'!$D$4:$I$3003,5,FALSE)) ->  | U116: =IF(ISERROR(VLOOKUP($R116,'Curtailment Record'!$D$4:$I$3003,6,FALSE)),"",VLOOKUP($R116,'Curtailment Record'!$D$4:$I$3003,6,FALSE)) -> 
A117: 112 | B117: 64 | C117: Aug | D117: 7 | E117: 4070 | F117: 895 | G117: 5.6 | H117: 100 | I117: 70.3 | J117: 70 | K117: 0.11 | L117: 24727 | M117: 12165 | N117: 11505 | O117: 1186 | R117: 1_59 | S117: 59 | T117: =IF(ISERROR(VLOOKUP($R117,'Curtailment Record'!$D$4:$I$3003,5,FALSE)),"",VLOOKUP($R117,'Curtailment Record'!$D$4:$I$3003,5,FALSE)) ->  | U117: =IF(ISERROR(VLOOKUP($R117,'Curtailment Record'!$D$4:$I$3003,6,FALSE)),"",VLOOKUP($R117,'Curtailment Record'!$D$4:$I$3003,6,FALSE)) -> 
A118: 113 | B118: 64 | C118: Aug | D118: 12 | E118: 3658 | F118: 493 | G118: 5.6 | H118: 100 | I118: 67 | J118: 48 | K118: 0.14 | L118: 24892 | M118: 13949 | N118: 10909 | O118: 318 | R118: 1_60 | S118: 60 | T118: =IF(ISERROR(VLOOKUP($R118,'Curtailment Record'!$D$4:$I$3003,5,FALSE)),"",VLOOKUP($R118,'Curtailment Record'!$D$4:$I$3003,5,FALSE)) ->  | U118: =IF(ISERROR(VLOOKUP($R118,'Curtailment Record'!$D$4:$I$3003,6,FALSE)),"",VLOOKUP($R118,'Curtailment Record'!$D$4:$I$3003,6,FALSE)) -> 
A119: 114 | B119: 64 | C119: Aug | D119: 1 | E119: 138 | F119: 138 | G119: 5.6 | H119: 100 | I119: 65.2 | J119: 51 | K119: 0.1 | L119: 23391 | M119: 10551 | N119: 11684 | O119: 1509 | R119: 1_61 | S119: 61 | T119: =IF(ISERROR(VLOOKUP($R119,'Curtailment Record'!$D$4:$I$3003,5,FALSE)),"",VLOOKUP($R119,'Curtailment Record'!$D$4:$I$3003,5,FALSE)) ->  | U119: =IF(ISERROR(VLOOKUP($R119,'Curtailment Record'!$D$4:$I$3003,6,FALSE)),"",VLOOKUP($R119,'Curtailment Record'!$D$4:$I$3003,6,FALSE)) -> 
A120: 115 | B120: 64 | C120: Aug | D120: 11 | E120: 1389 | F120: 132 | G120: 5.6 | H120: 100 | I120: 64.5 | J120: 55 | K120: 0.1 | L120: 21930 | M120: 6968 | N120: 11659 | O120: 2597 | R120: 1_62 | S120: 62 | T120: =IF(ISERROR(VLOOKUP($R120,'Curtailment Record'!$D$4:$I$3003,5,FALSE)),"",VLOOKUP($R120,'Curtailment Record'!$D$4:$I$3003,5,FALSE)) ->  | U120: =IF(ISERROR(VLOOKUP($R120,'Curtailment Record'!$D$4:$I$3003,6,FALSE)),"",VLOOKUP($R120,'Curtailment Record'!$D$4:$I$3003,6,FALSE)) -> 
A121: 116 | B121: 66 | C121: Aug | D121: 10 | E121: 980 | F121: 245 | G121: 5.8 | H121: 98 | I121: 73.8 | J121: 84 | K121: 0.06 | L121: 25118 | M121: 13091 | N121: 12411 | O121: 21 | R121: 1_63 | S121: 63 | T121: =IF(ISERROR(VLOOKUP($R121,'Curtailment Record'!$D$4:$I$3003,5,FALSE)),"",VLOOKUP($R121,'Curtailment Record'!$D$4:$I$3003,5,FALSE)) ->  | U121: =IF(ISERROR(VLOOKUP($R121,'Curtailment Record'!$D$4:$I$3003,6,FALSE)),"",VLOOKUP($R121,'Curtailment Record'!$D$4:$I$3003,6,FALSE)) -> 
A122: 117 | B122: 66 | C122: Aug | D122: 10 | E122: 8926 | F122: 1126 | G122: 5.8 | H122: 98 | I122: 70.7 | J122: 59 | K122: 0.11 | L122: 25782 | M122: 12352 | N122: 11430 | O122: 1562 | R122: 1_64 | S122: 64 | T122: =IF(ISERROR(VLOOKUP($R122,'Curtailment Record'!$D$4:$I$3003,5,FALSE)),"",VLOOKUP($R122,'Curtailment Record'!$D$4:$I$3003,5,FALSE)) ->  | U122: =IF(ISERROR(VLOOKUP($R122,'Curtailment Record'!$D$4:$I$3003,6,FALSE)),"",VLOOKUP($R122,'Curtailment Record'!$D$4:$I$3003,6,FALSE)) -> 
A123: 118 | B123: 66 | C123: Aug | D123: 12 | E123: 4530 | F123: 451 | G123: 5.8 | H123: 98 | I123: 67.4 | J123: 51 | K123: 0.07 | L123: 24827 | M123: 12053 | N123: 12179 | O123: 628 | R123: =CONCATENATE($R$56,"_",S123) -> 1_65 | S123: 65 | T123: =IF(ISERROR(VLOOKUP($R123,'Curtailment Record'!$D$4:$I$3003,5,FALSE)),"",VLOOKUP($R123,'Curtailment Record'!$D$4:$I$3003,5,FALSE)) ->  | U123: =IF(ISERROR(VLOOKUP($R123,'Curtailment Record'!$D$4:$I$3003,6,FALSE)),"",VLOOKUP($R123,'Curtailment Record'!$D$4:$I$3003,6,FALSE)) -> 
A124: 119 | B124: 66 | C124: Aug | D124: 7 | E124: 1118 | F124: 160 | G124: 5.8 | H124: 98 | I124: 65.5 | J124: 48 | K124: 0.1 | L124: 23803 | M124: 12519 | N124: 11672 | O124: 5 | R124: 1_66 | S124: 66 | T124: =IF(ISERROR(VLOOKUP($R124,'Curtailment Record'!$D$4:$I$3003,5,FALSE)),"",VLOOKUP($R124,'Curtailment Record'!$D$4:$I$3003,5,FALSE)) ->  | U124: =IF(ISERROR(VLOOKUP($R124,'Curtailment Record'!$D$4:$I$3003,6,FALSE)),"",VLOOKUP($R124,'Curtailment Record'!$D$4:$I$3003,6,FALSE)) -> 
A125: 120 | B125: 71 | C125: Jul | D125: 2 | E125: 243 | F125: 121 | G125: 0 | H125: 0 | I125: 60.8 | J125: 10 | K125: 0.11 | L125: 26437 | M125: 14563 | N125: 11574 | O125: 126 | R125: 1_67 | S125: 67 | T125: =IF(ISERROR(VLOOKUP($R125,'Curtailment Record'!$D$4:$I$3003,5,FALSE)),"",VLOOKUP($R125,'Curtailment Record'!$D$4:$I$3003,5,FALSE)) ->  | U125: =IF(ISERROR(VLOOKUP($R125,'Curtailment Record'!$D$4:$I$3003,6,FALSE)),"",VLOOKUP($R125,'Curtailment Record'!$D$4:$I$3003,6,FALSE)) -> 
A126: 121 | B126: 74 | C126: Aug | D126: 9 | E126: 2241 | F126: 250 | G126: 6.1 | H126: 94 | I126: 63.3 | J126: 14 | K126: 0.04 | L126: 26196 | M126: 12923 | N126: 12853 | O126: 741 | R126: 1_68 | S126: 68 | T126: =IF(ISERROR(VLOOKUP($R126,'Curtailment Record'!$D$4:$I$3003,5,FALSE)),"",VLOOKUP($R126,'Curtailment Record'!$D$4:$I$3003,5,FALSE)) ->  | U126: =IF(ISERROR(VLOOKUP($R126,'Curtailment Record'!$D$4:$I$3003,6,FALSE)),"",VLOOKUP($R126,'Curtailment Record'!$D$4:$I$3003,6,FALSE)) -> 
A127: 122 | B127: 74 | C127: Aug | D127: 17 | E127: 1781 | F127: 106 | G127: 6.1 | H127: 94 | I127: 61.6 | J127: 10 | K127: 0.06 | L127: 24927 | M127: 12740 | N127: 12474 | O127: 197 | R127: 1_69 | S127: 69 | T127: =IF(ISERROR(VLOOKUP($R127,'Curtailment Record'!$D$4:$I$3003,5,FALSE)),"",VLOOKUP($R127,'Curtailment Record'!$D$4:$I$3003,5,FALSE)) ->  | U127: =IF(ISERROR(VLOOKUP($R127,'Curtailment Record'!$D$4:$I$3003,6,FALSE)),"",VLOOKUP($R127,'Curtailment Record'!$D$4:$I$3003,6,FALSE)) -> 
A128: 123 | B128: 74 | C128: Aug | D128: 5 | E128: 93 | F128: 19 | G128: 6.1 | H128: 94 | I128: 69 | J128: 56 | K128: 0.06 | L128: 24705 | M128: 11001 | N128: 12327 | O128: 2266 | R128: 1_70 | S128: 70 | T128: =IF(ISERROR(VLOOKUP($R128,'Curtailment Record'!$D$4:$I$3003,5,FALSE)),"",VLOOKUP($R128,'Curtailment Record'!$D$4:$I$3003,5,FALSE)) ->  | U128: =IF(ISERROR(VLOOKUP($R128,'Curtailment Record'!$D$4:$I$3003,6,FALSE)),"",VLOOKUP($R128,'Curtailment Record'!$D$4:$I$3003,6,FALSE)) -> 
A129: 124 | B129: 74 | C129: Aug | D129: 3 | E129: 271 | F129: 90 | G129: 6.1 | H129: 94 | I129: 67.5 | J129: 58 | K129: 0.12 | L129: 24162 | M129: 11572 | N129: 11237 | O129: 2103 | R129: 1_71 | S129: 71 | T129: =IF(ISERROR(VLOOKUP($R129,'Curtailment Record'!$D$4:$I$3003,5,FALSE)),"",VLOOKUP($R129,'Curtailment Record'!$D$4:$I$3003,5,FALSE)) ->  | U129: =IF(ISERROR(VLOOKUP($R129,'Curtailment Record'!$D$4:$I$3003,6,FALSE)),"",VLOOKUP($R129,'Curtailment Record'!$D$4:$I$3003,6,FALSE)) -> 
A130: 125 | B130: 74 | C130: Aug | D130: 7 | E130: 1239 | F130: 184 | G130: 6.1 | H130: 94 | I130: 66 | J130: 55 | K130: 0.1 | L130: 25389 | M130: 13784 | N130: 11743 | O130: 46 | R130: 1_72 | S130: 72 | T130: =IF(ISERROR(VLOOKUP($R130,'Curtailment Record'!$D$4:$I$3003,5,FALSE)),"",VLOOKUP($R130,'Curtailment Record'!$D$4:$I$3003,5,FALSE)) ->  | U130: =IF(ISERROR(VLOOKUP($R130,'Curtailment Record'!$D$4:$I$3003,6,FALSE)),"",VLOOKUP($R130,'Curtailment Record'!$D$4:$I$3003,6,FALSE)) -> 
A131: 126 | B131: 77 | C131: Aug | D131: 8 | E131: 4603 | F131: 592 | G131: 7.3 | H131: 80 | I131: 72.5 | J131: 84 | K131: 0.06 | L131: 23896 | M131: 11398 | N131: 12496 | O131: 110 | R131: 1_73 | S131: 73 | T131: =IF(ISERROR(VLOOKUP($R131,'Curtailment Record'!$D$4:$I$3003,5,FALSE)),"",VLOOKUP($R131,'Curtailment Record'!$D$4:$I$3003,5,FALSE)) ->  | U131: =IF(ISERROR(VLOOKUP($R131,'Curtailment Record'!$D$4:$I$3003,6,FALSE)),"",VLOOKUP($R131,'Curtailment Record'!$D$4:$I$3003,6,FALSE)) -> 
A132: 127 | B132: 77 | C132: Aug | D132: 9 | E132: 3431 | F132: 509 | G132: 7.3 | H132: 80 | I132: 71.3 | J132: 74 | K132: 0.08 | L132: 24574 | M132: 11060 | N132: 12091 | O132: 1639 | R132: 1_74 | S132: 74 | T132: =IF(ISERROR(VLOOKUP($R132,'Curtailment Record'!$D$4:$I$3003,5,FALSE)),"",VLOOKUP($R132,'Curtailment Record'!$D$4:$I$3003,5,FALSE)) ->  | U132: =IF(ISERROR(VLOOKUP($R132,'Curtailment Record'!$D$4:$I$3003,6,FALSE)),"",VLOOKUP($R132,'Curtailment Record'!$D$4:$I$3003,6,FALSE)) -> 
A133: 128 | B133: 77 | C133: Aug | D133: 10 | E133: 2162 | F133: 217 | G133: 7.3 | H133: 80 | I133: 67.5 | J133: 59 | K133: 0.11 | L133: 24400 | M133: 12739 | N133: 11461 | O133: 464 | R133: 1_75 | S133: 75 | T133: =IF(ISERROR(VLOOKUP($R133,'Curtailment Record'!$D$4:$I$3003,5,FALSE)),"",VLOOKUP($R133,'Curtailment Record'!$D$4:$I$3003,5,FALSE)) ->  | U133: =IF(ISERROR(VLOOKUP($R133,'Curtailment Record'!$D$4:$I$3003,6,FALSE)),"",VLOOKUP($R133,'Curtailment Record'!$D$4:$I$3003,6,FALSE)) -> 
A134: 129 | B134: 77 | C134: Aug | D134: 4 | E134: 2348 | F134: 977 | G134: 7.3 | H134: 80 | I134: 66.2 | J134: 64 | K134: 0.17 | L134: 20542 | M134: 8904 | N134: 10449 | O134: 23 | R134: 1_76 | S134: 76 | T134: =IF(ISERROR(VLOOKUP($R134,'Curtailment Record'!$D$4:$I$3003,5,FALSE)),"",VLOOKUP($R134,'Curtailment Record'!$D$4:$I$3003,5,FALSE)) ->  | U134: =IF(ISERROR(VLOOKUP($R134,'Curtailment Record'!$D$4:$I$3003,6,FALSE)),"",VLOOKUP($R134,'Curtailment Record'!$D$4:$I$3003,6,FALSE)) -> 
A135: 130 | B135: 79 | C135: Jan | D135: 48 | E135: 47994 | F135: 1999 | G135: 3.8 | H135: 87 | I135: 41.6 | J135: 78 | K135: 0.1 | L135: 33207 | M135: 13329 | N135: 13960 | O135: 1382 | R135: 1_77 | S135: 77 | T135: =IF(ISERROR(VLOOKUP($R135,'Curtailment Record'!$D$4:$I$3003,5,FALSE)),"",VLOOKUP($R135,'Curtailment Record'!$D$4:$I$3003,5,FALSE)) ->  | U135: =IF(ISERROR(VLOOKUP($R135,'Curtailment Record'!$D$4:$I$3003,6,FALSE)),"",VLOOKUP($R135,'Curtailment Record'!$D$4:$I$3003,6,FALSE)) -> 
A136: 131 | B136: 80 | C136: Jul | D136: 3 | E136: 844 | F136: 526 | G136: 12.1 | H136: 75 | I136: 66.3 | J136: 47 | K136: 0.11 | L136: 22344 | M136: 11455 | N136: 11458 | O136: 35 | R136: 1_78 | S136: 78 | T136: =IF(ISERROR(VLOOKUP($R136,'Curtailment Record'!$D$4:$I$3003,5,FALSE)),"",VLOOKUP($R136,'Curtailment Record'!$D$4:$I$3003,5,FALSE)) ->  | U136: =IF(ISERROR(VLOOKUP($R136,'Curtailment Record'!$D$4:$I$3003,6,FALSE)),"",VLOOKUP($R136,'Curtailment Record'!$D$4:$I$3003,6,FALSE)) -> 
A137: 132 | B137: 80 | C137: Jul | D137: 6 | E137: 157 | F137: 26 | G137: 12.1 | H137: 75 | I137: 66.3 | J137: 47 | K137: 0.1 | L137: 26034 | M137: 14678 | N137: 11714 | O137: 413 | R137: 1_79 | S137: 79 | T137: =IF(ISERROR(VLOOKUP($R137,'Curtailment Record'!$D$4:$I$3003,5,FALSE)),"",VLOOKUP($R137,'Curtailment Record'!$D$4:$I$3003,5,FALSE)) ->  | U137: =IF(ISERROR(VLOOKUP($R137,'Curtailment Record'!$D$4:$I$3003,6,FALSE)),"",VLOOKUP($R137,'Curtailment Record'!$D$4:$I$3003,6,FALSE)) -> 
A138: 133 | B138: 80 | C138: Jul | D138: 2 | E138: 266 | F138: 133 | G138: 12.1 | H138: 75 | I138: 69.5 | J138: 53 | K138: 0.12 | L138: 25540 | M138: 14770 | N138: 11305 | O138: 218 | R138: 1_80 | S138: 80 | T138: =IF(ISERROR(VLOOKUP($R138,'Curtailment Record'!$D$4:$I$3003,5,FALSE)),"",VLOOKUP($R138,'Curtailment Record'!$D$4:$I$3003,5,FALSE)) ->  | U138: =IF(ISERROR(VLOOKUP($R138,'Curtailment Record'!$D$4:$I$3003,6,FALSE)),"",VLOOKUP($R138,'Curtailment Record'!$D$4:$I$3003,6,FALSE)) -> 
A139: 134 | B139: 80 | C139: Jul | D139: 18 | E139: 2842 | F139: 196 | G139: 12.1 | H139: 75 | I139: 67.4 | J139: 40 | K139: 0.06 | L139: 24977 | M139: 12277 | N139: 12477 | O139: 460 | R139: 1_81 | S139: 81 | T139: =IF(ISERROR(VLOOKUP($R139,'Curtailment Record'!$D$4:$I$3003,5,FALSE)),"",VLOOKUP($R139,'Curtailment Record'!$D$4:$I$3003,5,FALSE)) ->  | U139: =IF(ISERROR(VLOOKUP($R139,'Curtailment Record'!$D$4:$I$3003,6,FALSE)),"",VLOOKUP($R139,'Curtailment Record'!$D$4:$I$3003,6,FALSE)) -> 
A140: 135 | B140: 80 | C140: Jul | D140: 14 | E140: 2438 | F140: 206 | G140: 12.1 | H140: 75 | I140: 70.4 | J140: 50 | K140: 0.08 | L140: 24624 | M140: 12709 | N140: 11965 | O140: 29 | R140: 1_82 | S140: 82 | T140: =IF(ISERROR(VLOOKUP($R140,'Curtailment Record'!$D$4:$I$3003,5,FALSE)),"",VLOOKUP($R140,'Curtailment Record'!$D$4:$I$3003,5,FALSE)) ->  | U140: =IF(ISERROR(VLOOKUP($R140,'Curtailment Record'!$D$4:$I$3003,6,FALSE)),"",VLOOKUP($R140,'Curtailment Record'!$D$4:$I$3003,6,FALSE)) -> 
A141: 136 | B141: 80 | C141: Jul | D141: 6 | E141: 1837 | F141: 470 | G141: 12.1 | H141: 75 | I141: 64.9 | J141: 28 | K141: 0.07 | L141: 25779 | M141: 12574 | N141: 12307 | O141: 1165 | R141: 1_83 | S141: 83 | T141: =IF(ISERROR(VLOOKUP($R141,'Curtailment Record'!$D$4:$I$3003,5,FALSE)),"",VLOOKUP($R141,'Curtailment Record'!$D$4:$I$3003,5,FALSE)) ->  | U141: =IF(ISERROR(VLOOKUP($R141,'Curtailment Record'!$D$4:$I$3003,6,FALSE)),"",VLOOKUP($R141,'Curtailment Record'!$D$4:$I$3003,6,FALSE)) -> 
A142: 137 | B142: 81 | C142: Aug | D142: 4 | E142: 486 | F142: 260 | G142: 6.7 | H142: 87 | I142: 65.6 | J142: 41 | K142: 0.09 | L142: 22618 | M142: 11293 | N142: 11954 | O142: 266 | R142: 1_84 | S142: 84 | T142: =IF(ISERROR(VLOOKUP($R142,'Curtailment Record'!$D$4:$I$3003,5,FALSE)),"",VLOOKUP($R142,'Curtailment Record'!$D$4:$I$3003,5,FALSE)) ->  | U142: =IF(ISERROR(VLOOKUP($R142,'Curtailment Record'!$D$4:$I$3003,6,FALSE)),"",VLOOKUP($R142,'Curtailment Record'!$D$4:$I$3003,6,FALSE)) -> 
A143: 138 | B143: 81 | C143: Aug | D143: 1 | E143: 32 | F143: 32 | G143: 6.7 | H143: 87 | I143: 67.1 | J143: 43 | K143: 0.09 | L143: 25350 | M143: 12089 | N143: 11792 | O143: 1912 | R143: 1_85 | S143: 85 | T143: =IF(ISERROR(VLOOKUP($R143,'Curtailment Record'!$D$4:$I$3003,5,FALSE)),"",VLOOKUP($R143,'Curtailment Record'!$D$4:$I$3003,5,FALSE)) ->  | U143: =IF(ISERROR(VLOOKUP($R143,'Curtailment Record'!$D$4:$I$3003,6,FALSE)),"",VLOOKUP($R143,'Curtailment Record'!$D$4:$I$3003,6,FALSE)) -> 
A144: 139 | B144: 81 | C144: Aug | D144: 6 | E144: 1091 | F144: 213 | G144: 6.7 | H144: 87 | I144: 65.8 | J144: 42 | K144: 0.11 | L144: 23436 | M144: 12430 | N144: 11536 | O144: 214 | R144: 1_86 | S144: 86 | T144: =IF(ISERROR(VLOOKUP($R144,'Curtailment Record'!$D$4:$I$3003,5,FALSE)),"",VLOOKUP($R144,'Curtailment Record'!$D$4:$I$3003,5,FALSE)) ->  | U144: =IF(ISERROR(VLOOKUP($R144,'Curtailment Record'!$D$4:$I$3003,6,FALSE)),"",VLOOKUP($R144,'Curtailment Record'!$D$4:$I$3003,6,FALSE)) -> 
A145: 140 | B145: 81 | C145: Aug | D145: 8 | E145: 1537 | F145: 201 | G145: 6.7 | H145: 87 | I145: 65.8 | J145: 42 | K145: 0.11 | L145: 25701 | M145: 13650 | N145: 11526 | O145: 1046 | R145: 1_87 | S145: 87 | T145: =IF(ISERROR(VLOOKUP($R145,'Curtailment Record'!$D$4:$I$3003,5,FALSE)),"",VLOOKUP($R145,'Curtailment Record'!$D$4:$I$3003,5,FALSE)) ->  | U145: =IF(ISERROR(VLOOKUP($R145,'Curtailment Record'!$D$4:$I$3003,6,FALSE)),"",VLOOKUP($R145,'Curtailment Record'!$D$4:$I$3003,6,FALSE)) -> 
A146: 141 | B146: 81 | C146: Aug | D146: 7 | E146: 144 | F146: 20 | G146: 6.7 | H146: 87 | I146: 64.6 | J146: 22 | K146: 0.1 | L146: 25726 | M146: 14302 | N146: 11656 | O146: 32 | R146: 1_88 | S146: 88 | T146: =IF(ISERROR(VLOOKUP($R146,'Curtailment Record'!$D$4:$I$3003,5,FALSE)),"",VLOOKUP($R146,'Curtailment Record'!$D$4:$I$3003,5,FALSE)) ->  | U146: =IF(ISERROR(VLOOKUP($R146,'Curtailment Record'!$D$4:$I$3003,6,FALSE)),"",VLOOKUP($R146,'Curtailment Record'!$D$4:$I$3003,6,FALSE)) -> 
A147: 142 | B147: 81 | C147: Aug | D147: 8 | E147: 528 | F147: 184 | G147: 6.7 | H147: 87 | I147: 63.1 | J147: 22 | K147: 0.06 | L147: 25310 | M147: 12991 | N147: 12385 | O147: 551 | R147: 1_89 | S147: 89 | T147: =IF(ISERROR(VLOOKUP($R147,'Curtailment Record'!$D$4:$I$3003,5,FALSE)),"",VLOOKUP($R147,'Curtailment Record'!$D$4:$I$3003,5,FALSE)) ->  | U147: =IF(ISERROR(VLOOKUP($R147,'Curtailment Record'!$D$4:$I$3003,6,FALSE)),"",VLOOKUP($R147,'Curtailment Record'!$D$4:$I$3003,6,FALSE)) -> 
A148: 143 | B148: 81 | C148: Aug | D148: 10 | E148: 3053 | F148: 334 | G148: 6.7 | H148: 87 | I148: 64.6 | J148: 47 | K148: 0.1 | L148: 25368 | M148: 12597 | N148: 11638 | O148: 1332 | R148: 1_90 | S148: 90 | T148: =IF(ISERROR(VLOOKUP($R148,'Curtailment Record'!$D$4:$I$3003,5,FALSE)),"",VLOOKUP($R148,'Curtailment Record'!$D$4:$I$3003,5,FALSE)) ->  | U148: =IF(ISERROR(VLOOKUP($R148,'Curtailment Record'!$D$4:$I$3003,6,FALSE)),"",VLOOKUP($R148,'Curtailment Record'!$D$4:$I$3003,6,FALSE)) -> 
A149: 144 | B149: 82 | C149: Aug | D149: 5 | E149: 273 | F149: 55 | G149: 7.4 | H149: 80 | I149: 66.2 | J149: 31 | K149: 0.05 | L149: 23685 | M149: 11153 | N149: 12540 | O149: 207 | R149: 1_91 | S149: 91 | T149: =IF(ISERROR(VLOOKUP($R149,'Curtailment Record'!$D$4:$I$3003,5,FALSE)),"",VLOOKUP($R149,'Curtailment Record'!$D$4:$I$3003,5,FALSE)) ->  | U149: =IF(ISERROR(VLOOKUP($R149,'Curtailment Record'!$D$4:$I$3003,6,FALSE)),"",VLOOKUP($R149,'Curtailment Record'!$D$4:$I$3003,6,FALSE)) -> 
A150: 145 | B150: 82 | C150: Aug | D150: 17 | E150: 3503 | F150: 257 | G150: 7.4 | H150: 80 | I150: 66.6 | J150: 45 | K150: 0.1 | L150: 24101 | M150: 12488 | N150: 11761 | O150: 235 | R150: 1_92 | S150: 92 | T150: =IF(ISERROR(VLOOKUP($R150,'Curtailment Record'!$D$4:$I$3003,5,FALSE)),"",VLOOKUP($R150,'Curtailment Record'!$D$4:$I$3003,5,FALSE)) ->  | U150: =IF(ISERROR(VLOOKUP($R150,'Curtailment Record'!$D$4:$I$3003,6,FALSE)),"",VLOOKUP($R150,'Curtailment Record'!$D$4:$I$3003,6,FALSE)) -> 
A151: 146 | B151: 82 | C151: Aug | D151: 14 | E151: 3477 | F151: 260 | G151: 7.4 | H151: 80 | I151: 70.7 | J151: 82 | K151: 0.06 | L151: 24411 | M151: 11056 | N151: 12326 | O151: 1164 | R151: 1_93 | S151: 93 | T151: =IF(ISERROR(VLOOKUP($R151,'Curtailment Record'!$D$4:$I$3003,5,FALSE)),"",VLOOKUP($R151,'Curtailment Record'!$D$4:$I$3003,5,FALSE)) ->  | U151: =IF(ISERROR(VLOOKUP($R151,'Curtailment Record'!$D$4:$I$3003,6,FALSE)),"",VLOOKUP($R151,'Curtailment Record'!$D$4:$I$3003,6,FALSE)) -> 
A152: 147 | B152: 82 | C152: Aug | D152: 7 | E152: 1805 | F152: 542 | G152: 7.4 | H152: 80 | I152: 62.5 | J152: 38 | K152: 0.07 | L152: 23624 | M152: 11127 | N152: 12277 | O152: 322 | R152: 1_94 | S152: 94 | T152: =IF(ISERROR(VLOOKUP($R152,'Curtailment Record'!$D$4:$I$3003,5,FALSE)),"",VLOOKUP($R152,'Curtailment Record'!$D$4:$I$3003,5,FALSE)) ->  | U152: =IF(ISERROR(VLOOKUP($R152,'Curtailment Record'!$D$4:$I$3003,6,FALSE)),"",VLOOKUP($R152,'Curtailment Record'!$D$4:$I$3003,6,FALSE)) -> 
A153: 148 | B153: 82 | C153: Aug | D153: 4 | E153: 647 | F153: 163 | G153: 7.4 | H153: 80 | I153: 62.5 | J153: 38 | K153: 0.06 | L153: 22839 | M153: 10706 | N153: 12374 | O153: 79 | R153: 1_95 | S153: 95 | T153: =IF(ISERROR(VLOOKUP($R153,'Curtailment Record'!$D$4:$I$3003,5,FALSE)),"",VLOOKUP($R153,'Curtailment Record'!$D$4:$I$3003,5,FALSE)) ->  | U153: =IF(ISERROR(VLOOKUP($R153,'Curtailment Record'!$D$4:$I$3003,6,FALSE)),"",VLOOKUP($R153,'Curtailment Record'!$D$4:$I$3003,6,FALSE)) -> 
A154: 149 | B154: 83 | C154: Jul | D154: 18 | E154: 3957 | F154: 266 | G154: 10.3 | H154: 84 | I154: 66 | J154: 41 | K154: 0.07 | L154: 26320 | M154: 14159 | N154: 12230 | O154: 106 | R154: 1_96 | S154: 96 | T154: =IF(ISERROR(VLOOKUP($R154,'Curtailment Record'!$D$4:$I$3003,5,FALSE)),"",VLOOKUP($R154,'Curtailment Record'!$D$4:$I$3003,5,FALSE)) ->  | U154: =IF(ISERROR(VLOOKUP($R154,'Curtailment Record'!$D$4:$I$3003,6,FALSE)),"",VLOOKUP($R154,'Curtailment Record'!$D$4:$I$3003,6,FALSE)) -> 
A155: 150 | B155: 83 | C155: Jul | D155: 2 | E155: 1494 | F155: 962 | G155: 10.3 | H155: 84 | I155: 66 | J155: 41 | K155: 0.15 | L155: 22814 | M155: 8314 | N155: 10794 | O155: 2256 | R155: =CONCATENATE($R$56,"_",S155) -> 1_97 | S155: 97 | T155: =IF(ISERROR(VLOOKUP($R155,'Curtailment Record'!$D$4:$I$3003,5,FALSE)),"",VLOOKUP($R155,'Curtailment Record'!$D$4:$I$3003,5,FALSE)) ->  | U155: =IF(ISERROR(VLOOKUP($R155,'Curtailment Record'!$D$4:$I$3003,6,FALSE)),"",VLOOKUP($R155,'Curtailment Record'!$D$4:$I$3003,6,FALSE)) -> 
A156: 151 | B156: 83 | C156: Jul | D156: 7 | E156: 116 | F156: 17 | G156: 10.3 | H156: 84 | I156: 69 | J156: 49 | K156: 0.17 | L156: 23575 | M156: 12901 | N156: 10411 | O156: 862 | R156: 1_98 | S156: 98 | T156: =IF(ISERROR(VLOOKUP($R156,'Curtailment Record'!$D$4:$I$3003,5,FALSE)),"",VLOOKUP($R156,'Curtailment Record'!$D$4:$I$3003,5,FALSE)) ->  | U156: =IF(ISERROR(VLOOKUP($R156,'Curtailment Record'!$D$4:$I$3003,6,FALSE)),"",VLOOKUP($R156,'Curtailment Record'!$D$4:$I$3003,6,FALSE)) -> 
A157: 152 | B157: 83 | C157: Jul | D157: 3 | E157: 416 | F157: 174 | G157: 10.3 | H157: 84 | I157: 69 | J157: 49 | K157: 0.18 | L157: 22402 | M157: 10503 | N157: 10255 | O157: 1151 | R157: 1_99 | S157: 99 | T157: =IF(ISERROR(VLOOKUP($R157,'Curtailment Record'!$D$4:$I$3003,5,FALSE)),"",VLOOKUP($R157,'Curtailment Record'!$D$4:$I$3003,5,FALSE)) ->  | U157: =IF(ISERROR(VLOOKUP($R157,'Curtailment Record'!$D$4:$I$3003,6,FALSE)),"",VLOOKUP($R157,'Curtailment Record'!$D$4:$I$3003,6,FALSE)) -> 
A158: 153 | B158: 83 | C158: Aug | D158: 18 | E158: 554 | F158: 32 | G158: 6.6 | H158: 88 | I158: 71.8 | J158: 57 | K158: 0.06 | L158: 24493 | M158: 12226 | N158: 12482 | O158: 278 | R158: 1_100 | S158: 100 | T158: =IF(ISERROR(VLOOKUP($R158,'Curtailment Record'!$D$4:$I$3003,5,FALSE)),"",VLOOKUP($R158,'Curtailment Record'!$D$4:$I$3003,5,FALSE)) ->  | U158: =IF(ISERROR(VLOOKUP($R158,'Curtailment Record'!$D$4:$I$3003,6,FALSE)),"",VLOOKUP($R158,'Curtailment Record'!$D$4:$I$3003,6,FALSE)) -> 
A159: 154 | B159: 83 | C159: Aug | D159: 4 | E159: 483 | F159: 122 | G159: 6.6 | H159: 88 | I159: 66.8 | J159: 53 | K159: 0.13 | L159: 21636 | M159: 10585 | N159: 11169 | O159: 378 | R159: 1_101 | S159: 101 | T159: =IF(ISERROR(VLOOKUP($R159,'Curtailment Record'!$D$4:$I$3003,5,FALSE)),"",VLOOKUP($R159,'Curtailment Record'!$D$4:$I$3003,5,FALSE)) ->  | U159: =IF(ISERROR(VLOOKUP($R159,'Curtailment Record'!$D$4:$I$3003,6,FALSE)),"",VLOOKUP($R159,'Curtailment Record'!$D$4:$I$3003,6,FALSE)) -> 
A160: 155 | B160: 83 | C160: Aug | D160: 5 | E160: 1093 | F160: 220 | G160: 6.6 | H160: 88 | I160: 66.8 | J160: 53 | K160: 0.13 | L160: 24707 | M160: 11735 | N160: 11072 | O160: 2270 | R160: 1_102 | S160: 102 | T160: =IF(ISERROR(VLOOKUP($R160,'Curtailment Record'!$D$4:$I$3003,5,FALSE)),"",VLOOKUP($R160,'Curtailment Record'!$D$4:$I$3003,5,FALSE)) ->  | U160: =IF(ISERROR(VLOOKUP($R160,'Curtailment Record'!$D$4:$I$3003,6,FALSE)),"",VLOOKUP($R160,'Curtailment Record'!$D$4:$I$3003,6,FALSE)) -> 
A161: 156 | B161: 83 | C161: Aug | D161: 12 | E161: 2285 | F161: 354 | G161: 6.6 | H161: 88 | I161: 69.6 | J161: 62 | K161: 0.16 | L161: 25083 | M161: 14835 | N161: 10599 | O161: 47 | R161: 1_103 | S161: 103 | T161: =IF(ISERROR(VLOOKUP($R161,'Curtailment Record'!$D$4:$I$3003,5,FALSE)),"",VLOOKUP($R161,'Curtailment Record'!$D$4:$I$3003,5,FALSE)) ->  | U161: =IF(ISERROR(VLOOKUP($R161,'Curtailment Record'!$D$4:$I$3003,6,FALSE)),"",VLOOKUP($R161,'Curtailment Record'!$D$4:$I$3003,6,FALSE)) -> 
A162: 157 | B162: 83 | C162: Aug | D162: 9 | E162: 1860 | F162: 207 | G162: 6.6 | H162: 88 | I162: 68.2 | J162: 61 | K162: 0.09 | L162: 23395 | M162: 11477 | N162: 11881 | O162: 427 | R162: 1_104 | S162: 104 | T162: =IF(ISERROR(VLOOKUP($R162,'Curtailment Record'!$D$4:$I$3003,5,FALSE)),"",VLOOKUP($R162,'Curtailment Record'!$D$4:$I$3003,5,FALSE)) ->  | U162: =IF(ISERROR(VLOOKUP($R162,'Curtailment Record'!$D$4:$I$3003,6,FALSE)),"",VLOOKUP($R162,'Curtailment Record'!$D$4:$I$3003,6,FALSE)) -> 
A163: 158 | B163: 83 | C163: Aug | D163: 6 | E163: 98 | F163: 89 | G163: 6.6 | H163: 88 | I163: 68.8 | J163: 71 | K163: 0.11 | L163: 23346 | M163: 11196 | N163: 11562 | O163: 1232 | R163: 1_105 | S163: 105 | T163: =IF(ISERROR(VLOOKUP($R163,'Curtailment Record'!$D$4:$I$3003,5,FALSE)),"",VLOOKUP($R163,'Curtailment Record'!$D$4:$I$3003,5,FALSE)) ->  | U163: =IF(ISERROR(VLOOKUP($R163,'Curtailment Record'!$D$4:$I$3003,6,FALSE)),"",VLOOKUP($R163,'Curtailment Record'!$D$4:$I$3003,6,FALSE)) -> 
A164: 159 | B164: 83 | C164: Aug | D164: 2 | E164: 90 | F164: 66 | G164: 6.6 | H164: 88 | I164: 65.1 | J164: 49 | K164: 0.05 | L164: 23520 | M164: 11952 | N164: 12518 | O164: 21 | R164: 1_106 | S164: 106 | T164: =IF(ISERROR(VLOOKUP($R164,'Curtailment Record'!$D$4:$I$3003,5,FALSE)),"",VLOOKUP($R164,'Curtailment Record'!$D$4:$I$3003,5,FALSE)) ->  | U164: =IF(ISERROR(VLOOKUP($R164,'Curtailment Record'!$D$4:$I$3003,6,FALSE)),"",VLOOKUP($R164,'Curtailment Record'!$D$4:$I$3003,6,FALSE)) -> 
A165: 160 | B165: 83 | C165: Aug | D165: 2 | E165: 630 | F165: 480 | G165: 6.6 | H165: 88 | I165: 65.1 | J165: 49 | K165: 0.09 | L165: 21089 | M165: 7892 | N165: 11786 | O165: 1044 | R165: 1_107 | S165: 107 | T165: =IF(ISERROR(VLOOKUP($R165,'Curtailment Record'!$D$4:$I$3003,5,FALSE)),"",VLOOKUP($R165,'Curtailment Record'!$D$4:$I$3003,5,FALSE)) ->  | U165: =IF(ISERROR(VLOOKUP($R165,'Curtailment Record'!$D$4:$I$3003,6,FALSE)),"",VLOOKUP($R165,'Curtailment Record'!$D$4:$I$3003,6,FALSE)) -> 
A166: 161 | B166: 83 | C166: Aug | D166: 1 | E166: 89 | F166: 89 | G166: 6.6 | H166: 88 | I166: 67.5 | J166: 58 | K166: 0.21 | L166: 18349 | M166: 7445 | N166: 9786 | O166: 450 | R166: 1_108 | S166: 108 | T166: =IF(ISERROR(VLOOKUP($R166,'Curtailment Record'!$D$4:$I$3003,5,FALSE)),"",VLOOKUP($R166,'Curtailment Record'!$D$4:$I$3003,5,FALSE)) ->  | U166: =IF(ISERROR(VLOOKUP($R166,'Curtailment Record'!$D$4:$I$3003,6,FALSE)),"",VLOOKUP($R166,'Curtailment Record'!$D$4:$I$3003,6,FALSE)) -> 
A167: 162 | B167: 84 | C167: Aug | D167: 4 | E167: 624 | F167: 198 | G167: 6.8 | H167: 86 | I167: 68.4 | J167: 43 | K167: 0.08 | L167: 25248 | M167: 12166 | N167: 11976 | O167: 1433 | R167: 1_109 | S167: 109 | T167: =IF(ISERROR(VLOOKUP($R167,'Curtailment Record'!$D$4:$I$3003,5,FALSE)),"",VLOOKUP($R167,'Curtailment Record'!$D$4:$I$3003,5,FALSE)) ->  | U167: =IF(ISERROR(VLOOKUP($R167,'Curtailment Record'!$D$4:$I$3003,6,FALSE)),"",VLOOKUP($R167,'Curtailment Record'!$D$4:$I$3003,6,FALSE)) -> 
A168: 163 | B168: 84 | C168: Aug | D168: 3 | E168: 102 | F168: 40 | G168: 6.8 | H168: 86 | I168: 68.4 | J168: 56 | K168: 0.09 | L168: 24524 | M168: 13604 | N168: 11900 | O168: 3 | R168: 1_110 | S168: 110 | T168: =IF(ISERROR(VLOOKUP($R168,'Curtailment Record'!$D$4:$I$3003,5,FALSE)),"",VLOOKUP($R168,'Curtailment Record'!$D$4:$I$3003,5,FALSE)) ->  | U168: =IF(ISERROR(VLOOKUP($R168,'Curtailment Record'!$D$4:$I$3003,6,FALSE)),"",VLOOKUP($R168,'Curtailment Record'!$D$4:$I$3003,6,FALSE)) -> 
A169: 164 | B169: 84 | C169: Aug | D169: 7 | E169: 2546 | F169: 605 | G169: 6.8 | H169: 86 | I169: 68.4 | J169: 56 | K169: 0.11 | L169: 25120 | M169: 12950 | N169: 11570 | O169: 947 | R169: 1_111 | S169: 111 | T169: =IF(ISERROR(VLOOKUP($R169,'Curtailment Record'!$D$4:$I$3003,5,FALSE)),"",VLOOKUP($R169,'Curtailment Record'!$D$4:$I$3003,5,FALSE)) ->  | U169: =IF(ISERROR(VLOOKUP($R169,'Curtailment Record'!$D$4:$I$3003,6,FALSE)),"",VLOOKUP($R169,'Curtailment Record'!$D$4:$I$3003,6,FALSE)) -> 
A170: 165 | B170: 87 | C170: Aug | D170: 13 | E170: 2223 | F170: 299 | G170: 6.5 | H170: 89 | I170: 61.8 | J170: 5 | K170: 0.08 | L170: 25733 | M170: 13009 | N170: 12109 | O170: 779 | R170: 1_112 | S170: 112 | T170: =IF(ISERROR(VLOOKUP($R170,'Curtailment Record'!$D$4:$I$3003,5,FALSE)),"",VLOOKUP($R170,'Curtailment Record'!$D$4:$I$3003,5,FALSE)) ->  | U170: =IF(ISERROR(VLOOKUP($R170,'Curtailment Record'!$D$4:$I$3003,6,FALSE)),"",VLOOKUP($R170,'Curtailment Record'!$D$4:$I$3003,6,FALSE)) -> 
A171: 166 | B171: 87 | C171: Aug | D171: 10 | E171: 2423 | F171: 393 | G171: 6.5 | H171: 89 | I171: 61.8 | J171: 11 | K171: 0.11 | L171: 24493 | M171: 13002 | N171: 11461 | O171: 243 | R171: 1_113 | S171: 113 | T171: =IF(ISERROR(VLOOKUP($R171,'Curtailment Record'!$D$4:$I$3003,5,FALSE)),"",VLOOKUP($R171,'Curtailment Record'!$D$4:$I$3003,5,FALSE)) ->  | U171: =IF(ISERROR(VLOOKUP($R171,'Curtailment Record'!$D$4:$I$3003,6,FALSE)),"",VLOOKUP($R171,'Curtailment Record'!$D$4:$I$3003,6,FALSE)) -> 
A172: 167 | B172: 87 | C172: Aug | D172: 8 | E172: 323 | F172: 41 | G172: 6.5 | H172: 89 | I172: 68.2 | J172: 45 | K172: 0.15 | L172: 22819 | M172: 12596 | N172: 10757 | O172: 6 | R172: 1_114 | S172: 114 | T172: =IF(ISERROR(VLOOKUP($R172,'Curtailment Record'!$D$4:$I$3003,5,FALSE)),"",VLOOKUP($R172,'Curtailment Record'!$D$4:$I$3003,5,FALSE)) ->  | U172: =IF(ISERROR(VLOOKUP($R172,'Curtailment Record'!$D$4:$I$3003,6,FALSE)),"",VLOOKUP($R172,'Curtailment Record'!$D$4:$I$3003,6,FALSE)) -> 
A173: 168 | B173: 87 | C173: Aug | D173: 13 | E173: 5554 | F173: 432 | G173: 6.5 | H173: 89 | I173: 64.5 | J173: 35 | K173: 0.13 | L173: 24293 | M173: 12840 | N173: 11177 | O173: 183 | R173: 1_115 | S173: 115 | T173: =IF(ISERROR(VLOOKUP($R173,'Curtailment Record'!$D$4:$I$3003,5,FALSE)),"",VLOOKUP($R173,'Curtailment Record'!$D$4:$I$3003,5,FALSE)) ->  | U173: =IF(ISERROR(VLOOKUP($R173,'Curtailment Record'!$D$4:$I$3003,6,FALSE)),"",VLOOKUP($R173,'Curtailment Record'!$D$4:$I$3003,6,FALSE)) -> 
A174: 169 | B174: 87 | C174: Aug | D174: 1 | E174: 173 | F174: 173 | G174: 6.5 | H174: 89 | I174: 62.8 | J174: 26 | K174: 0.16 | L174: 24578 | M174: 13494 | N174: 10616 | O174: 1311 | R174: 1_116 | S174: 116 | T174: =IF(ISERROR(VLOOKUP($R174,'Curtailment Record'!$D$4:$I$3003,5,FALSE)),"",VLOOKUP($R174,'Curtailment Record'!$D$4:$I$3003,5,FALSE)) ->  | U174: =IF(ISERROR(VLOOKUP($R174,'Curtailment Record'!$D$4:$I$3003,6,FALSE)),"",VLOOKUP($R174,'Curtailment Record'!$D$4:$I$3003,6,FALSE)) -> 
A175: 170 | B175: 88 | C175: Jul | D175: 1 | E175: 32 | F175: 32 | G175: 12.6 | H175: 72 | I175: 66 | J175: 34 | K175: 0.07 | L175: 23342 | M175: 9911 | N175: 12195 | O175: 499 | R175: 1_117 | S175: 117 | T175: =IF(ISERROR(VLOOKUP($R175,'Curtailment Record'!$D$4:$I$3003,5,FALSE)),"",VLOOKUP($R175,'Curtailment Record'!$D$4:$I$3003,5,FALSE)) ->  | U175: =IF(ISERROR(VLOOKUP($R175,'Curtailment Record'!$D$4:$I$3003,6,FALSE)),"",VLOOKUP($R175,'Curtailment Record'!$D$4:$I$3003,6,FALSE)) -> 
A176: 171 | B176: 88 | C176: Jul | D176: 1 | E176: 111 | F176: 111 | G176: 12.6 | H176: 72 | I176: 68.5 | J176: 50 | K176: 0.09 | L176: 25019 | M176: 11445 | N176: 11932 | O176: 1066 | R176: 1_118 | S176: 118 | T176: =IF(ISERROR(VLOOKUP($R176,'Curtailment Record'!$D$4:$I$3003,5,FALSE)),"",VLOOKUP($R176,'Curtailment Record'!$D$4:$I$3003,5,FALSE)) ->  | U176: =IF(ISERROR(VLOOKUP($R176,'Curtailment Record'!$D$4:$I$3003,6,FALSE)),"",VLOOKUP($R176,'Curtailment Record'!$D$4:$I$3003,6,FALSE)) -> 
A177: 172 | B177: 88 | C177: Jul | D177: 12 | E177: 1649 | F177: 137 | G177: 12.6 | H177: 72 | I177: 62.3 | J177: 15 | K177: 0.07 | L177: 23206 | M177: 10428 | N177: 12189 | O177: 912 | R177: 1_119 | S177: 119 | T177: =IF(ISERROR(VLOOKUP($R177,'Curtailment Record'!$D$4:$I$3003,5,FALSE)),"",VLOOKUP($R177,'Curtailment Record'!$D$4:$I$3003,5,FALSE)) ->  | U177: =IF(ISERROR(VLOOKUP($R177,'Curtailment Record'!$D$4:$I$3003,6,FALSE)),"",VLOOKUP($R177,'Curtailment Record'!$D$4:$I$3003,6,FALSE)) -> 
A178: 173 | B178: 89 | C178: Aug | D178: 6 | E178: 1446 | F178: 476 | G178: 8 | H178: 73 | I178: 61.3 | J178: 33 | K178: 0.21 | L178: 22117 | M178: 12665 | N178: 9696 | O178: 441 | R178: 1_120 | S178: 120 | T178: =IF(ISERROR(VLOOKUP($R178,'Curtailment Record'!$D$4:$I$3003,5,FALSE)),"",VLOOKUP($R178,'Curtailment Record'!$D$4:$I$3003,5,FALSE)) ->  | U178: =IF(ISERROR(VLOOKUP($R178,'Curtailment Record'!$D$4:$I$3003,6,FALSE)),"",VLOOKUP($R178,'Curtailment Record'!$D$4:$I$3003,6,FALSE)) -> 
A179: 174 | B179: 92 | C179: Aug | D179: 18 | E179: 8832 | F179: 1305 | G179: 7 | H179: 84 | I179: 67.7 | J179: 56 | K179: 0.07 | L179: 24887 | M179: 12260 | N179: 12307 | O179: 353
A180: 175 | B180: 92 | C180: Aug | D180: 4 | E180: 33 | F180: 9 | G180: 7 | H180: 84 | I180: 65.7 | J180: 41 | K180: 0.12 | L180: 23291 | M180: 10943 | N180: 11233 | O180: 1190
A181: 176 | B181: 92 | C181: Aug | D181: 9 | E181: 209 | F181: 24 | G181: 7 | H181: 84 | I181: 65.2 | J181: 47 | K181: 0.14 | L181: 24345 | M181: 13627 | N181: 10944 | O181: 294
A182: 177 | B182: 100 | C182: Aug | D182: 16 | E182: 5659 | F182: 657 | G182: 6.7 | H182: 87 | I182: 62.2 | J182: 17 | K182: 0.05 | L182: 25942 | M182: 13435 | N182: 12532 | O182: 184
A183: 178 | B183: 100 | C183: Aug | D183: 3 | E183: 262 | F183: 202 | G183: 6.7 | H183: 87 | I183: 63.1 | J183: 40 | K183: 0.08 | L183: 23993 | M183: 12285 | N183: 12039 | O183: 597
A184: 179 | B184: 103 | C184: Aug | D184: 1 | E184: 31 | F184: 31 | G184: 7.9 | H184: 73 | I184: 62.8 | J184: 23 | K184: 0.06 | L184: 21909 | M184: 8805 | N184: 12330 | O184: 164
A185: 180 | B185: 109 | C185: Aug | D185: 11 | E185: 2143 | F185: 232 | G185: 7.6 | H185: 77 | I185: 63.5 | J185: 23 | K185: 0.09 | L185: 25741 | M185: 14275 | N185: 11806 | O185: 15
A186: 181 | B186: 109 | C186: Aug | D186: 5 | E186: 599 | F186: 124 | G186: 7.6 | H186: 77 | I186: 67 | J186: 33 | K186: 0.11 | L186: 26265 | M186: 14769 | N186: 11414 | O186: 59
A187: 182 | B187: 109 | C187: Aug | D187: 6 | E187: 1055 | F187: 205 | G187: 7.6 | H187: 77 | I187: 67 | J187: 33 | K187: 0.12 | L187: 26147 | M187: 15524 | N187: 11358 | O187: 14
A188: 183 | B188: 113 | C188: Aug | D188: 18 | E188: 16901 | F188: 1188 | G188: 7 | H188: 84 | I188: 64.4 | J188: 23 | K188: 0.12 | L188: 25147 | M188: 13260 | N188: 11263 | O188: 209
A189: 184 | B189: 113 | C189: Aug | D189: 18 | E189: 2011 | F189: 268 | G189: 7 | H189: 84 | I189: 67.6 | J189: 57 | K189: 0.13 | L189: 24337 | M189: 13304 | N189: 11161 | O189: 284
A190: 185 | B190: 116 | C190: Jul | D190: 3 | E190: 366 | F190: 138 | G190: 10.8 | H190: 82 | I190: 71.9 | J190: 68 | K190: 0.07 | L190: 26019 | M190: 13514 | N190: 12213 | O190: 427
A191: 186 | B191: 116 | C191: Jul | D191: 4 | E191: 650 | F191: 262 | G191: 10.8 | H191: 82 | I191: 71.9 | J191: 68 | K191: 0.07 | L191: 26752 | M191: 14363 | N191: 12172 | O191: 810
A192: 187 | B192: 116 | C192: Aug | D192: 6 | E192: 1106 | F192: 429 | G192: 6.4 | H192: 91 | I192: 64.8 | J192: 23 | K192: 0.14 | L192: 23050 | M192: 12219 | N192: 10946 | O192: 95
A193: 188 | B193: 116 | C193: Aug | D193: 19 | E193: 13452 | F193: 738 | G193: 6.4 | H193: 91 | I193: 66.2 | J193: 36 | K193: 0.19 | L193: 23134 | M193: 12807 | N193: 10019 | O193: 65
A194: 189 | B194: 116 | C194: Aug | D194: 3 | E194: 95 | F194: 55 | G194: 6.4 | H194: 91 | I194: 74.3 | J194: 66 | K194: 0.21 | L194: 19165 | M194: 9595 | N194: 9696 | O194: 327
A195: 190 | B195: 116 | C195: Aug | D195: 3 | E195: 624 | F195: 262 | G195: 6.4 | H195: 91 | I195: 59.4 | J195: 10 | K195: 0.15 | L195: 24699 | M195: 13112 | N195: 10765 | O195: 279
A196: 191 | B196: 116 | C196: Aug | D196: 3 | E196: 662 | F196: 263 | G196: 6.4 | H196: 91 | I196: 59.4 | J196: 10 | K196: 0.15 | L196: 21312 | M196: 8933 | N196: 10711 | O196: 1220
A197: 192 | B197: 116 | C197: Aug | D197: 15 | E197: 3283 | F197: 309 | G197: 6.4 | H197: 91 | I197: 62.9 | J197: 39 | K197: 0.05 | L197: 24116 | M197: 11687 | N197: 12581 | O197: 53
A198: 193 | B198: 120 | C198: Jul | D198: 18 | E198: 4528 | F198: 521 | G198: 7.3 | H198: 100 | I198: 67.1 | J198: 62 | K198: 0.12 | L198: 23977 | M198: 12703 | N198: 11306 | O198: 111
A199: 194 | B199: 120 | C199: Aug | D199: 10 | E199: 5277 | F199: 534 | G199: 6.5 | H199: 89 | I199: 71.9 | J199: 57 | K199: 0.1 | L199: 25709 | M199: 13372 | N199: 11647 | O199: 617
A200: 195 | B200: 122 | C200: Aug | D200: 2 | E200: 33 | F200: 16 | G200: 6.3 | H200: 92 | I200: 68.9 | J200: 48 | K200: 0.06 | L200: 24276 | M200: 12890 | N200: 12396 | O200: -11
... 130 more rows
